Workbook

Sheet ANEXO A
A1: COMANDO DA AERONÁUTICA FICHA INFORMATIVA DE AERÓDROMOS Anexo A à ICA 63-19
A3: Características do Aeródromo
A5: A | B5: Dados Gerais do Aeródromo:
A6: A1 | B6: Denominação do Aeródromo:
A7: A2 | B7: Código OACI:
A8: A3 | B8: ARP (Latitude):
A9: A4 | B9: ARP (Longitude):
A10: A5 | B10: Elevação (m):
A11: =FORM!A11 -> B | B11: =FORM!B11 -> Dados Gerais da(s) Pista(s): | C11: PISTA 1 | E11: PISTA 2 | G11: PISTA 3
A12: =FORM!A12 -> B1 | B12: =FORM!B12 -> Designação:
A14: =FORM!A14 -> B2 | B14: =FORM!B14 -> Comprimento (m):
A15: =FORM!A15 -> B3 | B15: =FORM!B15 -> Largura (m):
A16: =FORM!A16 -> B4 | B16: =FORM!B16 -> Comprimento da Faixa de Pista (m):
A17: =FORM!A17 -> B5 | B17: =FORM!B17 -> Largura da Faixa de Pista (m):
A18: =FORM!A18 -> B6 | B18: =FORM!B18 -> Período de Operação:
A19: C | B19: Dados da Cabeceira Menor: | C19: PISTA 1 | E19: PISTA 2 | G19: PISTA 3
A20: C1 | B20: Número:
A21: C2 | B21: Rumo verdadeiro:
A22: C3 | B22: Coordenadas geográficas (latitude):
A23: C4 | B23: Coordenadas geográficas (longitude):
A24: C5 | B24: Elevação (m):
A25: C6 | B25: Código de Referência POUSO:
A26: C7 | B26: Código de Referência DECOLAGEM:
A27: C8 | B27: Letra de Código de Referência:
A28: C9 | B28: Tipo de utilização:
A29: C10 | B29: Tipo de operação para pouso:
A30: C11 | B30: Tipo de operação para decolagem:
A31: C12 | B31: Zona de parada:
A32: C13 | B32: Comprimento (m):
A33: C14 | B33: Largura (m):
A34: C15 | B34: Zona desimpedida:
A35: C16 | B35: Comprimento (m):
A36: C17 | B36: Largura (m):
A37: D | B37: Dados da Cabeceira Maior: | C37: PISTA 1 | E37: PISTA 2 | G37: PISTA 3
A38: D1 | B38: Número:
A39: D2 | B39: Rumo verdadeiro:
A40: D3 | B40: Coordenadas geográficas (latitude):
A41: D4 | B41: Coordenadas geográficas (longitude):
A42: D5 | B42: Elevação (m):
A43: D6 | B43: Código de Referência POUSO:
A44: D7 | B44: Código de Referência DECOLAGEM:
A45: D8 | B45: Letra de Código de Referência:
A46: D9 | B46: Tipo de utilização:
A47: D10 | B47: Tipo de operação para pouso:
A48: D11 | B48: Tipo de operação para decolagem:
A49: D12 | B49: Zona de parada:
A50: D13 | B50: Comprimento (m):
A51: D14 | B51: Largura (m):
A52: D15 | B52: Zona desimpedida:
A53: D16 | B53: Comprimento (m):
A54: D17 | B54: Largura (m): | C54: =FORMULÁRIO!F44 -> 0
A56: Características das Superfícies Limitadoras de Obstáculos
A58: E | B58: Superfície de Aproximação: | C58: CAB 1 | D58: CAB 2 | E58: CAB 3 | F58: CAB 4 | G58: CAB 5 | H58: CAB 6
A59: E1 | B59: Divergência lado direito (%):
A60: E2 | B60: Divergência lado esquerdo (%):
A61: E3 | B61: Comprimento total (m):
B62: Primeira Seção
A63: E4 | B63: Largura da borda interna (m):
A64: E5 | B64: Elevação da borda interna (m):
A65: E6 | B65: Distância da cabeceira (m):
A66: E7 | B66: Abertura total lado direito (%):
A67: E8 | B67: Abertura total lado esquerdo (%):
A68: E9 | B68: Comprimento (m):
A69: E10 | B69: Gradiente (%):
A70: E11 | B70: Elevação da borda externa (m):
B71: Segunda Seção
A72: E12 | B72: Largura da borda interna (m):
A73: E13 | B73: Elevação da borda interna (m):
A74: E14 | B74: Abertura total lado direito (%):
A75: E15 | B75: Abertura total lado esquerdo (%):
A76: E16 | B76: Comprimento (m):
A77: E17 | B77: Gradiente (%):
A78: E18 | B78: Elevação da borda externa (m):
B79: Seção Horizontal
A80: E19 | B80: Largura da borda interna (m):
A81: E20 | B81: Abertura total lado direito (%):
A82: E21 | B82: Abertura total lado esquerdo (%):
A83: E22 | B83: Comprimento (m):
A84: E23 | B84: Elevação (m):
A85: F | B85: Superfície de Decolagem: | C85: CAB 1 | D85: CAB 2 | E85: CAB 3 | F85: CAB 4 | G85: CAB 5 | H85: CAB 6
A86: F1 | B86: Largura da borda interna (m):
A87: F2 | B87: Elevação da borda interna (m):
A88: F3 | B88: Distância da cabeceira oposta (m):
A89: F4 | B89: Abertura para cada lado (%):
A90: F5 | B90: Largura final (m):
A91: F6 | B91: Comprimento (m):
A92: F7 | B92: Gradiente (%):
A93: F8 | B93: Elevação da borda externa (m):
A94: G | B94: Superfície de Aprox. Interna: | C94: CAB 1 | D94: CAB 2 | E94: CAB 3 | F94: CAB 4 | G94: CAB 5 | H94: CAB 6
A95: G1 | B95: Largura da borda interna (m):
A96: G2 | B96: Elevação da borda interna (m):
A97: G3 | B97: Distância da cabeceira (m):
A98: G4 | B98: Abertura para cada lado (%):
A99: G5 | B99: Comprimento (m):
A100: G6 | B100: Gradiente (%):
A101: G7 | B101: Elevação da borda externa (m):
A102: H | B102: Superfície de Transição Interna: | C102: CAB 1 | D102: CAB 2 | E102: CAB 3 | F102: CAB 4 | G102: CAB 5 | H102: CAB 6
A103: H1 | B103: Gradiente (%):
A104: H2 | B104: Elevação da borda superior (m):
A105: I | B105: Superfície de Pouso Interrompido: | C105: CAB 1 | D105: CAB 2 | E105: CAB 3 | F105: CAB 4 | G105: CAB 5 | H105: CAB 6
A106: I1 | B106: Largura da borda interna (m):
A107: I2 | B107: Elevação da borda interna (m):
A108: I3 | B108: Distância da cabeceira (m):
A109: I4 | B109: Abertura para cada lado (%):
A110: I5 | B110: Gradiente (%):
A111: I6 | B111: Elevação da borda externa (m):
A112: J | B112: Superfície de Transição: | C112: Pista 1 | E112: Pista 2 | G112: Pista 3
A113: J1 | B113: Gradiente (%):
A114: K | B114: Superfície Horizontal Interna: | C114: Pista 1 | E114: Pista 2 | G114: Pista 3
A115: K1 | B115: Altitude (m):
A116: K2 | B116: Raio (m)
A117: L | B117: Superfície Cônica: | C117: Pista 1 | E117: Pista 2 | G117: Pista 3
A118: L1 | B118: Altitude (m):
A119: L2 | B119: Gradiente (%):
A120: M | B120: Superfície Horizontal Externa: | C120: Pista 1 | E120: Pista 2 | G120: Pista 3
A121: M1 | B121: Raio (m):
A122: M2 | B122: Altitude (m):
A123: N | B123: Superfície de Prot Voo Visual: | C123: Pista 1 | E123: Pista 2 | G123: Pista 3
A124: N1 | B124: Área 1:
A125: N2 | B125: Largura (m):
A126: N3 | B126: Buffer (m):
A127: N4 | B127: Comprimento (m):
C128: CAB 1 | D128: CAB 2 | E128: CAB 3 | F128: CAB 4 | G128: CAB 5 | H128: CAB 6
A129: N5 | B129: Altitude seção de través (m):
A130: N6 | B130: Altitude seção de aprox/dep (m):
C131: CAB 1 | D131: CAB 2 | E131: CAB 3 | F131: CAB 4 | G131: CAB 5 | H131: CAB 6
A132: N7 | B132: Curvas:
A133: N8 | B133: Altura mínima do circuito de tráfego:
C134: Pista 1 | E134: Pista 2 | G134: Pista 3
A135: N9 | B135: Área 2:
A136: N10 | B136: Categoria de performance crítica:
A137: N11 | B137: Largura (m):
A138: N12 | B138: Buffer (m):
A139: N13 | B139: Comprimento (m):
C140: CAB 1 | D140: CAB 2 | E140: CAB 3 | F140: CAB 4 | G140: CAB 5 | H140: CAB 6
A141: N14 | B141: Altitude seção través (m):
A142: N15 | B142: Altitude seção aprox/dep (m):
C143: CAB 1 | D143: CAB 2 | E143: CAB 3 | F143: CAB 4 | G143: CAB 5 | H143: CAB 6
A144: N16 | B144: Curvas:
A145: N17 | B145: Altura mínima do circ. de tráfego:
C146: Pista 1 | E146: Pista 2 | G146: Pista 3
A147: N18 | B147: Área 3:
A148: N19 | B148: Largura (m):
A149: N20 | B149: Buffer (m):
A150: N21 | B150: Comprimento (m):
A151: N22 | B151: Altitude seção través (m):
A152: N23 | B152: Altitude seção aprox/dep (m):
C153: CAB 1 | D153: CAB 2 | E153: CAB 3 | F153: CAB 4 | G153: CAB 5 | H153: CAB 6
A154: N24 | B154: Curvas:

Sheet FORM (hidden)
A1: COMANDO DA AERONÁUTICA FICHA INFORMATIVA DE AERÓDROMOS Anexo A à ICA 63-19
A3: Características do Aeródromo
A5: A | B5: Dados Gerais do Aeródromo:
A6: A1 | B6: Denominação do Aeródromo: | C6: fffffffff
A7: A2 | B7: Código OACI: | C7: SFFF
A8: A3 | B8: ARP (Latitude): | C8: ='DADOS GERAIS-A'!C7*10000+'DADOS GERAIS-A'!C8*100+'DADOS GERAIS-A'!C9 -> 333333.33 | D8: ='DADOS GERAIS-A'!E9 -> S
A9: A4 | B9: ARP (Longitude): | C9: ='DADOS GERAIS-A'!C10*10000+'DADOS GERAIS-A'!C11*100+'DADOS GERAIS-A'!C12 -> 333333.33
A10: A5 | B10: Elevação (m): | C10: =MAX(FORMULÁRIO!C15:T15) -> 0
A11: B | B11: Dados Gerais da(s) Pista(s): | C11: PISTA 1 | E11: PISTA 2 | G11: PISTA 3
A12: B1 | B12: Designação: | C12: =FORMULÁRIO!C10 -> 25 | E12: =FORMULÁRIO!I10 -> 25 | G12: =FORMULÁRIO!O10 -> 6
C13: =FORMULÁRIO!C11 -> 7 | E13: =FORMULÁRIO!I11 -> 7 | G13: =FORMULÁRIO!O11 -> 24
A14: B2 | B14: Comprimento (m): | C14: =FORMULÁRIO!C13 -> 3304.907 | E14: =FORMULÁRIO!I13 -> 3228.309 | G14: =FORMULÁRIO!O13 -> 5785.423
A15: B3 | B15: Largura (m): | C15: =FORMULÁRIO!C14 -> 0 | E15: =FORMULÁRIO!I14 -> 0 | G15: =FORMULÁRIO!O14 -> 0
A16: B4 | B16: Comprimento da Faixa de Pista (m): | C16: =FORMULÁRIO!C17 -> 3424.907 | E16: =FORMULÁRIO!I17 -> 3348.309 | G16: =FORMULÁRIO!O17 -> 5905.423
A17: B5 | B17: Largura da Faixa de Pista (m): | C17: =FORMULÁRIO!C16 -> 150 | E17: =FORMULÁRIO!I16 -> 150 | G17: =FORMULÁRIO!O16 -> 150
A18: B6 | B18: Período de Operação: | C18: =FORMULÁRIO!C18 -> Diurno e Noturno | E18: =FORMULÁRIO!I18 -> 0 | G18: =FORMULÁRIO!O18 -> 0
A19: C | B19: Dados da Cabeceira Menor: | C19: PISTA 1 | E19: PISTA 2 | G19: PISTA 3
A20: C1 | B20: Número: | C20: =FORM!C12 -> 25 | E20: =FORM!E12 -> 25 | G20: =FORM!G12 -> 6
A21: C2 | B21: Rumo verdadeiro: | C21: =FORMULÁRIO!C19 -> 213º 21' 08,514'' | E21: =FORMULÁRIO!I19 -> 214º 14' 57,68'' | G21: =FORMULÁRIO!O19 -> 29º 36' 56,54''
A22: C3 | B22: Coordenadas geográficas (latitude): | C22: =FORMULÁRIO!C22*10000+FORMULÁRIO!D22*100+FORMULÁRIO!E22 -> 102030.33 | D22: S | E22: =FORMULÁRIO!I22*10000+FORMULÁRIO!J22*100+FORMULÁRIO!K22 -> 102333.33 | F22: S | G22: =FORMULÁRIO!L22*10000+FORMULÁRIO!M22*100+FORMULÁRIO!N22 -> 102500 | H22: S
A23: C4 | B23: Coordenadas geográficas (longitude): | C23: =FORMULÁRIO!C23*10000+FORMULÁRIO!D23*100+FORMULÁRIO!E23 -> 450000 | E23: =FORMULÁRIO!I23*10000+FORMULÁRIO!J23*100+FORMULÁRIO!K23 -> 450200 | G23: =FORMULÁRIO!L23*10000+FORMULÁRIO!M23*100+FORMULÁRIO!N23 -> 450300
A24: C5 | B24: Elevação (m): | C24: =FORMULÁRIO!C24 -> 2 | E24: =FORMULÁRIO!I24 -> 33 | G24: =FORMULÁRIO!O24 -> 3
A25: C6 | B25: Código de Referência POUSO: | C25: =FORMULÁRIO!C26 -> 0 | E25: =FORMULÁRIO!I26 -> 0 | G25: =FORMULÁRIO!O26 -> 0
A26: C7 | B26: Código de Referência DECOLAGEM: | C26: =FORMULÁRIO!C29 -> 0 | E26: =FORMULÁRIO!I29 -> 0 | G26: =FORMULÁRIO!O29 -> 0
A27: C8 | B27: Letra de Código de Referência: | C27: =FORMULÁRIO!F12 -> 0 | E27: =FORMULÁRIO!L12 -> 0 | G27: =FORMULÁRIO!R12 -> 0
A28: C9 | B28: Tipo de utilização: | C28: =FORMULÁRIO!C25 -> Pouso e Decolagem | E28: =FORMULÁRIO!I25 -> 0 | G28: =FORMULÁRIO!O25 -> 0
A29: C10 | B29: Tipo de operação para pouso: | C29: =FORMULÁRIO!C27 -> 0 | E29: =FORMULÁRIO!I27 -> 0 | G29: =FORMULÁRIO!O27 -> 0
A30: C11 | B30: Tipo de operação para decolagem: | C30: =FORMULÁRIO!C30 -> 0 | E30: =FORMULÁRIO!I30 -> 0 | G30: =FORMULÁRIO!O30 -> 0
A31: C12 | B31: Zona de parada: | C31: =FORMULÁRIO!C39 -> 0 | E31: =FORMULÁRIO!I39 -> 0 | G31: =FORMULÁRIO!O39 -> 0
A32: C13 | B32: Comprimento (m): | C32: =FORMULÁRIO!C40 -> 0 | E32: =FORMULÁRIO!I40 -> 0 | G32: =FORMULÁRIO!O40 -> 0
A33: C14 | B33: Largura (m): | C33: =FORMULÁRIO!C41 -> 0 | E33: =FORMULÁRIO!I41 -> 0 | G33: =FORMULÁRIO!O41 -> 0
A34: C15 | B34: Zona desimpedida: | C34: =FORMULÁRIO!C42 -> 0 | E34: =FORMULÁRIO!I42 -> 0 | G34: =FORMULÁRIO!O42 -> 0
A35: C16 | B35: Comprimento (m): | C35: =FORMULÁRIO!C43 -> 0 | E35: =FORMULÁRIO!I43 -> 0 | G35: =FORMULÁRIO!O43 -> 0
A36: C17 | B36: Largura (m): | C36: =FORMULÁRIO!C44 -> 0 | E36: =FORMULÁRIO!I44 -> 0 | G36: =FORMULÁRIO!O44 -> 0
A37: D | B37: Dados da Cabeceira Maior: | C37: PISTA 1 | E37: PISTA 2 | G37: PISTA 3
A38: D1 | B38: Número: | C38: =C13 -> 7 | E38: =E13 -> 7 | G38: =G13 -> 24
A39: D2 | B39: Rumo verdadeiro: | C39: =FORMULÁRIO!F19 -> 33º 21' 19,29'' | E39: =FORMULÁRIO!L19 -> 34º 15' 08,525'' | G39: =FORMULÁRIO!R19 -> 209º 36' 39,49''
A40: D3 | B40: Coordenadas geográficas (latitude): | C40: =FORMULÁRIO!F22*10000+FORMULÁRIO!G22*100+FORMULÁRIO!H22 -> 102200 | D40: S | E40: =FORMULÁRIO!L22*10000+FORMULÁRIO!M22*100+FORMULÁRIO!N22 -> 102500 | F40: S | G40: =FORMULÁRIO!R22*10000+FORMULÁRIO!S22*100+FORMULÁRIO!T22 -> 102252.22 | H40: S
A41: D4 | B41: Coordenadas geográficas (longitude): | C41: =FORMULÁRIO!F23*10000+FORMULÁRIO!G23*100+FORMULÁRIO!H23 -> 450100 | E41: =FORMULÁRIO!L23*10000+FORMULÁRIO!M23*100+FORMULÁRIO!N23 -> 450300 | G41: =FORMULÁRIO!R23*10000+FORMULÁRIO!S23*100+FORMULÁRIO!T23 -> 450225.55
A42: D5 | B42: Elevação (m): | C42: =FORMULÁRIO!F24 -> 2 | E42: =FORMULÁRIO!L24 -> 33 | G42: =FORMULÁRIO!R24 -> 3
A43: D6 | B43: Código de Referência POUSO: | C43: =FORMULÁRIO!F26 -> 0 | E43: =FORMULÁRIO!L26 -> 0 | G43: =FORMULÁRIO!R26 -> 0
A44: D7 | B44: Código de Referência DECOLAGEM: | C44: =FORMULÁRIO!F29 -> 0 | E44: =FORMULÁRIO!L29 -> 0 | G44: =FORMULÁRIO!R29 -> 0
A45: D8 | B45: Letra de Código de Referência: | C45: =FORMULÁRIO!F12 -> 0 | E45: =FORMULÁRIO!L12 -> 0 | G45: =FORMULÁRIO!R12 -> 0
A46: D9 | B46: Tipo de utilização: | C46: =FORMULÁRIO!F25 -> Pouso e Decolagem | E46: =FORMULÁRIO!L25 -> 0 | G46: =FORMULÁRIO!R25 -> 0
A47: D10 | B47: Tipo de operação para pouso: | C47: =FORMULÁRIO!F27 -> 0 | E47: =FORMULÁRIO!L27 -> 0 | G47: =FORMULÁRIO!R27 -> 0
A48: D11 | B48: Tipo de operação para decolagem: | C48: =FORMULÁRIO!F30 -> 0 | E48: =FORMULÁRIO!L30 -> 0 | G48: =FORMULÁRIO!R30 -> 0
A49: D12 | B49: Zona de parada: | C49: =FORMULÁRIO!F39 -> 0 | E49: =FORMULÁRIO!L39 -> 0 | G49: =FORMULÁRIO!R39 -> 0
A50: D13 | B50: Comprimento (m): | C50: =FORMULÁRIO!F40 -> 0 | E50: =FORMULÁRIO!L40 -> 0 | G50: =FORMULÁRIO!R40 -> 0
A51: D14 | B51: Largura (m): | C51: =FORMULÁRIO!F41 -> 0 | E51: =FORMULÁRIO!L41 -> 0 | G51: =FORMULÁRIO!R41 -> 0
A52: D15 | B52: Zona desimpedida: | C52: =FORMULÁRIO!F42 -> 0 | E52: =FORMULÁRIO!L42 -> 0 | G52: =FORMULÁRIO!R42 -> 0
A53: D16 | B53: Comprimento (m): | C53: =FORMULÁRIO!F43 -> 0 | E53: =FORMULÁRIO!L43 -> 0 | G53: =FORMULÁRIO!R43 -> 0
A54: D17 | B54: Largura (m): | C54: =FORMULÁRIO!F44 -> 0 | E54: =FORMULÁRIO!L44 -> 0 | G54: =FORMULÁRIO!R44 -> 0
A56: Características das Superfícies Limitadoras de Obstáculos
A58: E | B58: Superfície de Aproximação: | C58: CAB 1 | D58: CAB 2 | E58: CAB 3 | F58: CAB 4 | G58: CAB 5 | H58: CAB 6
A59: E1 | B59: Divergência lado direito (%): | C59: =FORMULÁRIO!C48 -> 0 | D59: =FORMULÁRIO!F48 -> 0 | E59: =FORMULÁRIO!I48 -> 0 | F59: =FORMULÁRIO!L48 -> 0 | G59: =FORMULÁRIO!O48 -> 0 | H59: =FORMULÁRIO!R48 -> 0
A60: E2 | B60: Divergência lado esquerdo (%): | C60: =FORMULÁRIO!C49 -> 0 | D60: =FORMULÁRIO!F49 -> 0 | E60: =FORMULÁRIO!I49 -> 0 | F60: =FORMULÁRIO!L49 -> 0 | G60: =FORMULÁRIO!O49 -> 0 | H60: =FORMULÁRIO!R49 -> 0
A61: E3 | B61: Comprimento total (m): | C61: =FORMULÁRIO!C50 -> 15000 | D61: =FORMULÁRIO!F50 -> 15000 | E61: =FORMULÁRIO!I50 -> 15000 | F61: =FORMULÁRIO!L50 -> 15000 | G61: =FORMULÁRIO!O50 -> 15000 | H61: =FORMULÁRIO!R50 -> 15000
B62: Primeira Seção
A63: E4 | B63: Largura da borda interna (m): | C63: =FORMULÁRIO!C52 -> 150 | D63: =FORMULÁRIO!F52 -> 150 | E63: =FORMULÁRIO!I52 -> 150 | F63: =FORMULÁRIO!L52 -> 150 | G63: =FORMULÁRIO!O52 -> 150 | H63: =FORMULÁRIO!R52 -> 150
A64: E5 | B64: Elevação da borda interna (m): | C64: =FORMULÁRIO!C53 -> 2 | D64: =FORMULÁRIO!F53 -> 2 | E64: =FORMULÁRIO!I53 -> 33 | F64: =FORMULÁRIO!L53 -> 33 | G64: =FORMULÁRIO!O53 -> 3 | H64: =FORMULÁRIO!R53 -> 3
A65: E6 | B65: Distância da cabeceira (m): | C65: =FORMULÁRIO!C54 -> 60 | D65: =FORMULÁRIO!F54 -> 60 | E65: =FORMULÁRIO!I54 -> 60 | F65: =FORMULÁRIO!L54 -> 60 | G65: =FORMULÁRIO!O54 -> 60 | H65: =FORMULÁRIO!R54 -> 60
A66: E7 | B66: Abertura total lado direito (%): | C66: =FORMULÁRIO!C55 -> 0.15 | D66: =FORMULÁRIO!F55 -> 0.15 | E66: =FORMULÁRIO!I55 -> 0.15 | F66: =FORMULÁRIO!L55 -> 0.15 | G66: =FORMULÁRIO!O55 -> 0.15 | H66: =FORMULÁRIO!R55 -> 0.15
A67: E8 | B67: Abertura total lado esquerdo (%): | C67: =FORMULÁRIO!C56 -> 0.15 | D67: =FORMULÁRIO!F56 -> 0.15 | E67: =FORMULÁRIO!I56 -> 0.15 | F67: =FORMULÁRIO!L56 -> 0.15 | G67: =FORMULÁRIO!O56 -> 0.15 | H67: =FORMULÁRIO!R56 -> 0.15
A68: E9 | B68: Comprimento (m): | C68: =FORMULÁRIO!C57 -> 3000 | D68: =FORMULÁRIO!F57 -> 3000 | E68: =FORMULÁRIO!I57 -> 3000 | F68: =FORMULÁRIO!L57 -> 3000 | G68: =FORMULÁRIO!O57 -> 3000 | H68: =FORMULÁRIO!R57 -> 3000
A69: E10 | B69: Gradiente (%): | C69: =FORMULÁRIO!C58 -> 0.025 | D69: =FORMULÁRIO!F58 -> 0.025 | E69: =FORMULÁRIO!I58 -> 0.025 | F69: =FORMULÁRIO!L58 -> 0.025 | G69: =FORMULÁRIO!O58 -> 0.025 | H69: =FORMULÁRIO!R58 -> 0.025
A70: E11 | B70: Elevação da borda externa (m): | C70: =FORMULÁRIO!C59 -> 77 | D70: =FORMULÁRIO!F59 -> 77 | E70: =FORMULÁRIO!I59 -> 108 | F70: =FORMULÁRIO!L59 -> 108 | G70: =FORMULÁRIO!O59 -> 78 | H70: =FORMULÁRIO!R59 -> 78
B71: Segunda Seção
A72: E12 | B72: Largura da borda interna (m): | C72: =FORMULÁRIO!C61 -> 1050 | D72: =FORMULÁRIO!F61 -> 1050 | E72: =FORMULÁRIO!I61 -> 1050 | F72: =FORMULÁRIO!L61 -> 1050 | G72: =FORMULÁRIO!O61 -> 1050 | H72: =FORMULÁRIO!R61 -> 1050
A73: E13 | B73: Elevação da borda interna (m): | C73: =FORMULÁRIO!C62 -> 77 | D73: =FORMULÁRIO!F62 -> 77 | E73: =FORMULÁRIO!I62 -> 108 | F73: =FORMULÁRIO!L62 -> 108 | G73: =FORMULÁRIO!O62 -> 78 | H73: =FORMULÁRIO!R62 -> 78
A74: E14 | B74: Abertura total lado direito (%): | C74: =FORMULÁRIO!C63 -> 0.15 | D74: =FORMULÁRIO!F63 -> 0.15 | E74: =FORMULÁRIO!I63 -> 0.15 | F74: =FORMULÁRIO!L63 -> 0.15 | G74: =FORMULÁRIO!O63 -> 0.15 | H74: =FORMULÁRIO!R63 -> 0.15
A75: E15 | B75: Abertura total lado esquerdo (%): | C75: =FORMULÁRIO!C64 -> 0.15 | D75: =FORMULÁRIO!F64 -> 0.15 | E75: =FORMULÁRIO!I64 -> 0.15 | F75: =FORMULÁRIO!L64 -> 0.15 | G75: =FORMULÁRIO!O64 -> 0.15 | H75: =FORMULÁRIO!R64 -> 0.15
A76: E16 | B76: Comprimento (m): | C76: =FORMULÁRIO!C65 -> 12000 | D76: =FORMULÁRIO!F65 -> 12000 | E76: =FORMULÁRIO!I65 -> 12000 | F76: =FORMULÁRIO!L65 -> 12000 | G76: =FORMULÁRIO!O65 -> 12000 | H76: =FORMULÁRIO!R65 -> 12000
A77: E17 | B77: Gradiente (%): | C77: =FORMULÁRIO!C66 -> 0.03 | D77: =FORMULÁRIO!F66 -> 0.03 | E77: =FORMULÁRIO!I66 -> 0.03 | F77: =FORMULÁRIO!L66 -> 0.03 | G77: =FORMULÁRIO!O66 -> 0.03 | H77: =FORMULÁRIO!R66 -> 0.03
A78: E18 | B78: Elevação da borda externa (m): | C78: =FORMULÁRIO!C67 -> 437 | D78: =FORMULÁRIO!F67 -> 437 | E78: =FORMULÁRIO!I67 -> 468 | F78: =FORMULÁRIO!L67 -> 468 | G78: =FORMULÁRIO!O67 -> 438 | H78: =FORMULÁRIO!R67 -> 438
B79: Seção Horizontal
A80: E19 | B80: Largura da borda interna (m): | C80: =FORMULÁRIO!C69 -> 4650 | D80: =FORMULÁRIO!F69 -> 4650 | E80: =FORMULÁRIO!I69 -> 4650 | F80: =FORMULÁRIO!L69 -> 4650 | G80: =FORMULÁRIO!O69 -> 4650 | H80: =FORMULÁRIO!R69 -> 4650
A81: E20 | B81: Abertura total lado direito (%): | C81: =FORMULÁRIO!C70 -> 0.15 | D81: =FORMULÁRIO!F70 -> 0.15 | E81: =FORMULÁRIO!I70 -> 0.15 | F81: =FORMULÁRIO!L70 -> 0.15 | G81: =FORMULÁRIO!O70 -> 0.15 | H81: =FORMULÁRIO!R70 -> 0.15
A82: E21 | B82: Abertura total lado esquerdo (%): | C82: =FORMULÁRIO!C71 -> 0.15 | D82: =FORMULÁRIO!F71 -> 0.15 | E82: =FORMULÁRIO!I71 -> 0.15 | F82: =FORMULÁRIO!L71 -> 0.15 | G82: =FORMULÁRIO!O71 -> 0.15 | H82: =FORMULÁRIO!R71 -> 0.15
A83: E22 | B83: Comprimento (m): | C83: =FORMULÁRIO!C72 -> NA | D83: =FORMULÁRIO!F72 -> NA | E83: =FORMULÁRIO!I72 -> NA | F83: =FORMULÁRIO!L72 -> NA | G83: =FORMULÁRIO!O72 -> NA | H83: =FORMULÁRIO!R72 -> NA
A84: E23 | B84: Elevação (m): | C84: =FORMULÁRIO!C73 -> 437 | D84: =FORMULÁRIO!F73 -> 437 | E84: =FORMULÁRIO!I73 -> 468 | F84: =FORMULÁRIO!L73 -> 468 | G84: =FORMULÁRIO!O73 -> 438 | H84: =FORMULÁRIO!R73 -> 438
A85: F | B85: Superfície de Decolagem: | C85: CAB 1 | D85: CAB 2 | E85: =FORMULÁRIO!I74 -> CAB 3 | F85: =FORMULÁRIO!L74 -> CAB 4 | G85: CAB 5 | H85: CAB 6
A86: F1 | B86: Largura da borda interna (m): | C86: =FORMULÁRIO!C75 -> 180 | D86: =FORMULÁRIO!F75 -> 180 | E86: =FORMULÁRIO!I75 -> 180 | F86: =FORMULÁRIO!L75 -> 180 | G86: =FORMULÁRIO!O75 -> 180 | H86: =FORMULÁRIO!R75 -> 180
A87: F2 | B87: Elevação da borda interna (m): | C87: =FORMULÁRIO!C76 -> 2 | D87: =FORMULÁRIO!F76 -> 2 | E87: =FORMULÁRIO!I76 -> 33 | F87: =FORMULÁRIO!L76 -> 33 | G87: =FORMULÁRIO!O76 -> 33 | H87: =FORMULÁRIO!R76 -> 3
A88: F3 | B88: Distância da cabeceira oposta (m): | C88: =FORMULÁRIO!C77 -> 60 | D88: =FORMULÁRIO!F77 -> 60 | E88: =FORMULÁRIO!I77 -> 60 | F88: =FORMULÁRIO!L77 -> 60 | G88: =FORMULÁRIO!O77 -> 60 | H88: =FORMULÁRIO!R77 -> 60
A89: F4 | B89: Abertura para cada lado (%): | C89: =FORMULÁRIO!C78 -> 0.1 | D89: =FORMULÁRIO!F78 -> 0.1 | E89: =FORMULÁRIO!I78 -> 0.1 | F89: =FORMULÁRIO!L78 -> 0.1 | G89: =FORMULÁRIO!O78 -> 0.1 | H89: =FORMULÁRIO!R78 -> 0.1
A90: F5 | B90: Largura final (m): | C90: =FORMULÁRIO!C79 -> 1200 | D90: =FORMULÁRIO!F79 -> 1200 | E90: =FORMULÁRIO!I79 -> 1200 | F90: =FORMULÁRIO!L79 -> 1200 | G90: =FORMULÁRIO!O79 -> 1200 | H90: =FORMULÁRIO!R79 -> 1200
A91: F6 | B91: Comprimento (m): | C91: =FORMULÁRIO!C80 -> 15000 | D91: =FORMULÁRIO!F80 -> 15000 | E91: =FORMULÁRIO!I80 -> 15000 | F91: =FORMULÁRIO!L80 -> 15000 | G91: =FORMULÁRIO!O80 -> 15000 | H91: =FORMULÁRIO!R80 -> 15000
A92: F7 | B92: Gradiente (%): | C92: =FORMULÁRIO!C81 -> 0.04 | D92: =FORMULÁRIO!F81 -> 0.04 | E92: =FORMULÁRIO!I81 -> 0.04 | F92: =FORMULÁRIO!L81 -> 0.04 | G92: =FORMULÁRIO!O81 -> 0.04 | H92: =FORMULÁRIO!R81 -> 0.04
A93: F8 | B93: Elevação da borda externa (m): | C93: =FORMULÁRIO!C82 -> 602 | D93: =FORMULÁRIO!F82 -> 602 | E93: =FORMULÁRIO!I82 -> 633 | F93: =FORMULÁRIO!L82 -> 633 | G93: =FORMULÁRIO!O82 -> 633 | H93: =FORMULÁRIO!R82 -> 603
A94: G | B94: Superfície de Aprox. Interna: | C94: CAB 1 | D94: CAB 2 | E94: =FORMULÁRIO!I83 -> CAB 3 | F94: =FORMULÁRIO!L83 -> CAB 4 | G94: CAB 5 | H94: CAB 6
A95: G1 | B95: Largura da borda interna (m): | C95: =FORMULÁRIO!C84 -> 90 | D95: =FORMULÁRIO!F84 -> 90 | E95: =FORMULÁRIO!I84 -> 90 | F95: =FORMULÁRIO!L84 -> 90 | G95: =FORMULÁRIO!O84 -> 90 | H95: =FORMULÁRIO!R84 -> 90
A96: G2 | B96: Elevação da borda interna (m): | C96: =FORMULÁRIO!C85 -> 2 | D96: =FORMULÁRIO!F85 -> 2 | E96: =FORMULÁRIO!I85 -> 33 | F96: =FORMULÁRIO!L85 -> 33 | G96: =FORMULÁRIO!O85 -> 3 | H96: =FORMULÁRIO!R85 -> 3
A97: G3 | B97: Distância da cabeceira (m): | C97: =FORMULÁRIO!C86 -> 60 | D97: =FORMULÁRIO!F86 -> 60 | E97: =FORMULÁRIO!I86 -> 60 | F97: =FORMULÁRIO!L86 -> 60 | G97: =FORMULÁRIO!O86 -> 60 | H97: =FORMULÁRIO!R86 -> 60
A98: G4 | B98: Abertura para cada lado (%): | C98: =FORMULÁRIO!C87 -> PARALELA | D98: =FORMULÁRIO!F87 -> PARALELA | E98: =FORMULÁRIO!I87 -> PARALELA | F98: =FORMULÁRIO!L87 -> PARALELA | G98: =FORMULÁRIO!O87 -> PARALELA | H98: =FORMULÁRIO!R87 -> PARALELA
A99: G5 | B99: Comprimento (m): | C99: =FORMULÁRIO!C88 -> 900 | D99: =FORMULÁRIO!F88 -> 900 | E99: =FORMULÁRIO!I88 -> 900 | F99: =FORMULÁRIO!L88 -> 900 | G99: =FORMULÁRIO!O88 -> 900 | H99: =FORMULÁRIO!R88 -> 900
A100: G6 | B100: Gradiente (%): | C100: =FORMULÁRIO!C89 -> 0.025 | D100: =FORMULÁRIO!F89 -> 0.025 | E100: =FORMULÁRIO!I89 -> 0.025 | F100: =FORMULÁRIO!L89 -> 0.025 | G100: =FORMULÁRIO!O89 -> 0.025 | H100: =FORMULÁRIO!R89 -> 0.025
A101: G7 | B101: Elevação da borda externa (m): | C101: =FORMULÁRIO!C90 -> 24.5 | D101: =FORMULÁRIO!F90 -> 24.5 | E101: =FORMULÁRIO!I90 -> 55.5 | F101: =FORMULÁRIO!L90 -> 55.5 | G101: =FORMULÁRIO!O90 -> 25.5 | H101: =FORMULÁRIO!R90 -> 25.5
A102: H | B102: Superfície de Transição Interna: | C102: CAB 1 | D102: CAB 2 | E102: =FORMULÁRIO!I91 -> CAB 3 | F102: =FORMULÁRIO!L91 -> CAB 4 | G102: CAB 5 | H102: CAB 6
A103: H1 | B103: Gradiente (%): | C103: =FORMULÁRIO!C92 -> 0.4 | D103: =FORMULÁRIO!F92 -> 0.4 | E103: =FORMULÁRIO!I92 -> 0.4 | F103: =FORMULÁRIO!L92 -> 0.4 | G103: =FORMULÁRIO!O92 -> 0.4 | H103: =FORMULÁRIO!R92 -> 0.4
A104: H2 | B104: Elevação da borda superior (m): | C104: =FORMULÁRIO!C93 -> 45 | D104: =FORMULÁRIO!F93 -> 45 | E104: =FORMULÁRIO!I93 -> 45 | F104: =FORMULÁRIO!L93 -> 45 | G104: =FORMULÁRIO!O93 -> 45 | H104: =FORMULÁRIO!R93 -> 45
A105: I | B105: Superfície de Pouso Interrompido: | C105: CAB 1 | D105: CAB 2 | E105: =FORMULÁRIO!I94 -> CAB 3 | F105: =FORMULÁRIO!L94 -> CAB 4 | G105: CAB 5 | H105: CAB 6
A106: I1 | B106: Largura da borda interna (m): | C106: =FORMULÁRIO!C95 -> 90 | D106: =FORMULÁRIO!F95 -> 90 | E106: =FORMULÁRIO!I95 -> 90 | F106: =FORMULÁRIO!L95 -> 90 | G106: =FORMULÁRIO!O95 -> 90 | H106: =FORMULÁRIO!R95 -> 90
A107: I2 | B107: Elevação da borda interna (m): | C107: =FORMULÁRIO!C96 -> 0 | D107: =FORMULÁRIO!F96 -> 0 | E107: =FORMULÁRIO!I96 -> 0 | F107: =FORMULÁRIO!L96 -> 0 | G107: =FORMULÁRIO!O96 -> 0 | H107: =FORMULÁRIO!R96 -> 0
A108: I3 | B108: Distância da cabeceira (m): | C108: =FORMULÁRIO!C97 -> 3484.907 | D108: =FORMULÁRIO!F97 -> 3484.907 | E108: =FORMULÁRIO!I97 -> 3408.309 | F108: =FORMULÁRIO!L97 -> 3408.309 | G108: =FORMULÁRIO!O97 -> 5965.423 | H108: =FORMULÁRIO!R97 -> 5965.423
A109: I4 | B109: Abertura para cada lado (%): | C109: =FORMULÁRIO!C98 -> 0.1 | D109: =FORMULÁRIO!F98 -> 0.1 | E109: =FORMULÁRIO!I98 -> 0.1 | F109: =FORMULÁRIO!L98 -> 0.1 | G109: =FORMULÁRIO!O98 -> 0.1 | H109: =FORMULÁRIO!R98 -> 0.1
A110: I5 | B110: Gradiente (%): | C110: =FORMULÁRIO!C99 -> 0.04 | D110: =FORMULÁRIO!F99 -> 0.04 | E110: =FORMULÁRIO!I99 -> 0.04 | F110: =FORMULÁRIO!L99 -> 0.04 | G110: =FORMULÁRIO!O99 -> 0.04 | H110: =FORMULÁRIO!R99 -> 0.04
A111: I6 | B111: Elevação da borda externa (m): | C111: =FORMULÁRIO!C100 -> 45 | D111: =FORMULÁRIO!F100 -> 45 | E111: =FORMULÁRIO!I100 -> 45 | F111: =FORMULÁRIO!L100 -> 45 | G111: =FORMULÁRIO!O100 -> 45 | H111: =FORMULÁRIO!R100 -> 45
A112: J | B112: Superfície de Transição: | C112: Pista 1 | E112: Pista 2 | G112: Pista 3
A113: J1 | B113: Gradiente (%): | C113: =FORMULÁRIO!C102 -> 0.2 | E113: =FORMULÁRIO!I102 -> 0.2 | G113: =FORMULÁRIO!O102 -> 0.2 | I113: Aplicável | O113: Aplicável
A114: K | B114: Superfície Horizontal Interna: | C114: Pista 1 | E114: Pista 2 | G114: =FORMULÁRIO!O103 -> Pista 3
A115: K1 | B115: Altitude (m): | C115: =FORMULÁRIO!C104 -> 45 | E115: =FORMULÁRIO!I104 -> 45 | G115: =FORMULÁRIO!O104 -> 45
A116: K2 | B116: Raio (m) | C116: =FORMULÁRIO!C105 -> 3500 | E116: =FORMULÁRIO!I105 -> 3500 | G116: =FORMULÁRIO!O105 -> 3500
A117: L | B117: Superfície Cônica: | C117: Pista 1 | E117: =FORMULÁRIO!I106 -> Pista 2 | G117: =FORMULÁRIO!O106 -> Pista 3
A118: L1 | B118: Altitude (m): | C118: =FORMULÁRIO!C107 -> 45 | E118: =FORMULÁRIO!I107 -> 45 | G118: =FORMULÁRIO!O107 -> 45
A119: L2 | B119: Gradiente (%): | C119: =FORMULÁRIO!C108 -> 0.05 | E119: =FORMULÁRIO!I108 -> 0.05 | G119: =FORMULÁRIO!O108 -> 0.05
A120: M | B120: Superfície Horizontal Externa: | C120: Pista 1 | E120: =FORMULÁRIO!I109 -> Pista 2 | G120: =FORMULÁRIO!O109 -> Pista 3
A121: M1 | B121: Raio (m): | C121: =FORMULÁRIO!C110 -> 20000 | E121: =FORMULÁRIO!I110 -> 20000 | G121: =FORMULÁRIO!O110 -> 20000 | I121: Esquerda | L121: Esquerda | O121: Esquerda | R121: Esquerda
A122: M2 | B122: Altitude (m): | C122: =FORMULÁRIO!C111 -> 150 | E122: =FORMULÁRIO!I111 -> 150 | G122: =FORMULÁRIO!O111 -> 150 | I122: 152 | L122: 152 | O122: 152 | R122: 152
A123: N | B123: Superfície de Prot Voo Visual: | C123: Pista 1 | E123: =FORMULÁRIO!I112 -> Pista 2 | G123: Pista 3
A124: N1 | B124: Área 1: | C124: =FORMULÁRIO!C113 -> Aplicável | E124: =FORMULÁRIO!I113 -> 0 | G124: =FORMULÁRIO!O113 -> 0 | I124: Aplicável | O124: NA
A125: N2 | B125: Largura (m): | C125: =FORMULÁRIO!C114 -> 2350 | E125: =FORMULÁRIO!I114 -> NA | G125: =FORMULÁRIO!O114 -> NA | I125: A | O125: B
A126: N3 | B126: Buffer (m): | C126: =FORMULÁRIO!C115 -> 470 | E126: =FORMULÁRIO!I115 -> NA | G126: =FORMULÁRIO!O115 -> NA
A127: N4 | B127: Comprimento (m): | C127: =FORMULÁRIO!C116 -> 2350 | E127: =FORMULÁRIO!I116 -> NA | G127: =FORMULÁRIO!O116 -> NA
C128: CAB 1 | D128: CAB 2 | E128: CAB 3 | F128: CAB 4 | G128: CAB 5 | H128: CAB 6
A129: N5 | B129: Altitude seção de través (m): | C129: =FORMULÁRIO!C118 -> -76.2009266 | D129: =FORMULÁRIO!F118 -> -76.2009266 | E129: =FORMULÁRIO!I118 -> NA | F129: =FORMULÁRIO!L118 -> NA | G129: =FORMULÁRIO!O118 -> NA | H129: =FORMULÁRIO!R118 -> NA
A130: N6 | B130: Altitude seção de aprox/dep (m): | C130: =FORMULÁRIO!C119 -> -99.06120458 | D130: =FORMULÁRIO!F119 -> -99.06120458 | E130: =FORMULÁRIO!I119 -> NA | F130: =FORMULÁRIO!L119 -> NA | G130: =FORMULÁRIO!O119 -> NA | H130: =FORMULÁRIO!R119 -> NA
C131: CAB 1 | D131: CAB 2 | E131: CAB 3 | F131: CAB 4 | G131: CAB 5 | H131: CAB 6
A132: N7 | B132: Curvas: | C132: =FORMULÁRIO!C121 -> 0 | D132: =FORMULÁRIO!F121 -> 0 | E132: =FORMULÁRIO!I121 -> 0 | F132: =FORMULÁRIO!L121 -> 0 | G132: =FORMULÁRIO!O121 -> 0 | H132: =FORMULÁRIO!R121 -> 0
A133: N8 | B133: Altura mínima do circuito de tráfego: | C133: =FORMULÁRIO!C122 -> 0 | D133: =FORMULÁRIO!F122 -> 0 | E133: =FORMULÁRIO!I122 -> 0 | F133: =FORMULÁRIO!L122 -> 0 | G133: =FORMULÁRIO!O122 -> 0 | H133: =FORMULÁRIO!R122 -> 0 | I133: Esquerda | L133: Direita | O133: Direita | R133: Esquerda
C134: Pista 1 | E134: Pista 2 | G134: Pista 3 | I134: 305 | L134: 305 | O134: 305 | R134: 335
A135: N9 | B135: Área 2: | C135: =FORMULÁRIO!C124 -> Aplicável | E135: =FORMULÁRIO!I124 -> 0 | G135: =FORMULÁRIO!O124 -> 0
A136: N10 | B136: Categoria de performance crítica: | C136: =FORMULÁRIO!C125 -> 0 | E136: =FORMULÁRIO!I125 -> 0 | G136: =FORMULÁRIO!O125 -> 0 | I136: Aplicável | O136: Aplicável
A137: N11 | B137: Largura (m): | C137: =FORMULÁRIO!C126 -> 4170 | E137: =FORMULÁRIO!I126 -> NA | G137: =FORMULÁRIO!O126 -> NA
A138: N12 | B138: Buffer (m): | C138: =FORMULÁRIO!C127 -> 930 | E138: =FORMULÁRIO!I127 -> NA | G138: =FORMULÁRIO!O127 -> NA
A139: N13 | B139: Comprimento (m): | C139: =FORMULÁRIO!C128 -> 4170 | E139: =FORMULÁRIO!I128 -> NA | G139: =FORMULÁRIO!O128 -> NA
C140: CAB 1 | D140: CAB 2 | E140: CAB 3 | F140: CAB 4 | G140: CAB 5 | H140: CAB 6
A141: N14 | B141: Altitude seção través (m): | C141: =FORMULÁRIO!C130 -> -152.4018532 | D141: =FORMULÁRIO!F130 -> -152.4018532 | E141: =FORMULÁRIO!I130 -> NA | F141: =FORMULÁRIO!L130 -> NA | G141: =FORMULÁRIO!O130 -> NA | H141: =FORMULÁRIO!R130 -> NA
A142: N15 | B142: Altitude seção aprox/dep (m): | C142: =FORMULÁRIO!C131 -> -198.1224092 | D142: =FORMULÁRIO!F131 -> -198.1224092 | E142: =FORMULÁRIO!I131 -> NA | F142: =FORMULÁRIO!L131 -> NA | G142: =FORMULÁRIO!O131 -> NA | H142: =FORMULÁRIO!R131 -> NA
C143: CAB 1 | D143: CAB 2 | E143: CAB 3 | F143: CAB 4 | G143: CAB 5 | H143: CAB 6 | I143: Esquerda | L143: Direita | O143: Esquerda | R143: Esquerda
A144: N16 | B144: Curvas: | C144: =FORMULÁRIO!C133 -> 0 | D144: =FORMULÁRIO!F133 -> 0 | E144: =FORMULÁRIO!I133 -> 0 | F144: =FORMULÁRIO!L133 -> 0 | G144: =FORMULÁRIO!O133 -> 0 | H144: =FORMULÁRIO!R133 -> 0
A145: N17 | B145: Altura mínima do circ. de tráfego: | C145: =FORMULÁRIO!C134 -> 0 | D145: =FORMULÁRIO!F134 -> 0 | E145: =FORMULÁRIO!I134 -> 0 | F145: =FORMULÁRIO!L134 -> 0 | G145: =FORMULÁRIO!O134 -> 0 | H145: =FORMULÁRIO!R134 -> 0
C146: Pista 1 | E146: Pista 2 | G146: Pista 3
A147: N18 | B147: Área 3: | C147: =FORMULÁRIO!C136 -> Aplicável | E147: =FORMULÁRIO!I136 -> 0 | G147: =FORMULÁRIO!O136 -> 0
A148: N19 | B148: Largura (m): | C148: =FORMULÁRIO!C137 -> 7410 | E148: =FORMULÁRIO!I137 -> NA | G148: =FORMULÁRIO!O137 -> NA
A149: N20 | B149: Buffer (m): | C149: =FORMULÁRIO!C138 -> 930 | E149: =FORMULÁRIO!I138 -> NA | G149: =FORMULÁRIO!O138 -> NA
A150: N21 | B150: Comprimento (m): | C150: =FORMULÁRIO!C139 -> 5560 | E150: =FORMULÁRIO!I139 -> NA | G150: =FORMULÁRIO!O139 -> NA
A151: N22 | B151: Altitude seção través (m): | C151: =FORMULÁRIO!C140 -> 304.8037064 | E151: =FORMULÁRIO!I140 -> NA | G151: =FORMULÁRIO!O140 -> NA
A152: N23 | B152: Altitude seção aprox/dep (m): | C152: =FORMULÁRIO!C141 -> 259.0831505 | E152: =FORMULÁRIO!I141 -> NA | G152: =FORMULÁRIO!O141 -> NA
C153: CAB 1 | D153: CAB 2 | E153: CAB 3 | F153: CAB 4 | G153: CAB 5 | H153: CAB 6
A154: N24 | B154: Curvas: | C154: =FORMULÁRIO!C143 -> 0 | D154: =FORMULÁRIO!F143 -> 0 | E154: =FORMULÁRIO!I143 -> 0 | F154: =FORMULÁRIO!L143 -> 0 | G154: =FORMULÁRIO!O143 -> 0 | H154: =FORMULÁRIO!R143 -> 0

Sheet FORMULÁRIO (hidden)
B2: Dados Gerais do Aeródromo: | P2: =ROUND(C20,0) -> 25
P3: =ROUND(F20,0) -> 7
P4: =ROUND(I20,0) -> 25 | AA4: =IF(AA5<180,AA5+180,AA5-180) -> 33.52334784 | AB4: =IF(AB5<180,AB5+180,AB5-180) -> 34.42242351 | AC4: =IF(AC5<180,AC5+180,AC5-180) -> 209.7718395
P5: =ROUND(L20,0) -> 7 | W5: SIM | X5: Diurno | Y5: 1 | Z5: A | AA5: =CoAz!J7 -> 213.5233478 | AB5: ='CoAz (2)'!J7 -> 214.4224235 | AC5: ='CoAz (3)'!J7 -> 29.77183947 | AD5: Pouso | AE5: NA | AF5: Aplicável | AG5: 75 | AH5: Esquerda | AI5: 152 | AJ5: 305
P6: =ROUND(O20,0) -> 6 | W6: NÃO | X6: Noturno | Y6: 2 | Z6: B | AA6: =AA5-INT(AA5) -> 0.5233478401 | AB6: =AB5-INT(AB5) -> 0.4224235141 | AC6: =AC5-INT(AC5) -> 0.7718394682 | AD6: Decolagem | AE6: VFR | AF6: NA | AG6: 90 | AH6: Direita | AI6: 183 | AJ6: 335
B7: Elevação: | C7: =IF(O15=0,IF(I15=0,C15,MAX(C15:T15)),MAX(C15:T15)) -> 0 | P7: =ROUND(R20,0) -> 24 | W7: =AE5 -> NA | X7: Diurno e Noturno | Y7: 3 | Z7: C | AA7: =AA6*60 -> 31.40087041 | AB7: =AB6*60 -> 25.34541084 | AC7: =AC6*60 -> 46.31036809 | AD7: Pouso e Decolagem | AE7: IFR NPA | AH7: Ambas | AI7: NA | AJ7: 366
B8: Declinação magnética | C8: =-'DADOS GERAIS-A'!C15 -> -33.333 | Y8: 4 | Z8: D | AA8: =ROUND((AA7-INT(AA7))*60,2) -> 24.05 | AB8: =ROUND((AB7-INT(AB7))*60,2) -> 20.72 | AC8: 18.62 | AE8: IFR PA CAT I | AH8: NA | AJ8: 396
B9: Dados Gerais da(s) Pista(s): | C9: PISTA 1 | I9: PISTA 2 | O9: PISTA 3 | Y9: NA | Z9: E | AA9: =(AA5-$C$8)/10 -> 24.68563478 | AB9: =(AB5-$C$8)/10 -> 24.77554235 | AC9: =(AC5-$C$8)/10 -> 6.310483947 | AE9: IFR PA CAT II | AJ9: 427
B10: Designação: | C10: =ROUND(C20,0) -> 25 | I10: =ROUND(I20,0) -> 25 | O10: =ROUND(O20,0) -> 6 | Z10: F | AE10: IFR PA CAT IIIa | AJ10: 457
C11: =ROUND(F20,0) -> 7 | I11: =ROUND(L20,0) -> 7 | O11: =ROUND(R20,0) -> 24 | Z11: A | AE11: IFR PA CAT IIIb | AJ11: NA
B12: Código de Referência do Aeródromo: | C12: =MAX(C26,F26,C29,F29) -> 0 | I12: =MAX(I26,L26,I29,L29) -> 0 | O12: =MAX(O26,R26,O29,R29) -> 0 | Z12: B | AE12: IFR PA CAT IIIc
B13: Comprimento: | C13: =IFERROR(distVincenty(grau_decimal(C22&" "&D22&" "&E22&" "&FORM!D22),grau_decimal(C23&" "&D23&" "&E23&" "&"W"),grau_decimal(F22&" "&G22&" "&H22&" "&FORM!D40),grau_decimal(F23&" "&G23&" "&H23&" "&"W")),"") -> 3304.907 | I13: =IFERROR(distVincenty(grau_decimal(I22&" "&J22&" "&K22&" "&FORM!F22),grau_decimal(I23&" "&J23&" "&K23&" "&"W"),grau_decimal(L22&" "&M22&" "&N22&" "&FORM!F40),grau_decimal(L23&" "&M23&" "&N23&" "&"W")),"") -> 3228.309 | O13: =IFERROR(distVincenty(grau_decimal(O22&" "&P22&" "&Q22&" "&FORM!H22),grau_decimal(O23&" "&P23&" "&Q23&" "&"W"),grau_decimal(R22&" "&S22&" "&T22&" "&FORM!H40),grau_decimal(R23&" "&S23&" "&T23&" "&"W")),"") -> 5785.423 | Z13: C
B14: Largura: | Z14: NA
B15: Maior elevação da pista
B16: Largura da Faixa de Pista (m): | C16: =PISTA!B8 -> 150 | I16: =PISTA!C8 -> 150 | O16: =PISTA!D8 -> 150
B17: Comprimento da Faixa de Pista (m): | C17: =PISTA!B9 -> 3424.907 | I17: =PISTA!C9 -> 3348.309 | O17: =PISTA!D9 -> 5905.423
B18: Período de Operação: | C18: Diurno e Noturno
C19: =IFERROR(grau_minuto_segundo(rumo2pontos((C22&" "&D22&" "&E22&" "&FORM!D22),(C23&" "&D23&" "&E23&" "&"W"),(F22&" "&G22&" "&H22&" "&FORM!D40),(F23&" "&G23&" "&H23&" "&"W"))),"") -> 213º 21' 08,514'' | F19: =IFERROR(grau_minuto_segundo(rumo2pontos((F22&" "&G22&" "&H22&" "&FORM!D40),(F23&" "&G23&" "&H23&" "&"W"),(C22&" "&D22&" "&E22&" "&FORM!D22),(C23&" "&D23&" "&E23&" "&"W"))),"") -> 33º 21' 19,29'' | I19: =IFERROR(grau_minuto_segundo(rumo2pontos((I22&" "&J22&" "&K22&" "&FORM!F22),(I23&" "&J23&" "&K23&" "&"W"),(L22&" "&M22&" "&N22&" "&FORM!F40),(L23&" "&M23&" "&N23&" "&"W"))),"") -> 214º 14' 57,68'' | L19: =IFERROR(grau_minuto_segundo(rumo2pontos((L22&" "&M22&" "&N22&" "&FORM!F40),(L23&" "&M23&" "&N23&" "&"W"),(I22&" "&J22&" "&K22&" "&FORM!F22),(I23&" "&J23&" "&K23&" "&"W"))),"") -> 34º 15' 08,525'' | O19: =IFERROR(grau_minuto_segundo(rumo2pontos((O22&" "&P22&" "&Q22&" "&FORM!H22),(O23&" "&P23&" "&Q23&" "&"W"),(R22&" "&S22&" "&T22&" "&FORM!H40),(R23&" "&S23&" "&T23&" "&"W"))),"") -> 29º 36' 56,54'' | R19: =IFERROR(grau_minuto_segundo(rumo2pontos((R22&" "&S22&" "&T22&" "&FORM!H40),(R23&" "&S23&" "&T23&" "&"W"),(O22&" "&P22&" "&Q22&" "&FORM!H22),(O23&" "&P23&" "&Q23&" "&"W"))),"") -> 209º 36' 39,49''
B20: Designação | C20: =IF(AA5-C8>359.999999,AA9-36,IF(ABS(AA9)=0,36,AA9)) -> 24.68563478 | F20: =IF(INT(C20)>18,C20-18,C20+18) -> 6.685634784 | I20: =IF(AB5-$C$8>359.999999,AB9-36,IF(ABS(AB9)=0,36,AB9)) -> 24.77554235 | L20: =IF(INT(I20)>18,I20-18,I20+18) -> 6.775542351 | O20: =IF(AC5-$C$8>359.999999,AC9-36,IF(ABS(AC9)=0,36,AC9)) -> 6.310483947 | R20: =IF(INT(O20)>18,O20-18,O20+18) -> 24.31048395
B21: Rumo verdadeiro | C21: =INT(AA5) -> 213 | D21: =INT(AA7) -> 31 | E21: =AA8 -> 24.05 | F21: =IF(C21<180,C21+180,C21-180) -> 33 | G21: =D21 -> 31 | H21: =E21 -> 24.05 | I21: =INT(AB5) -> 214 | J21: =INT(AB7) -> 25 | K21: =AB8 -> 20.72 | L21: =IF(I21<180,I21+180,I21-180) -> 34 | M21: =J21 -> 25 | N21: =K21 -> 20.72 | O21: =INT(AC5) -> 29 | P21: =INT(AC7) -> 46 | Q21: =AC8 -> 18.62 | R21: =IF(O21<180,O21+180,O21-180) -> 209 | S21: =P21 -> 46 | T21: =Q21 -> 18.62
B22: Coordenadas geográficas (latitude): | C22: 10 | D22: 20 | E22: 30.33 | F22: 10 | G22: 22 | H22: 0 | I22: 10 | J22: 23 | K22: 33.33 | L22: 10 | M22: 25 | N22: 0 | O22: 10 | P22: 25 | Q22: 35.66 | R22: 10 | S22: 22 | T22: 52.22
B23: Coordenadas geográficas (longitude): | C23: 45 | D23: 0 | E23: 0 | F23: 45 | G23: 1 | H23: 0 | I23: 45 | J23: 2 | K23: 0 | L23: 45 | M23: 3 | N23: 0 | O23: 45 | P23: 4 | Q23: 0 | R23: 45 | S23: 2 | T23: 25.55
B24: Elevação: | C24: 2 | F24: 2 | I24: 33 | L24: 33 | O24: 3 | R24: 3
B25: Tipo de utilização: | C25: Pouso e Decolagem | F25: Pouso e Decolagem
B26: Código de Referência para POUSO:
B27: Tipo de operação para POUSO:
B28: =IF(OR(C27="VFR",C27="IFR NPA",C27="NÃO APLICÁVEL"),"NÃO APLICÁVEL","Elevação da borda interna da superfície de pouso interrompido:") -> Elevação da borda interna da superfície de pouso interrompido: | C28: ='POUSO INTERROMPIDO'!B9 -> 3484.907 | D28: =IF(OR(C27="VFR",C27="IFR NPA",C27="NÃO APLICÁVEL"),"NA","da CAB:") -> da CAB: | F28: ='POUSO INTERROMPIDO'!E9 -> 3484.907 | G28: =IF(OR(F27="VFR",F27="IFR NPA",F27="NÃO APLICÁVEL"),"NA","da CAB:") -> da CAB: | I28: ='POUSO INTERROMPIDO'!H9 -> 3408.309 | J28: =IF(OR(I27="VFR",I27="IFR NPA",I27="NÃO APLICÁVEL"),"NA","da CAB:") -> da CAB: | L28: ='POUSO INTERROMPIDO'!K9 -> 3408.309 | M28: =IF(OR(L27="VFR",L27="IFR NPA",L27="NÃO APLICÁVEL"),"NA","da CAB:") -> da CAB: | O28: ='POUSO INTERROMPIDO'!N9 -> 5965.423 | P28: =IF(OR(O27="VFR",O27="IFR NPA",O27="NÃO APLICÁVEL"),"NA","da CAB:") -> da CAB: | R28: ='POUSO INTERROMPIDO'!Q9 -> 5965.423 | S28: =IF(OR(R27="VFR",R27="IFR NPA",R27="NÃO APLICÁVEL"),"NA","da CAB:") -> da CAB:
B29: Código de Referência para DECOLAGEM:
B30: Tipo de operação para DECOLAGEM:
B31: Possui Saída por Instrumentos em curva?
B32: PROCEDIMENTOS DE NAVEGAÇÃO AÉREA: | C32: Cabeceira MENOR: | F32: Cabeceira MAIOR: | I32: Cabeceira MENOR: | O32: Cabeceira MENOR: | R32: Cabeceira MAIOR:
B33: OCH:
B34: Separação de obstáculos (MOC):
B35: Rumo da Aproximação Final:
B36: OCH:
B37: Separação de obstáculos (MOC):
B38: Rumo da Aproximação Final:
B39: Zona de parada (STOPWAY)
B40: Comprimento:
B41: Largura:
B42: Zona desimpedida (CLEARWAY):
B43: Comprimento:
B44: Largura:
B45: Maior elevação da Faixa de Pista oposta ou da CLEARWAY:
B47: Superfície de Aproximação: | C47: CAB 1 | F47: CAB 2 | I47: CAB 3 | L47: CAB 4 | O47: CAB 5 | R47: CAB 6
B48: Divergência lado direito (%): | C48: =APROX!B12 -> 0 | F48: =APROX!E12 -> 0 | I48: =APROX!H12 -> 0 | L48: =APROX!K12 -> 0 | O48: =APROX!N12 -> 0 | R48: =APROX!Q12 -> 0
B49: Divergência lado esquerdo (%): | C49: =APROX!B13 -> 0 | F49: =APROX!E13 -> 0 | I49: =APROX!H13 -> 0 | L49: =APROX!K13 -> 0 | O49: =APROX!N13 -> 0 | R49: =APROX!Q13 -> 0
B50: Comprimento total (m): | C50: =APROX!B14 -> 15000 | F50: =APROX!E14 -> 15000 | I50: =APROX!H14 -> 15000 | L50: =APROX!K14 -> 15000 | O50: =APROX!N14 -> 15000 | R50: =APROX!Q14 -> 15000
B51: Primeira Seção
B52: Largura da borda interna (m): | C52: =APROX!B16 -> 150 | F52: =APROX!E16 -> 150 | I52: =APROX!H16 -> 150 | L52: =APROX!K16 -> 150 | O52: =APROX!N16 -> 150 | R52: =APROX!Q16 -> 150
B53: Elevação da borda interna (m): | C53: =APROX!B17 -> 2 | F53: =APROX!E17 -> 2 | I53: =APROX!H17 -> 33 | L53: =APROX!K17 -> 33 | O53: =APROX!N17 -> 3 | R53: =APROX!Q17 -> 3
B54: Distância da cabeceira (m): | C54: =APROX!B18 -> 60 | F54: =APROX!E18 -> 60 | I54: =APROX!H18 -> 60 | L54: =APROX!K18 -> 60 | O54: =APROX!N18 -> 60 | R54: =APROX!Q18 -> 60
B55: Abertura total lado direito (%): | C55: =APROX!B19 -> 0.15 | F55: =APROX!E19 -> 0.15 | I55: =APROX!H19 -> 0.15 | L55: =APROX!K19 -> 0.15 | O55: =APROX!N19 -> 0.15 | R55: =APROX!Q19 -> 0.15
B56: Abertura total lado esquerdo (%): | C56: =APROX!B20 -> 0.15 | F56: =APROX!E20 -> 0.15 | I56: =APROX!H20 -> 0.15 | L56: =APROX!K20 -> 0.15 | O56: =APROX!N20 -> 0.15 | R56: =APROX!Q20 -> 0.15
B57: Comprimento (m): | C57: =APROX!B21 -> 3000 | F57: =APROX!E21 -> 3000 | I57: =APROX!H21 -> 3000 | L57: =APROX!K21 -> 3000 | O57: =APROX!N21 -> 3000 | R57: =APROX!Q21 -> 3000
B58: Gradiente (%): | C58: =APROX!B22 -> 0.025 | F58: =APROX!E22 -> 0.025 | I58: =APROX!H22 -> 0.025 | L58: =APROX!K22 -> 0.025 | O58: =APROX!N22 -> 0.025 | R58: =APROX!Q22 -> 0.025
B59: Elevação da borda externa (m): | C59: =APROX!B23 -> 77 | F59: =APROX!E23 -> 77 | I59: =APROX!H23 -> 108 | L59: =APROX!K23 -> 108 | O59: =APROX!N23 -> 78 | R59: =APROX!Q23 -> 78
B60: Segunda Seção
B61: Largura da borda interna (m): | C61: =APROX!B25 -> 1050 | F61: =APROX!E25 -> 1050 | I61: =APROX!H25 -> 1050 | L61: =APROX!K25 -> 1050 | O61: =APROX!N25 -> 1050 | R61: =APROX!Q25 -> 1050
B62: Elevação da borda interna (m): | C62: =APROX!B26 -> 77 | F62: =APROX!E26 -> 77 | I62: =APROX!H26 -> 108 | L62: =APROX!K26 -> 108 | O62: =APROX!N26 -> 78 | R62: =APROX!Q26 -> 78
B63: Abertura total lado direito (%): | C63: =APROX!B27 -> 0.15 | F63: =APROX!E27 -> 0.15 | I63: =APROX!H27 -> 0.15 | L63: =APROX!K27 -> 0.15 | O63: =APROX!N27 -> 0.15 | R63: =APROX!Q27 -> 0.15
B64: Abertura total lado esquerdo (%): | C64: =APROX!B28 -> 0.15 | F64: =APROX!E28 -> 0.15 | I64: =APROX!H28 -> 0.15 | L64: =APROX!K28 -> 0.15 | O64: =APROX!N28 -> 0.15 | R64: =APROX!Q28 -> 0.15
B65: Comprimento (m): | C65: =APROX!B29 -> 12000 | F65: =APROX!E29 -> 12000 | I65: =APROX!H29 -> 12000 | L65: =APROX!K29 -> 12000 | O65: =APROX!N29 -> 12000 | R65: =APROX!Q29 -> 12000
B66: Gradiente (%): | C66: =APROX!B30 -> 0.03 | F66: =APROX!E30 -> 0.03 | I66: =APROX!H30 -> 0.03 | L66: =APROX!K30 -> 0.03 | O66: =APROX!N30 -> 0.03 | R66: =APROX!Q30 -> 0.03
B67: Elevação da borda externa (m): | C67: =APROX!B31 -> 437 | F67: =APROX!E31 -> 437 | I67: =APROX!H31 -> 468 | L67: =APROX!K31 -> 468 | O67: =APROX!N31 -> 438 | R67: =APROX!Q31 -> 438
B68: Seção Horizontal
B69: Largura da borda interna (m): | C69: =APROX!B33 -> 4650 | F69: =APROX!E33 -> 4650 | I69: =APROX!H33 -> 4650 | L69: =APROX!K33 -> 4650 | O69: =APROX!N33 -> 4650 | R69: =APROX!Q33 -> 4650
B70: Abertura total lado direito (%): | C70: =APROX!B34 -> 0.15 | F70: =APROX!E34 -> 0.15 | I70: =APROX!H34 -> 0.15 | L70: =APROX!K34 -> 0.15 | O70: =APROX!N34 -> 0.15 | R70: =APROX!Q34 -> 0.15
B71: Abertura total lado esquerdo (%): | C71: =APROX!B35 -> 0.15 | F71: =APROX!E35 -> 0.15 | I71: =APROX!H35 -> 0.15 | L71: =APROX!K35 -> 0.15 | O71: =APROX!N35 -> 0.15 | R71: =APROX!Q35 -> 0.15
B72: Comprimento (m): | C72: =APROX!B36 -> NA | F72: =APROX!E36 -> NA | I72: =APROX!H36 -> NA | L72: =APROX!K36 -> NA | O72: =APROX!N36 -> NA | R72: =APROX!Q36 -> NA
B73: Elevação (m): | C73: =APROX!B37 -> 437 | F73: =APROX!E37 -> 437 | I73: =APROX!H37 -> 468 | L73: =APROX!K37 -> 468 | O73: =APROX!N37 -> 438 | R73: =APROX!Q37 -> 438
B74: Superfície de Decolagem: | C74: CAB 1 | F74: CAB 2 | I74: CAB 3 | L74: CAB 4 | O74: CAB 5 | R74: CAB 6
B75: Largura da borda interna (m): | C75: =DEC!B7 -> 180 | F75: =DEC!E7 -> 180 | I75: =DEC!H7 -> 180 | L75: =DEC!K7 -> 180 | O75: =DEC!N7 -> 180 | R75: =DEC!Q7 -> 180
B76: Elevação da borda interna (m): | C76: =DEC!B8 -> 2 | F76: =DEC!E8 -> 2 | I76: =DEC!H8 -> 33 | L76: =DEC!K8 -> 33 | O76: =DEC!N8 -> 33 | R76: =DEC!Q8 -> 3
B77: Distância do final da pista (m): | C77: =DEC!B9 -> 60 | F77: =DEC!E9 -> 60 | I77: =DEC!H9 -> 60 | L77: =DEC!K9 -> 60 | O77: =DEC!N9 -> 60 | R77: =DEC!Q9 -> 60
B78: Abertura para cada lado (%): | C78: =DEC!B10 -> 0.1 | F78: =DEC!E10 -> 0.1 | I78: =DEC!H10 -> 0.1 | L78: =DEC!K10 -> 0.1 | O78: =DEC!N10 -> 0.1 | R78: =DEC!Q10 -> 0.1
B79: Largura final (m): | C79: =DEC!B11 -> 1200 | F79: =DEC!E11 -> 1200 | I79: =DEC!H11 -> 1200 | L79: =DEC!K11 -> 1200 | O79: =DEC!N11 -> 1200 | R79: =DEC!Q11 -> 1200
B80: Comprimento (m): | C80: =DEC!B12 -> 15000 | F80: =DEC!E12 -> 15000 | I80: =DEC!H12 -> 15000 | L80: =DEC!K12 -> 15000 | O80: =DEC!N12 -> 15000 | R80: =DEC!Q12 -> 15000
B81: Gradiente (%): | C81: =DEC!B13 -> 0.04 | F81: =DEC!E13 -> 0.04 | I81: =DEC!H13 -> 0.04 | L81: =DEC!K13 -> 0.04 | O81: =DEC!N13 -> 0.04 | R81: =DEC!Q13 -> 0.04
B82: Elevação da borda externa (m): | C82: =DEC!B14 -> 602 | F82: =DEC!E14 -> 602 | I82: =DEC!H14 -> 633 | L82: =DEC!K14 -> 633 | O82: =DEC!N14 -> 633 | R82: =DEC!Q14 -> 603
B83: Superfície de Aprox. Interna: | C83: CAB 1 | F83: CAB 2 | I83: CAB 3 | L83: CAB 4 | O83: CAB 5 | R83: CAB 6
B84: Largura da borda interna (m): | C84: ='APROX INTERNA'!B6 -> 90 | F84: ='APROX INTERNA'!E6 -> 90 | I84: ='APROX INTERNA'!H6 -> 90 | L84: ='APROX INTERNA'!K6 -> 90 | O84: ='APROX INTERNA'!N6 -> 90 | R84: ='APROX INTERNA'!Q6 -> 90
B85: Elevação da borda interna (m): | C85: ='APROX INTERNA'!B7 -> 2 | F85: ='APROX INTERNA'!E7 -> 2 | I85: ='APROX INTERNA'!H7 -> 33 | L85: ='APROX INTERNA'!K7 -> 33 | O85: ='APROX INTERNA'!N7 -> 3 | R85: ='APROX INTERNA'!Q7 -> 3
B86: Distância da cabeceira (m): | C86: ='APROX INTERNA'!B8 -> 60 | F86: ='APROX INTERNA'!E8 -> 60 | I86: ='APROX INTERNA'!H8 -> 60 | L86: ='APROX INTERNA'!K8 -> 60 | O86: ='APROX INTERNA'!N8 -> 60 | R86: ='APROX INTERNA'!Q8 -> 60
B87: Abertura para cada lado (%): | C87: ='APROX INTERNA'!B9 -> PARALELA | F87: ='APROX INTERNA'!E9 -> PARALELA | I87: ='APROX INTERNA'!H9 -> PARALELA | L87: ='APROX INTERNA'!K9 -> PARALELA | O87: ='APROX INTERNA'!N9 -> PARALELA | R87: ='APROX INTERNA'!Q9 -> PARALELA
B88: Comprimento (m): | C88: ='APROX INTERNA'!B10 -> 900 | F88: ='APROX INTERNA'!E10 -> 900 | I88: ='APROX INTERNA'!H10 -> 900 | L88: ='APROX INTERNA'!K10 -> 900 | O88: ='APROX INTERNA'!N10 -> 900 | R88: ='APROX INTERNA'!Q10 -> 900
B89: Gradiente (%): | C89: ='APROX INTERNA'!B11 -> 0.025 | F89: ='APROX INTERNA'!E11 -> 0.025 | I89: ='APROX INTERNA'!H11 -> 0.025 | L89: ='APROX INTERNA'!K11 -> 0.025 | O89: ='APROX INTERNA'!N11 -> 0.025 | R89: ='APROX INTERNA'!Q11 -> 0.025
B90: Elevação da borda externa (m): | C90: ='APROX INTERNA'!B12 -> 24.5 | F90: ='APROX INTERNA'!E12 -> 24.5 | I90: ='APROX INTERNA'!H12 -> 55.5 | L90: ='APROX INTERNA'!K12 -> 55.5 | O90: ='APROX INTERNA'!N12 -> 25.5 | R90: ='APROX INTERNA'!Q12 -> 25.5
B91: Superfície de Transição Interna: | C91: CAB 1 | F91: CAB 2 | I91: CAB 3 | L91: CAB 4 | O91: CAB 5 | R91: CAB 6
B92: Gradiente (%): | C92: ='TRANSIÇÃO INTERNA'!B6 -> 0.4 | F92: ='TRANSIÇÃO INTERNA'!E6 -> 0.4 | I92: ='TRANSIÇÃO INTERNA'!H6 -> 0.4 | L92: ='TRANSIÇÃO INTERNA'!K6 -> 0.4 | O92: ='TRANSIÇÃO INTERNA'!N6 -> 0.4 | R92: ='TRANSIÇÃO INTERNA'!Q6 -> 0.4
B93: Elevação da borda superior (m): | C93: ='TRANSIÇÃO INTERNA'!B7 -> 45 | F93: ='TRANSIÇÃO INTERNA'!E7 -> 45 | I93: ='TRANSIÇÃO INTERNA'!H7 -> 45 | L93: ='TRANSIÇÃO INTERNA'!K7 -> 45 | O93: ='TRANSIÇÃO INTERNA'!N7 -> 45 | R93: ='TRANSIÇÃO INTERNA'!Q7 -> 45
B94: Superfície de Pouso Interrompido: | C94: CAB 1 | F94: CAB 2 | I94: CAB 3 | L94: CAB 4 | O94: CAB 5 | R94: CAB 6
B95: Largura da borda interna (m): | C95: ='POUSO INTERROMPIDO'!B7 -> 90 | F95: ='POUSO INTERROMPIDO'!E7 -> 90 | I95: ='POUSO INTERROMPIDO'!H7 -> 90 | L95: ='POUSO INTERROMPIDO'!K7 -> 90 | O95: ='POUSO INTERROMPIDO'!N7 -> 90 | R95: ='POUSO INTERROMPIDO'!Q7 -> 90
B96: Elevação da borda interna (m): | C96: ='POUSO INTERROMPIDO'!B8 -> 0 | F96: ='POUSO INTERROMPIDO'!E8 -> 0 | I96: ='POUSO INTERROMPIDO'!H8 -> 0 | L96: ='POUSO INTERROMPIDO'!K8 -> 0 | O96: ='POUSO INTERROMPIDO'!N8 -> 0 | R96: ='POUSO INTERROMPIDO'!Q8 -> 0
B97: Distância da cabeceira (m): | C97: ='POUSO INTERROMPIDO'!B9 -> 3484.907 | F97: ='POUSO INTERROMPIDO'!E9 -> 3484.907 | I97: ='POUSO INTERROMPIDO'!H9 -> 3408.309 | L97: ='POUSO INTERROMPIDO'!K9 -> 3408.309 | O97: ='POUSO INTERROMPIDO'!N9 -> 5965.423 | R97: ='POUSO INTERROMPIDO'!Q9 -> 5965.423
B98: Abertura para cada lado (%): | C98: ='POUSO INTERROMPIDO'!B10 -> 0.1 | F98: ='POUSO INTERROMPIDO'!E10 -> 0.1 | I98: ='POUSO INTERROMPIDO'!H10 -> 0.1 | L98: ='POUSO INTERROMPIDO'!K10 -> 0.1 | O98: ='POUSO INTERROMPIDO'!N10 -> 0.1 | R98: ='POUSO INTERROMPIDO'!Q10 -> 0.1
B99: Gradiente (%): | C99: ='POUSO INTERROMPIDO'!B11 -> 0.04 | F99: ='POUSO INTERROMPIDO'!E11 -> 0.04 | I99: ='POUSO INTERROMPIDO'!H11 -> 0.04 | L99: ='POUSO INTERROMPIDO'!K11 -> 0.04 | O99: ='POUSO INTERROMPIDO'!N11 -> 0.04 | R99: ='POUSO INTERROMPIDO'!Q11 -> 0.04
B100: Elevação da borda externa (m): | C100: ='POUSO INTERROMPIDO'!B12 -> 45 | F100: ='POUSO INTERROMPIDO'!E12 -> 45 | I100: ='POUSO INTERROMPIDO'!H12 -> 45 | L100: ='POUSO INTERROMPIDO'!K12 -> 45 | O100: ='POUSO INTERROMPIDO'!N12 -> 45 | R100: ='POUSO INTERROMPIDO'!Q12 -> 45
B101: Superfície de Transição: | C101: Pista 1 | I101: Pista 2 | O101: Pista 3
B102: Gradiente (%): | C102: =TRANSIÇÃO!B5 -> 0.2 | I102: =TRANSIÇÃO!C5 -> 0.2 | O102: =TRANSIÇÃO!D5 -> 0.2
B103: Superfície Horizontal Interna: | C103: Pista 1 | I103: Pista 2 | O103: Pista 3
B104: Altitude (m): | C104: ='HORIZONTAL INTERNA'!B4 -> 45 | I104: ='HORIZONTAL INTERNA'!C4 -> 45 | O104: ='HORIZONTAL INTERNA'!D4 -> 45
B105: Raio (m) | C105: ='HORIZONTAL INTERNA'!B5 -> 3500 | I105: ='HORIZONTAL INTERNA'!C5 -> 3500 | O105: ='HORIZONTAL INTERNA'!D5 -> 3500
B106: Superfície Cônica: | C106: Pista 1 | I106: Pista 2 | O106: Pista 3
B107: Altitude (m): | C107: =CÔNICA!B4 -> 45 | I107: =CÔNICA!C4 -> 45 | O107: =CÔNICA!D4 -> 45
B108: Gradiente (%): | C108: =CÔNICA!B5 -> 0.05 | I108: =CÔNICA!C5 -> 0.05 | O108: =CÔNICA!D5 -> 0.05
B109: Superfície de Prot voo IFR: | C109: Pista 1 | I109: Pista 2 | O109: Pista 3
B110: Raio (m): | C110: =IF(PISTA!B2="VFR","NA",20000) -> 20000 | I110: =IF(PISTA!C2="VFR","NA",20000) -> 20000 | O110: =IF(PISTA!D2="VFR","NA",20000) -> 20000
B111: Altitude (m): | C111: =IF(C110="NA","NA",$C$7+150) -> 150 | I111: =IF(I110="NA","NA",$C$7+150) -> 150 | O111: =IF(O110="NA","NA",$C$7+150) -> 150
B112: Superfície de Prot Voo Visual: | C112: Pista 1 | I112: Pista 2 | O112: Pista 3
B113: Área 1: | C113: Aplicável
B114: Largura (m): | C114: =SPVV!B1 -> 2350 | I114: =SPVV!H1 -> NA | O114: =SPVV!N1 -> NA
B115: Buffer (m): | C115: =SPVV!B2 -> 470 | I115: =SPVV!H2 -> NA | O115: =SPVV!N2 -> NA
B116: Comprimento (m): | C116: =SPVV!B3 -> 2350 | I116: =SPVV!H3 -> NA | O116: =SPVV!N3 -> NA
C117: CAB 1 | F117: CAB 2 | I117: CAB 3 | L117: CAB 4 | O117: CAB 5 | R117: CAB 6
B118: Altitude seção de través (m): | C118: =SPVV!B5 -> -76.2009266 | F118: =SPVV!E5 -> -76.2009266 | I118: =SPVV!H5 -> NA | L118: =SPVV!K5 -> NA | O118: =SPVV!N5 -> NA | R118: =SPVV!Q5 -> NA
B119: Altitude seção de aprox/dep (m): | C119: =SPVV!B6 -> -99.06120458 | F119: =SPVV!E6 -> -99.06120458 | I119: =SPVV!H6 -> NA | L119: =SPVV!K6 -> NA | O119: =SPVV!N6 -> NA | R119: =SPVV!Q6 -> NA
C120: CAB 1 | F120: CAB 2 | I120: CAB 3 | L120: CAB 4 | O120: CAB 5 | R120: CAB 6
B121: Curvas permitidas no circuito de tráfego:
B122: Altura mínima do circuito de tráfego:
C123: Pista 1 | I123: Pista 2 | O123: Pista 3
B124: Área 2: | C124: Aplicável
B125: Categoria de performance crítica:
B126: Largura (m): | C126: =SPVV!B10 -> 4170 | I126: =SPVV!H10 -> NA | O126: =SPVV!N10 -> NA
B127: Buffer (m): | C127: =SPVV!B11 -> 930 | I127: =SPVV!H11 -> NA | O127: =SPVV!N11 -> NA
B128: Comprimento (m): | C128: =SPVV!B12 -> 4170 | I128: =SPVV!H12 -> NA | O128: =SPVV!N12 -> NA
C129: CAB 1 | F129: CAB 2 | I129: CAB 3 | L129: CAB 4 | O129: CAB 5 | R129: CAB 6
B130: Altitude seção través (m): | C130: =SPVV!B14 -> -152.4018532 | F130: =SPVV!E14 -> -152.4018532 | I130: =SPVV!H14 -> NA | L130: =SPVV!K14 -> NA | O130: =SPVV!N14 -> NA | R130: =SPVV!Q14 -> NA
B131: Altitude seção aprox/dep (m): | C131: =SPVV!B15 -> -198.1224092 | F131: =SPVV!E15 -> -198.1224092 | I131: =SPVV!H15 -> NA | L131: =SPVV!K15 -> NA | O131: =SPVV!N15 -> NA | R131: =SPVV!Q15 -> NA
C132: CAB 1 | F132: CAB 2 | I132: CAB 3 | L132: CAB 4 | O132: CAB 5 | R132: CAB 6
B133: Curvas permitidas no circuito de tráfego:
B134: Altura mínima do circ. de tráfego:
C135: Pista 1 | I135: Pista 2 | O135: Pista 3
B136: Área 3: | C136: Aplicável
B137: Largura (m): | C137: =SPVV!B16 -> 7410 | I137: =SPVV!H16 -> NA | O137: =SPVV!N16 -> NA
B138: Buffer (m): | C138: =SPVV!B17 -> 930 | I138: =SPVV!H17 -> NA | O138: =SPVV!N17 -> NA
B139: Comprimento (m): | C139: =SPVV!B18 -> 5560 | I139: =SPVV!H18 -> NA | O139: =SPVV!N18 -> NA
B140: Altitude seção través (m): | C140: =SPVV!B19 -> 304.8037064 | I140: =SPVV!H19 -> NA | O140: =SPVV!N19 -> NA
B141: Altitude seção aprox/dep (m): | C141: =SPVV!B20 -> 259.0831505 | I141: =SPVV!H20 -> NA | O141: =SPVV!N20 -> NA
C142: CAB 1 | F142: CAB 2 | I142: CAB 3 | L142: CAB 4 | O142: CAB 5 | R142: CAB 6
B143: Curvas permitidas no circuito de tráfego:

Sheet DADOS GERAIS-A (hidden)
A1: A | B1: Dados Gerais do Aeródromo:
A2: A1 | B2: Denominação do Aeródromo:
A3: A2 | B3: Código OACI:
A4: A3 | B4: ARP (Latitude):
A5: A4 | B5: ARP (Longitude):
A6: A5 | B6: Elevação (m):
A7: A3 | B7: ARP (Latitude): | C7: 33 | D7: GRAUS
C8: 33 | D8: MIN
C9: 33.33 | D9: SEC | E9: S
A10: A4 | B10: ARP (Longitude): | C10: 33 | D10: GRAUS
C11: 33 | D11: MIN
C12: 33.33 | D12: SEC | E12: W
B15: declinação magnética | C15: 33.333
I113: Aplicável | O113: Aplicável
I121: Ambas | L121: Ambas | O121: Ambas | R121: Ambas
I122: 152 | L122: 152 | O122: 152 | R122: 152
I124: Aplicável | O124: Aplicável
I125: B | O125: B
I133: Esquerda | L133: Esquerda | O133: Direita | R133: Direita
I134: 305 | L134: 305 | O134: 305 | R134: 305
I136: Aplicável | O136: Aplicável
I143: Ambas | L143: Ambas | O143: Esquerda | R143: Esquerda

Sheet DadosAdicionais (hidden)
A1: Numero de Pistas | B1: 1 | F1: select pistas | G1: 1 | H1: 3 | I1: quantidade de pistas | L1: SPVV
G2: 2 | L2: Uso da Área | M2: Curvas | N2: Minimo CKT Area1 | O2: Minimo CKT Area2 3 | P2: Categoria
G3: 3
G4: 4 | L4: Aplicável | M4: Esquerda | N4: 152 | O4: 305 | P4: A
L5: Não Aplicável | M5: Direita | N5: 183 | O5: 335 | P5: B
M6: Ambas | N6: Não Aplicável | O6: 366 | P6: C
M7: Não Aplicável | N7: Outros | O7: 396
O8: 427
O9: 457
O10: Não Aplicável
O11: Outros
H12: ATAN2(COS(L11)*SeN(L13)-SeN(L11)*COS(L13)*COS(N13-N11); SeN(N13-N11)*COS(L13))
H14: ATAN2(COS(L11)*Sen(L13)-Sen(L11)*COS(L13)*COS(N13-N11); Sen(N13-N11)*COS(L13))
C21: http://www.movable-type.co.uk/scripts/latlong.html

Sheet CoAz (hidden)
A1: N | B1: AD | C1: Cab | D1: Lat | E1: H | F1: Long | G1: H | H1: Altitude(m) | I1: Rumo Verd | J1: Comp | K1: Código | U1: Lat sul | V1: Comp de 1" de Long | Y1: Lat sul | Z1: Comp de 1° de Lat | AH1: da TH p/ o Obst | AJ1: Az da App
A2: 1 | B2: SBFZ | C2: Cab13 | E2: =FORM!D22 -> S | G2: W | I2: 1045446 | J2: 3327 | K2: 4-PA1 | U2: 5 | V2: 30.80519444 | Y2: 5 | Z2: 110581.14 | AA2: =Z2/3600 -> 30.71698333 | AH2: Dist(m) | AI2: =I7 -> 3305.034507 | AJ2: G | AK2: M | AL2: S
U3: 4 | V3: 30.84725556 | W3: =IF(AND($Q$36<U2,$Q$36>=U3),($Q$36-U2)*(V2-V3)+V2,0) -> 0 | Y3: 4 | Z3: 110578.44 | AA3: 30.71623333 | AB3: =IF(AND($Q$36<Y2,$Q$36>=Y3),($Q$36-Y2)*(AA3-AA2)*(-1)+AA2,0) -> 0 | AH3: Az | AI3: =J7 -> 213.5233478 | AJ3: =TRUNC(I2/10000,0) -> 104 | AK3: =TRUNC((I2-AJ3*10000)/100,0) -> 54 | AL3: =I2-(TRUNC(I2/100,0)*100) -> 46
U4: 3 | V4: 30.87998611 | W4: 0 | Y4: 3 | Z4: 110576.42 | AA4: 30.71567222 | AB4: 0 | AJ4: =(AL3/60+AK3)/60+AJ3 -> 104.9127778
L5: 1 | U5: 2 | V5: 30.90336944 | W5: 0 | Y5: 2 | Z5: 110575.06 | AA5: 30.71529444 | AB5: 0 | AC5: h | AD5: =Q28*AB43*3600 -> 2755.204445
U6: 1 | V6: 30.91740278 | W6: 0 | Y6: 1 | Z6: 110574.39 | AA6: 30.71510833 | AB6: 0
D7: 34601.28 | E7: =FORM!D40 -> S | F7: 383311.26 | G7: W | H7: 37.4 | I7: =AD11 -> 3305.034507 | J7: =AD14 -> 213.5233478 | K7: =H7-H2 -> 37.4 | U7: 0 | V7: 30.92208055 | W7: 0 | Y7: 0 | Z7: 110574.39 | AA7: 30.71510833 | AB7: 0
U8: -1 | V8: 30.91740278 | W8: 0 | Y8: -1 | Z8: 110575.06 | AA8: 30.71529444 | AB8: 0 | AC8: =Q30*3600*W43 -> 1825.245075
U9: -2 | V9: 30.90336944 | W9: 0 | Y9: -2 | Z9: 110576.42 | AA9: 30.71567222 | AB9: 0 | AH9: Novo Az da TH para o obst | AI9: =IF(AI3-AK12<0,AI3-AK12+360,AI3-AK12) -> 288.6105701 | AK9: Az Cont da App
U10: -3 | V10: 30.87998611 | W10: 0 | Y10: -3 | Z10: 110578.44 | AA10: 30.71623333 | AB10: 0 | AH10: Ângulo alfa | AI10: =IF(AI9<=90,AI9,IF(AI9<=180,180-AI9,IF(AI9<=270,AI9-180,360-AI9))) -> 71.38942994
U11: -4 | V11: 30.84725556 | W11: 0 | Y11: -4 | Z11: 110581.14 | AA11: 30.71698333 | AB11: 0 | AC11: h= | AD11: =((AC8^2+AD5^2)^0.5)*1.0000266404 -> 3305.034507 | AH11: Seno | AI11: =SIN((AI10)/180*PI()) -> 0.9477095515
U12: -5 | V12: 30.80519444 | W12: 0 | Y12: -5 | Z12: 110584.5 | AA12: 30.71791667 | AB12: 0 | AC12: Tan= | AD12: =IF(AC8=0,10000000,AD5/AC8) -> 1.509498359 | AH12: Cosseno | AI12: =COS((AI10)/180*PI()) -> 0.3191341505 | AK12: =IF(AND(AJ4>=0,AJ4<=180),AJ4+180,AJ4-180) -> 284.9127778
U13: -6 | V13: 30.75380556 | W13: 0 | Y13: -6 | Z13: 110588.53 | AA13: 30.71903611 | AB13: 0 | AC13: Ângulo da Tan= | AD13: =ATAN(AD12)*180/PI() -> 56.47665216 | AH13: X-Modular | AI13: =AI12*AI2 -> 1054.74938
Q14: Lat AD | U14: -7 | V14: 30.69311111 | W14: 0 | Y14: -7 | Z14: 110593.22 | AA14: 30.72033889 | AB14: 0 | AC14: AZ Verd= | AD14: =IF(Q33>=Q17,IF(Q25>=Q22,90-AD13,270+AD13),IF(Q25>=Q22,90+AD13,180+(90-AD13))) -> 213.5233478 | AH14: Y-Modular | AI14: =AI11*AI2 -> 3132.21277
Q15: G | R15: M | S15: S | U15: -8 | V15: 30.62312778 | W15: 0 | Y15: -8 | Z15: 110598.57 | AA15: 30.721825 | AB15: 0 | AH15: X-Real | AI15: =IF(OR(AI9<=90,AI9>=270),AI13,AI13*(-1)) -> 1054.74938
Q16: =FORMULÁRIO!C22 -> 10 | R16: =FORMULÁRIO!D22 -> 20 | S16: =FORMULÁRIO!E22 -> 30.33 | U16: -9 | V16: 30.54387222 | W16: 0 | Y16: -9 | Z16: 110604.56 | AA16: 30.72348889 | AB16: 0 | AH16: Y-Real | AI16: =IF(AND(AI9>0,AI9<180),AI14*(-1),AI14) -> 3132.21277
A17: N | B17: Ident | C17: Tipo | D17: Lat | E17: H | F17: Long | G17: H | H17: Altitude (m) | I17: Dist (m) | J17: Az Verd | K17: Altura (m) | L17: X (m) | M17: Y (m) | N17: Fonte | O17: Data | P17: Dup | Q17: =IF(E2="n",(S16/60+R16)/60+Q16,((S16/60+R16)/60+Q16)*(-1)) -> -10.34175833 | U17: -10 | V17: 30.45536667 | W17: 0 | Y17: -10 | Z17: 110611.19 | AA17: 30.72533056 | AB17: 0
A18: 1 | I18: 1035.834342 | J18: 307.9551126 | K18: 12.4 | L18: 953.1912293 | M18: -405.4371272 | P18: CONCATENAR(D18;"/";F18) | U18: -11 | V18: 30.35764167 | W18: 30.42075125 | Y18: -11 | Z18: 110618.45 | AA18: 30.72734722 | AB18: 30.72604488
A19: 2 | E19: S | G19: W | Q19: Lon AD | U19: -12 | V19: 30.25071944 | W19: 0 | Y19: -12 | Z19: 110626.34 | AA19: 30.72953889 | AB19: 0
A20: 3 | E20: S | G20: W | Q20: G | R20: M | S20: S | U20: -13 | V20: 30.13463611 | W20: 0 | Y20: -13 | Z20: 110634.84 | AA20: 30.7319 | AB20: 0
A21: 4 | E21: S | G21: W | Q21: =FORMULÁRIO!C23 -> 45 | R21: =FORMULÁRIO!D23 -> 0 | S21: =FORMULÁRIO!E23 -> 0 | U21: -14 | V21: 30.00941944 | W21: 0 | Y21: -14 | Z21: 110643.94 | AA21: 30.73442778 | AB21: 0
A22: 5 | E22: S | G22: W | Q22: =IF(G2="e",(S21/60+R21)/60+Q21,((S21/60+R21)/60+Q21)*(-1)) -> -45 | U22: -15 | V22: 29.87511111 | W22: 0 | Y22: -15 | Z22: 110653.64 | AA22: 30.73712222 | AB22: 0
A23: 6 | E23: S | G23: W | Q23: Lon Obst | U23: -16 | V23: 29.73174444 | W23: 0 | Y23: -16 | Z23: 110663.93 | AA23: 30.73998056 | AB23: 0
A24: 7 | E24: S | G24: W | Q24: =FORMULÁRIO!F23 -> 45 | R24: =FORMULÁRIO!G23 -> 1 | S24: =FORMULÁRIO!H23 -> 0 | U24: -17 | V24: 29.57936667 | W24: 0 | Y24: -17 | Z24: 110674.78 | AA24: 30.74299444 | AB24: 0
A25: 8 | E25: S | G25: W | Q25: =IF(G7="e",(S24/60+R24)/60+Q24,((S24/60+R24)/60+Q24)*(-1)) -> -45.01666667 | U25: -18 | V25: 29.41801389 | W25: 0 | Y25: -18 | Z25: 110686.18 | AA25: 30.74616111 | AB25: 0
A26: 9 | E26: S | G26: W | U26: -19 | V26: 29.24774167 | W26: 0 | Y26: -19 | Z26: 110698.14 | AA26: 30.74948333 | AB26: 0
A27: 10 | E27: S | G27: W | Q27: Dif - Lat(Modular) | U27: -20 | V27: 29.06859167 | W27: 0 | Y27: -20 | Z27: 110710.61 | AA27: 30.75294722 | AB27: 0
A28: 11 | E28: S | G28: W | Q28: =ABS(Q33-Q17) -> 0.02490833333 | U28: -21 | V28: 28.88061944 | W28: 0 | Y28: -21 | Z28: 110723.61 | AA28: 30.75655833 | AB28: 0
A29: 12 | E29: S | G29: W | Q29: Dif - Long(Modular) | U29: -22 | V29: 28.68388056 | W29: 0 | Y29: -22 | Z29: 110737.1 | AA29: 30.76030556 | AB29: 0
A30: 13 | E30: S | G30: W | Q30: =ABS(Q25-Q22) -> 0.01666666667 | U30: -23 | V30: 28.47842778 | W30: 0 | Y30: -23 | Z30: 110751.08 | AA30: 30.76418889 | AB30: 0
A31: 14 | E31: S | G31: W | Q31: Lat Obst | U31: -24 | V31: 28.26432222 | W31: 0 | Y31: -24 | Z31: 110765.52 | AA31: 30.7682 | AB31: 0
A32: 15 | E32: S | G32: W | Q32: =FORMULÁRIO!F22 -> 10 | R32: =FORMULÁRIO!G22 -> 22 | S32: =FORMULÁRIO!H22 -> 0 | U32: -25 | V32: 28.04162778 | W32: 0 | Y32: -25 | Z32: 110780.4 | AA32: 30.77233333 | AB32: 0
A33: 16 | E33: S | G33: W | Q33: =IF(E7="n",(S32/60+R32)/60+Q32,((S32/60+R32)/60+Q32)*(-1)) -> -10.36666667 | U33: -26 | V33: 27.81040833 | W33: 0 | Y33: -26 | Z33: 110795.72 | AA33: 30.77658889 | AB33: 0
A34: 17 | E34: S | G34: W | U34: -27 | V34: 27.57073056 | W34: 0 | Y34: -27 | Z34: 110811.45 | AA34: 30.78095833 | AB34: 0
A35: 18 | E35: S | G35: W | Q35: Lat média | U35: -28 | V35: 27.32266389 | W35: 0 | Y35: -28 | Z35: 110827.58 | AA35: 30.78543889 | AB35: 0
A36: 19 | E36: S | G36: W | Q36: =(Q33+Q17)/2 -> -10.3542125 | U36: -29 | V36: 27.06628333 | W36: 0 | Y36: -29 | Z36: 110844.07 | AA36: 30.79001944 | AB36: 0
A37: 20 | E37: S | G37: W | U37: -30 | V37: 26.80165833 | W37: 0 | Y37: -30 | Z37: 110860.93 | AA37: 30.79470278 | AB37: 0
A38: 21 | E38: S | G38: W | U38: -31 | V38: 26.52887222 | W38: 0 | Y38: -31 | Z38: 110878.11 | AA38: 30.799475 | AB38: 0
A39: 22 | E39: S | G39: W | U39: -32 | V39: 26.24800278 | W39: 0 | Y39: -32 | Z39: 110895.61 | AA39: 30.80433611 | AB39: 0
A40: 23 | E40: S | G40: W | U40: -33 | V40: 25.95912778 | W40: 0 | Y40: -33 | Z40: 110913.4 | AA40: 30.80927778 | AB40: 0
A41: 24 | E41: S | G41: W | U41: -34 | V41: 25.66233889 | W41: 0 | Y41: -34 | Z41: 110931.46 | AA41: 30.81429444 | AB41: 0
A42: 25 | E42: S | G42: W | U42: -35 | V42: 25.35771944 | W42: 0 | Y42: -35 | Z42: 110949.77 | AA42: 30.81938056 | AB42: 0
A43: 26 | E43: S | G43: W | V43: Soma | W43: =SUM(W3:W42) -> 30.42075125 | AA43: Soma | AB43: =SUM(AB3:AB42) -> 30.72604488
A44: 27 | E44: S | G44: W
A45: 28 | E45: S | G45: W
A46: 29 | E46: S | G46: W
A47: 30 | E47: S | G47: W
A48: 31 | E48: S | G48: W
A49: 32 | E49: S | G49: W
A50: 33 | E50: S | G50: W
A51: 34 | E51: S | G51: W
A52: 35 | E52: S | G52: W
A53: 36 | E53: S | G53: W
A54: 37 | E54: S | G54: W
A55: 38 | E55: S | G55: W
A56: 39 | E56: S | G56: W
A57: 40 | E57: S | G57: W
A58: 41 | E58: S | G58: W
A59: 42 | E59: S | G59: W
A60: 43 | E60: S | G60: W
A61: 44 | E61: S | G61: W
A62: 45 | E62: S | G62: W
A63: 46 | E63: S | G63: W
A64: 47 | E64: S | G64: W
A65: 48 | E65: S | G65: W
A66: 49 | E66: S | G66: W
A67: 50 | E67: S | G67: W
A68: 51 | E68: S | G68: W
A69: 52 | E69: S | G69: W
A70: 53 | E70: S | G70: W
A71: 54 | E71: S | G71: W
A72: 55 | E72: S | G72: W
A73: 56 | E73: S | G73: W
A74: 57 | E74: S | G74: W
A75: 58 | E75: S | G75: W
A76: 59 | E76: S | G76: W
A77: 60 | E77: S | G77: W
A78: 61 | E78: S | G78: W
A79: 62 | E79: S | G79: W
A80: 63 | E80: S | G80: W
A81: 64 | E81: S | G81: W
A82: 65 | E82: S | G82: W
A83: 66 | E83: S | G83: W
A84: 67 | E84: S | G84: W
A85: 68 | E85: S | G85: W
A86: 69 | E86: S | G86: W
A87: 70 | E87: S | G87: W
A88: 71 | E88: S | G88: W
A89: 72 | E89: S | G89: W
A90: 73 | E90: S | G90: W
A91: 74 | E91: S | G91: W
A92: 75 | E92: S | G92: W
A93: 76 | E93: S | G93: W
A94: 77 | E94: S | G94: W
A95: 78 | E95: S | G95: W
A96: 79 | E96: S | G96: W
A97: 80 | E97: S | G97: W
A98: 81 | E98: S | G98: W
A99: 82 | E99: S | G99: W
A100: 83 | E100: S | G100: W
A101: 84 | E101: S | G101: W
A102: 85 | E102: S | G102: W
A103: 86 | E103: S | G103: W
A104: 87 | E104: S | G104: W
A105: 88 | E105: S | G105: W
A106: 89 | E106: S | G106: W
A107: 90 | E107: S | G107: W
A108: 91 | E108: S | G108: W
A109: 92 | E109: S | G109: W
A110: 93 | E110: S | G110: W
A111: 94 | E111: S | G111: W
A112: 95 | E112: S | G112: W
A113: 96 | E113: S | G113: W
A114: 97 | E114: S | G114: W
A115: 98 | E115: S | G115: W
A116: 99 | E116: S | G116: W
A117: 100 | E117: S | G117: W
A118: 101 | E118: S | G118: W
A119: 102 | E119: S | G119: W
A120: 103 | E120: S | G120: W
A121: 104 | E121: S | G121: W
A122: 105 | E122: S | G122: W
A123: 106 | E123: S | G123: W
A124: 107 | E124: S | G124: W
A125: 108 | E125: S | G125: W
A126: 109 | E126: S | G126: W
A127: 110 | E127: S | G127: W
A128: 111 | E128: S | G128: W
A129: 112 | E129: S | G129: W
A130: 113 | E130: S | G130: W
A131: 114 | E131: S | G131: W
A132: 115 | E132: S | G132: W
A133: 116 | E133: S | G133: W
A134: 117 | E134: S | G134: W
A135: 118 | E135: S | G135: W
A136: 119 | E136: S | G136: W
A137: 120 | E137: S | G137: W
A138: 121 | E138: S | G138: W
A139: 122 | E139: S | G139: W
A140: 123 | E140: S | G140: W
A141: 124 | E141: S | G141: W
A142: 125 | E142: S | G142: W
A143: 126 | E143: S | G143: W
A144: 127 | E144: S | G144: W
A145: 128 | E145: S | G145: W
A146: 129 | E146: S | G146: W
A147: 130 | E147: S | G147: W
A148: 131 | E148: S | G148: W
A149: 132 | E149: S | G149: W
A150: 133 | E150: S | G150: W
A151: 134 | E151: S | G151: W
A152: 135 | E152: S | G152: W
A153: 136 | E153: S | G153: W
A154: 137 | E154: S | G154: W
A155: 138 | E155: S | G155: W
A156: 139 | E156: S | G156: W
A157: 140 | E157: S | G157: W
A158: 141 | E158: S | G158: W
A159: 142 | E159: S | G159: W
A160: 143 | E160: S | G160: W
A161: 144 | E161: S | G161: W
A162: 145 | E162: S | G162: W
A163: 146 | E163: S | G163: W
A164: 147 | E164: S | G164: W
A165: 148 | E165: S | G165: W
A166: 149 | E166: S | G166: W
A167: 150 | E167: S | G167: W
A168: 151 | E168: S | G168: W
A169: 152 | E169: S | G169: W
A170: 153 | E170: S | G170: W
A171: 154 | E171: S | G171: W
A172: 155 | E172: S | G172: W
A173: 156 | E173: S | G173: W
A174: 157 | E174: S | G174: W
A175: 158 | E175: S | G175: W
A176: 159 | E176: S | G176: W
A177: 160 | E177: S | G177: W
A178: 161 | E178: S | G178: W
A179: 162 | E179: S | G179: W
A180: 163 | E180: S | G180: W
A181: 164 | E181: S | G181: W
A182: 165 | E182: S | G182: W
A183: 166 | E183: S | G183: W
A184: 167 | E184: S | G184: W
A185: 168 | E185: S | G185: W
A186: 169 | E186: S | G186: W
A187: 170 | E187: S | G187: W
A188: 171 | E188: S | G188: W
A189: 172 | E189: S | G189: W
A190: 173 | E190: S | G190: W
A191: 174 | E191: S | G191: W
A192: 175 | E192: S | G192: W
A193: 176 | E193: S | G193: W
A194: 177 | E194: S | G194: W
A195: 178 | E195: S | G195: W
A196: 179 | E196: S | G196: W
A197: 180 | E197: S | G197: W
A198: 181 | E198: S | G198: W
A199: 182 | E199: S | G199: W
A200: 183 | E200: S | G200: W
... 3817 more rows

Sheet CoAz (2) (hidden)
A1: N | B1: AD | C1: Cab | D1: Lat | E1: H | F1: Long | G1: H | H1: Altitude(m) | I1: Rumo Verd | J1: Comp | K1: Código | U1: Lat sul | V1: Comp de 1" de Long | Y1: Lat sul | Z1: Comp de 1° de Lat | AH1: da TH p/ o Obst | AJ1: Az da App
A2: 1 | B2: SBFZ | C2: Cab13 | D2: 34622.02 | E2: =FORM!F22 -> S | F2: 383244.79 | G2: W | H2: 25 | I2: 1045446 | J2: 3327 | K2: 4-PA1 | U2: 5 | V2: 30.80519444 | Y2: 5 | Z2: 110581.14 | AA2: =Z2/3600 -> 30.71698333 | AH2: Dist(m) | AI2: =I7 -> 3228.428703 | AJ2: G | AK2: M | AL2: S
U3: 4 | V3: 30.84725556 | W3: =IF(AND($Q$36<U2,$Q$36>=U3),($Q$36-U2)*(V2-V3)+V2,0) -> 0 | Y3: 4 | Z3: 110578.44 | AA3: 30.71623333 | AB3: =IF(AND($Q$36<Y2,$Q$36>=Y3),($Q$36-Y2)*(AA3-AA2)*(-1)+AA2,0) -> 0 | AH3: Az | AI3: =J7 -> 214.4224235 | AJ3: =TRUNC(I2/10000,0) -> 104 | AK3: =TRUNC((I2-AJ3*10000)/100,0) -> 54 | AL3: =I2-(TRUNC(I2/100,0)*100) -> 46
U4: 3 | V4: 30.87998611 | W4: 0 | Y4: 3 | Z4: 110576.42 | AA4: 30.71567222 | AB4: 0 | AJ4: =(AL3/60+AK3)/60+AJ3 -> 104.9127778
L5: 1 | U5: 2 | V5: 30.90336944 | W5: 0 | Y5: 2 | Z5: 110575.06 | AA5: 30.71529444 | AB5: 0 | AC5: h | AD5: =Q28*AB43*3600 -> 2663.035122
U6: 1 | V6: 30.91740278 | W6: 0 | Y6: 1 | Z6: 110574.39 | AA6: 30.71510833 | AB6: 0
D7: 34601.28 | E7: =FORM!F40 -> S | F7: 383311.26 | G7: W | H7: 37.4 | I7: =AD11 -> 3228.428703 | J7: =AD14 -> 214.4224235 | K7: =H7-H2 -> 12.4 | U7: 0 | V7: 30.92208055 | W7: 0 | Y7: 0 | Z7: 110574.39 | AA7: 30.71510833 | AB7: 0
U8: -1 | V8: 30.91740278 | W8: 0 | Y8: -1 | Z8: 110575.06 | AA8: 30.71529444 | AB8: 0 | AC8: =Q30*3600*W43 -> 1824.949457
U9: -2 | V9: 30.90336944 | W9: 0 | Y9: -2 | Z9: 110576.42 | AA9: 30.71567222 | AB9: 0 | AH9: Novo Az da TH para o obst | AI9: =IF(AI3-AK12<0,AI3-AK12+360,AI3-AK12) -> 289.5096457 | AK9: Az Cont da App
U10: -3 | V10: 30.87998611 | W10: 0 | Y10: -3 | Z10: 110578.44 | AA10: 30.71623333 | AB10: 0 | AH10: Ângulo alfa | AI10: =IF(AI9<=90,AI9,IF(AI9<=180,180-AI9,IF(AI9<=270,AI9-180,360-AI9))) -> 70.49035426
U11: -4 | V11: 30.84725556 | W11: 0 | Y11: -4 | Z11: 110581.14 | AA11: 30.71698333 | AB11: 0 | AC11: h= | AD11: =((AC8^2+AD5^2)^0.5)*1.0000266404 -> 3228.428703 | AH11: Seno | AI11: =SIN((AI10)/180*PI()) -> 0.9425852814
U12: -5 | V12: 30.80519444 | W12: 0 | Y12: -5 | Z12: 110584.5 | AA12: 30.71791667 | AB12: 0 | AC12: Tan= | AD12: =IF(AC8=0,10000000,AD5/AC8) -> 1.459237741 | AH12: Cosseno | AI12: =COS((AI10)/180*PI()) -> 0.3339655481 | AK12: =IF(AND(AJ4>=0,AJ4<=180),AJ4+180,AJ4-180) -> 284.9127778
U13: -6 | V13: 30.75380556 | W13: 0 | Y13: -6 | Z13: 110588.53 | AA13: 30.71903611 | AB13: 0 | AC13: Ângulo da Tan= | AD13: =ATAN(AD12)*180/PI() -> 55.57757649 | AH13: X-Modular | AI13: =AI12*AI2 -> 1078.183961
Q14: Lat AD | U14: -7 | V14: 30.69311111 | W14: 0 | Y14: -7 | Z14: 110593.22 | AA14: 30.72033889 | AB14: 0 | AC14: AZ Verd= | AD14: =IF(Q33>=Q17,IF(Q25>=Q22,90-AD13,270+AD13),IF(Q25>=Q22,90+AD13,180+(90-AD13))) -> 214.4224235 | AH14: Y-Modular | AI14: =AI11*AI2 -> 3043.069378
Q15: G | R15: M | S15: S | U15: -8 | V15: 30.62312778 | W15: 0 | Y15: -8 | Z15: 110598.57 | AA15: 30.721825 | AB15: 0 | AH15: X-Real | AI15: =IF(OR(AI9<=90,AI9>=270),AI13,AI13*(-1)) -> 1078.183961
Q16: =FORMULÁRIO!I22 -> 10 | R16: =FORMULÁRIO!J22 -> 23 | S16: =FORMULÁRIO!K22 -> 33.33 | U16: -9 | V16: 30.54387222 | W16: 0 | Y16: -9 | Z16: 110604.56 | AA16: 30.72348889 | AB16: 0 | AH16: Y-Real | AI16: =IF(AND(AI9>0,AI9<180),AI14*(-1),AI14) -> 3043.069378
A17: N | B17: Ident | C17: Tipo | D17: Lat | E17: H | F17: Long | G17: H | H17: Altitude (m) | I17: Dist (m) | J17: Az Verd | K17: Altura (m) | L17: X (m) | M17: Y (m) | N17: Fonte | O17: Data | P17: Dup | Q17: =IF(E2="n",(S16/60+R16)/60+Q16,((S16/60+R16)/60+Q16)*(-1)) -> -10.39259167 | U17: -10 | V17: 30.45536667 | W17: 0 | Y17: -10 | Z17: 110611.19 | AA17: 30.72533056 | AB17: 0
A18: 1 | C18: Edifício | I18: 1035.834342 | J18: 307.9551126 | K18: 12.4 | L18: 953.1912293 | M18: -405.4371272 | P18: CONCATENAR(D18;"/";F18) | U18: -11 | V18: 30.35764167 | W18: 30.41582428 | Y18: -11 | Z18: 110618.45 | AA18: 30.72734722 | AB18: 30.72614656
A19: 2 | E19: S | G19: W | Q19: Lon AD | U19: -12 | V19: 30.25071944 | W19: 0 | Y19: -12 | Z19: 110626.34 | AA19: 30.72953889 | AB19: 0
A20: 3 | E20: S | G20: W | Q20: G | R20: M | S20: S | U20: -13 | V20: 30.13463611 | W20: 0 | Y20: -13 | Z20: 110634.84 | AA20: 30.7319 | AB20: 0
A21: 4 | E21: S | G21: W | Q21: =FORMULÁRIO!I23 -> 45 | R21: =FORMULÁRIO!J23 -> 2 | S21: =FORMULÁRIO!K23 -> 0 | U21: -14 | V21: 30.00941944 | W21: 0 | Y21: -14 | Z21: 110643.94 | AA21: 30.73442778 | AB21: 0
A22: 5 | E22: S | G22: W | Q22: =IF(G2="e",(S21/60+R21)/60+Q21,((S21/60+R21)/60+Q21)*(-1)) -> -45.03333333 | U22: -15 | V22: 29.87511111 | W22: 0 | Y22: -15 | Z22: 110653.64 | AA22: 30.73712222 | AB22: 0
A23: 6 | E23: S | G23: W | Q23: Lon Obst | U23: -16 | V23: 29.73174444 | W23: 0 | Y23: -16 | Z23: 110663.93 | AA23: 30.73998056 | AB23: 0
A24: 7 | E24: S | G24: W | Q24: =FORMULÁRIO!L23 -> 45 | R24: =FORMULÁRIO!M23 -> 3 | S24: =FORMULÁRIO!N23 -> 0 | U24: -17 | V24: 29.57936667 | W24: 0 | Y24: -17 | Z24: 110674.78 | AA24: 30.74299444 | AB24: 0
A25: 8 | E25: S | G25: W | Q25: =IF(G7="e",(S24/60+R24)/60+Q24,((S24/60+R24)/60+Q24)*(-1)) -> -45.05 | U25: -18 | V25: 29.41801389 | W25: 0 | Y25: -18 | Z25: 110686.18 | AA25: 30.74616111 | AB25: 0
A26: 9 | E26: S | G26: W | U26: -19 | V26: 29.24774167 | W26: 0 | Y26: -19 | Z26: 110698.14 | AA26: 30.74948333 | AB26: 0
A27: 10 | E27: S | G27: W | Q27: Dif - Lat(Modular) | U27: -20 | V27: 29.06859167 | W27: 0 | Y27: -20 | Z27: 110710.61 | AA27: 30.75294722 | AB27: 0
A28: 11 | E28: S | G28: W | Q28: =ABS(Q33-Q17) -> 0.024075 | U28: -21 | V28: 28.88061944 | W28: 0 | Y28: -21 | Z28: 110723.61 | AA28: 30.75655833 | AB28: 0
A29: 12 | E29: S | G29: W | Q29: Dif - Long(Modular) | U29: -22 | V29: 28.68388056 | W29: 0 | Y29: -22 | Z29: 110737.1 | AA29: 30.76030556 | AB29: 0
A30: 13 | E30: S | G30: W | Q30: =ABS(Q25-Q22) -> 0.01666666667 | U30: -23 | V30: 28.47842778 | W30: 0 | Y30: -23 | Z30: 110751.08 | AA30: 30.76418889 | AB30: 0
A31: 14 | E31: S | G31: W | Q31: Lat Obst | U31: -24 | V31: 28.26432222 | W31: 0 | Y31: -24 | Z31: 110765.52 | AA31: 30.7682 | AB31: 0
A32: 15 | E32: S | G32: W | Q32: =FORMULÁRIO!L22 -> 10 | R32: =FORMULÁRIO!M22 -> 25 | S32: =FORMULÁRIO!N22 -> 0 | U32: -25 | V32: 28.04162778 | W32: 0 | Y32: -25 | Z32: 110780.4 | AA32: 30.77233333 | AB32: 0
A33: 16 | E33: S | G33: W | Q33: =IF(E7="n",(S32/60+R32)/60+Q32,((S32/60+R32)/60+Q32)*(-1)) -> -10.41666667 | U33: -26 | V33: 27.81040833 | W33: 0 | Y33: -26 | Z33: 110795.72 | AA33: 30.77658889 | AB33: 0
A34: 17 | E34: S | G34: W | U34: -27 | V34: 27.57073056 | W34: 0 | Y34: -27 | Z34: 110811.45 | AA34: 30.78095833 | AB34: 0
A35: 18 | E35: S | G35: W | Q35: Lat média | U35: -28 | V35: 27.32266389 | W35: 0 | Y35: -28 | Z35: 110827.58 | AA35: 30.78543889 | AB35: 0
A36: 19 | E36: S | G36: W | Q36: =(Q33+Q17)/2 -> -10.40462917 | U36: -29 | V36: 27.06628333 | W36: 0 | Y36: -29 | Z36: 110844.07 | AA36: 30.79001944 | AB36: 0
A37: 20 | E37: S | G37: W | U37: -30 | V37: 26.80165833 | W37: 0 | Y37: -30 | Z37: 110860.93 | AA37: 30.79470278 | AB37: 0
A38: 21 | E38: S | G38: W | U38: -31 | V38: 26.52887222 | W38: 0 | Y38: -31 | Z38: 110878.11 | AA38: 30.799475 | AB38: 0
A39: 22 | E39: S | G39: W | U39: -32 | V39: 26.24800278 | W39: 0 | Y39: -32 | Z39: 110895.61 | AA39: 30.80433611 | AB39: 0
A40: 23 | E40: S | G40: W | U40: -33 | V40: 25.95912778 | W40: 0 | Y40: -33 | Z40: 110913.4 | AA40: 30.80927778 | AB40: 0
A41: 24 | E41: S | G41: W | U41: -34 | V41: 25.66233889 | W41: 0 | Y41: -34 | Z41: 110931.46 | AA41: 30.81429444 | AB41: 0
A42: 25 | E42: S | G42: W | U42: -35 | V42: 25.35771944 | W42: 0 | Y42: -35 | Z42: 110949.77 | AA42: 30.81938056 | AB42: 0
A43: 26 | E43: S | G43: W | V43: Soma | W43: =SUM(W3:W42) -> 30.41582428 | AA43: Soma | AB43: =SUM(AB3:AB42) -> 30.72614656
A44: 27 | E44: S | G44: W
A45: 28 | E45: S | G45: W
A46: 29 | E46: S | G46: W
A47: 30 | E47: S | G47: W
A48: 31 | E48: S | G48: W
A49: 32 | E49: S | G49: W
A50: 33 | E50: S | G50: W
A51: 34 | E51: S | G51: W
A52: 35 | E52: S | G52: W
A53: 36 | E53: S | G53: W
A54: 37 | E54: S | G54: W
A55: 38 | E55: S | G55: W
A56: 39 | E56: S | G56: W
A57: 40 | E57: S | G57: W
A58: 41 | E58: S | G58: W
A59: 42 | E59: S | G59: W
A60: 43 | E60: S | G60: W
A61: 44 | E61: S | G61: W
A62: 45 | E62: S | G62: W
A63: 46 | E63: S | G63: W
A64: 47 | E64: S | G64: W
A65: 48 | E65: S | G65: W
A66: 49 | E66: S | G66: W
A67: 50 | E67: S | G67: W
A68: 51 | E68: S | G68: W
A69: 52 | E69: S | G69: W
A70: 53 | E70: S | G70: W
A71: 54 | E71: S | G71: W
A72: 55 | E72: S | G72: W
A73: 56 | E73: S | G73: W
A74: 57 | E74: S | G74: W
A75: 58 | E75: S | G75: W
A76: 59 | E76: S | G76: W
A77: 60 | E77: S | G77: W
A78: 61 | E78: S | G78: W
A79: 62 | E79: S | G79: W
A80: 63 | E80: S | G80: W
A81: 64 | E81: S | G81: W
A82: 65 | E82: S | G82: W
A83: 66 | E83: S | G83: W
A84: 67 | E84: S | G84: W
A85: 68 | E85: S | G85: W
A86: 69 | E86: S | G86: W
A87: 70 | E87: S | G87: W
A88: 71 | E88: S | G88: W
A89: 72 | E89: S | G89: W
A90: 73 | E90: S | G90: W
A91: 74 | E91: S | G91: W
A92: 75 | E92: S | G92: W
A93: 76 | E93: S | G93: W
A94: 77 | E94: S | G94: W
A95: 78 | E95: S | G95: W
A96: 79 | E96: S | G96: W
A97: 80 | E97: S | G97: W
A98: 81 | E98: S | G98: W
A99: 82 | E99: S | G99: W
A100: 83 | E100: S | G100: W
A101: 84 | E101: S | G101: W
A102: 85 | E102: S | G102: W
A103: 86 | E103: S | G103: W
A104: 87 | E104: S | G104: W
A105: 88 | E105: S | G105: W
A106: 89 | E106: S | G106: W
A107: 90 | E107: S | G107: W
A108: 91 | E108: S | G108: W
A109: 92 | E109: S | G109: W
A110: 93 | E110: S | G110: W
A111: 94 | E111: S | G111: W
A112: 95 | E112: S | G112: W
A113: 96 | E113: S | G113: W
A114: 97 | E114: S | G114: W
A115: 98 | E115: S | G115: W
A116: 99 | E116: S | G116: W
A117: 100 | E117: S | G117: W
A118: 101 | E118: S | G118: W
A119: 102 | E119: S | G119: W
A120: 103 | E120: S | G120: W
A121: 104 | E121: S | G121: W
A122: 105 | E122: S | G122: W
A123: 106 | E123: S | G123: W
A124: 107 | E124: S | G124: W
A125: 108 | E125: S | G125: W
A126: 109 | E126: S | G126: W
A127: 110 | E127: S | G127: W
A128: 111 | E128: S | G128: W
A129: 112 | E129: S | G129: W
A130: 113 | E130: S | G130: W
A131: 114 | E131: S | G131: W
A132: 115 | E132: S | G132: W
A133: 116 | E133: S | G133: W
A134: 117 | E134: S | G134: W
A135: 118 | E135: S | G135: W
A136: 119 | E136: S | G136: W
A137: 120 | E137: S | G137: W
A138: 121 | E138: S | G138: W
A139: 122 | E139: S | G139: W
A140: 123 | E140: S | G140: W
A141: 124 | E141: S | G141: W
A142: 125 | E142: S | G142: W
A143: 126 | E143: S | G143: W
A144: 127 | E144: S | G144: W
A145: 128 | E145: S | G145: W
A146: 129 | E146: S | G146: W
A147: 130 | E147: S | G147: W
A148: 131 | E148: S | G148: W
A149: 132 | E149: S | G149: W
A150: 133 | E150: S | G150: W
A151: 134 | E151: S | G151: W
A152: 135 | E152: S | G152: W
A153: 136 | E153: S | G153: W
A154: 137 | E154: S | G154: W
A155: 138 | E155: S | G155: W
A156: 139 | E156: S | G156: W
A157: 140 | E157: S | G157: W
A158: 141 | E158: S | G158: W
A159: 142 | E159: S | G159: W
A160: 143 | E160: S | G160: W
A161: 144 | E161: S | G161: W
A162: 145 | E162: S | G162: W
A163: 146 | E163: S | G163: W
A164: 147 | E164: S | G164: W
A165: 148 | E165: S | G165: W
A166: 149 | E166: S | G166: W
A167: 150 | E167: S | G167: W
A168: 151 | E168: S | G168: W
A169: 152 | E169: S | G169: W
A170: 153 | E170: S | G170: W
A171: 154 | E171: S | G171: W
A172: 155 | E172: S | G172: W
A173: 156 | E173: S | G173: W
A174: 157 | E174: S | G174: W
A175: 158 | E175: S | G175: W
A176: 159 | E176: S | G176: W
A177: 160 | E177: S | G177: W
A178: 161 | E178: S | G178: W
A179: 162 | E179: S | G179: W
A180: 163 | E180: S | G180: W
A181: 164 | E181: S | G181: W
A182: 165 | E182: S | G182: W
A183: 166 | E183: S | G183: W
A184: 167 | E184: S | G184: W
A185: 168 | E185: S | G185: W
A186: 169 | E186: S | G186: W
A187: 170 | E187: S | G187: W
A188: 171 | E188: S | G188: W
A189: 172 | E189: S | G189: W
A190: 173 | E190: S | G190: W
A191: 174 | E191: S | G191: W
A192: 175 | E192: S | G192: W
A193: 176 | E193: S | G193: W
A194: 177 | E194: S | G194: W
A195: 178 | E195: S | G195: W
A196: 179 | E196: S | G196: W
A197: 180 | E197: S | G197: W
A198: 181 | E198: S | G198: W
A199: 182 | E199: S | G199: W
A200: 183 | E200: S | G200: W
... 3817 more rows

Sheet CoAz (3) (hidden)
A1: N | B1: AD | C1: Cab | D1: Lat | E1: H | F1: Long | G1: H | H1: Altitude(m) | I1: Rumo Verd | J1: Comp | K1: Código | U1: Lat sul | V1: Comp de 1" de Long | Y1: Lat sul | Z1: Comp de 1° de Lat | AH1: da TH p/ o Obst | AJ1: Az da App
A2: 1 | B2: SBFZ | C2: Cab13 | D2: 34622.02 | E2: =FORM!H22 -> S | F2: 383244.79 | G2: W | H2: 25 | I2: 1045446 | J2: 3327 | K2: 4-PA1 | U2: 5 | V2: 30.80519444 | Y2: 5 | Z2: 110581.14 | AA2: =Z2/3600 -> 30.71698333 | AH2: Dist(m) | AI2: =I7 -> 5785.667441 | AJ2: G | AK2: M | AL2: S
U3: 4 | V3: 30.84725556 | W3: =IF(AND($Q$36<U2,$Q$36>=U3),($Q$36-U2)*(V2-V3)+V2,0) -> 0 | Y3: 4 | Z3: 110578.44 | AA3: 30.71623333 | AB3: =IF(AND($Q$36<Y2,$Q$36>=Y3),($Q$36-Y2)*(AA3-AA2)*(-1)+AA2,0) -> 0 | AH3: Az | AI3: =J7 -> 29.77183947 | AJ3: =TRUNC(I2/10000,0) -> 104 | AK3: =TRUNC((I2-AJ3*10000)/100,0) -> 54 | AL3: =I2-(TRUNC(I2/100,0)*100) -> 46
U4: 3 | V4: 30.87998611 | W4: 0 | Y4: 3 | Z4: 110576.42 | AA4: 30.71567222 | AB4: 0 | AJ4: =(AL3/60+AK3)/60+AJ3 -> 104.9127778
L5: 1 | U5: 2 | V5: 30.90336944 | W5: 0 | Y5: 2 | Z5: 110575.06 | AA5: 30.71529444 | AB5: 0 | AC5: h | AD5: =Q28*AB43*3600 -> 5021.881144
U6: 1 | V6: 30.91740278 | W6: 0 | Y6: 1 | Z6: 110574.39 | AA6: 30.71510833 | AB6: 0
D7: 34601.28 | E7: =FORM!H40 -> S | F7: 383311.26 | G7: W | H7: 37.4 | I7: =AD11 -> 5785.667441 | J7: =AD14 -> 29.77183947 | K7: =H7-H2 -> 12.4 | U7: 0 | V7: 30.92208055 | W7: 0 | Y7: 0 | Z7: 110574.39 | AA7: 30.71510833 | AB7: 0
U8: -1 | V8: 30.91740278 | W8: 0 | Y8: -1 | Z8: 110575.06 | AA8: 30.71529444 | AB8: 0 | AC8: =Q30*3600*W43 -> 2872.78159
U9: -2 | V9: 30.90336944 | W9: 0 | Y9: -2 | Z9: 110576.42 | AA9: 30.71567222 | AB9: 0 | AH9: Novo Az da TH para o obst | AI9: =IF(AI3-AK12<0,AI3-AK12+360,AI3-AK12) -> 104.8590617 | AK9: Az Cont da App
U10: -3 | V10: 30.87998611 | W10: 0 | Y10: -3 | Z10: 110578.44 | AA10: 30.71623333 | AB10: 0 | AH10: Ângulo alfa | AI10: =IF(AI9<=90,AI9,IF(AI9<=180,180-AI9,IF(AI9<=270,AI9-180,360-AI9))) -> 75.14093831
U11: -4 | V11: 30.84725556 | W11: 0 | Y11: -4 | Z11: 110581.14 | AA11: 30.71698333 | AB11: 0 | AC11: h= | AD11: =((AC8^2+AD5^2)^0.5)*1.0000266404 -> 5785.667441 | AH11: Seno | AI11: =SIN((AI10)/180*PI()) -> 0.9665595561
U12: -5 | V12: 30.80519444 | W12: 0 | Y12: -5 | Z12: 110584.5 | AA12: 30.71791667 | AB12: 0 | AC12: Tan= | AD12: =IF(AC8=0,10000000,AD5/AC8) -> 1.74809013 | AH12: Cosseno | AI12: =COS((AI10)/180*PI()) -> 0.2564422439 | AK12: =IF(AND(AJ4>=0,AJ4<=180),AJ4+180,AJ4-180) -> 284.9127778
U13: -6 | V13: 30.75380556 | W13: 0 | Y13: -6 | Z13: 110588.53 | AA13: 30.71903611 | AB13: 0 | AC13: Ângulo da Tan= | AD13: =ATAN(AD12)*180/PI() -> 60.22816053 | AH13: X-Modular | AI13: =AI12*AI2 -> 1483.689541
Q14: Lat AD | U14: -7 | V14: 30.69311111 | W14: 0 | Y14: -7 | Z14: 110593.22 | AA14: 30.72033889 | AB14: 0 | AC14: AZ Verd= | AD14: =IF(Q33>=Q17,IF(Q25>=Q22,90-AD13,270+AD13),IF(Q25>=Q22,90+AD13,180+(90-AD13))) -> 29.77183947 | AH14: Y-Modular | AI14: =AI11*AI2 -> 5592.192154
Q15: G | R15: M | S15: S | U15: -8 | V15: 30.62312778 | W15: 0 | Y15: -8 | Z15: 110598.57 | AA15: 30.721825 | AB15: 0 | AH15: X-Real | AI15: =IF(OR(AI9<=90,AI9>=270),AI13,AI13*(-1)) -> -1483.689541
Q16: =FORMULÁRIO!O22 -> 10 | R16: =FORMULÁRIO!P22 -> 25 | S16: =FORMULÁRIO!Q22 -> 35.66 | U16: -9 | V16: 30.54387222 | W16: 0 | Y16: -9 | Z16: 110604.56 | AA16: 30.72348889 | AB16: 0 | AH16: Y-Real | AI16: =IF(AND(AI9>0,AI9<180),AI14*(-1),AI14) -> -5592.192154
A17: N | B17: Ident | C17: Tipo | D17: Lat | E17: H | F17: Long | G17: H | H17: Altitude (m) | I17: Dist (m) | J17: Az Verd | K17: Altura (m) | L17: X (m) | M17: Y (m) | N17: Fonte | O17: Data | P17: Dup | Q17: =IF(E2="n",(S16/60+R16)/60+Q16,((S16/60+R16)/60+Q16)*(-1)) -> -10.42657222 | U17: -10 | V17: 30.45536667 | W17: 0 | Y17: -10 | Z17: 110611.19 | AA17: 30.72533056 | AB17: 0
A18: 1 | I18: 1035.834342 | J18: 307.9551126 | K18: 12.4 | L18: 953.1912293 | M18: -405.4371272 | P18: CONCATENAR(D18;"/";F18) | U18: -11 | V18: 30.35764167 | W18: 30.41589825 | Y18: -11 | Z18: 110618.45 | AA18: 30.72734722 | AB18: 30.72614503
A19: 2 | E19: S | G19: W | Q19: Lon AD | U19: -12 | V19: 30.25071944 | W19: 0 | Y19: -12 | Z19: 110626.34 | AA19: 30.72953889 | AB19: 0
A20: 3 | E20: S | G20: W | Q20: G | R20: M | S20: S | U20: -13 | V20: 30.13463611 | W20: 0 | Y20: -13 | Z20: 110634.84 | AA20: 30.7319 | AB20: 0
A21: 4 | E21: S | G21: W | Q21: =FORMULÁRIO!O23 -> 45 | R21: =FORMULÁRIO!P23 -> 4 | S21: =FORMULÁRIO!Q23 -> 0 | U21: -14 | V21: 30.00941944 | W21: 0 | Y21: -14 | Z21: 110643.94 | AA21: 30.73442778 | AB21: 0
A22: 5 | E22: S | G22: W | Q22: =IF(G2="e",(S21/60+R21)/60+Q21,((S21/60+R21)/60+Q21)*(-1)) -> -45.06666667 | U22: -15 | V22: 29.87511111 | W22: 0 | Y22: -15 | Z22: 110653.64 | AA22: 30.73712222 | AB22: 0
A23: 6 | E23: S | G23: W | Q23: Lon Obst | U23: -16 | V23: 29.73174444 | W23: 0 | Y23: -16 | Z23: 110663.93 | AA23: 30.73998056 | AB23: 0
A24: 7 | E24: S | G24: W | Q24: =FORMULÁRIO!R23 -> 45 | R24: =FORMULÁRIO!S23 -> 2 | S24: =FORMULÁRIO!T23 -> 25.55 | U24: -17 | V24: 29.57936667 | W24: 0 | Y24: -17 | Z24: 110674.78 | AA24: 30.74299444 | AB24: 0
A25: 8 | E25: S | G25: W | Q25: =IF(G7="e",(S24/60+R24)/60+Q24,((S24/60+R24)/60+Q24)*(-1)) -> -45.04043056 | U25: -18 | V25: 29.41801389 | W25: 0 | Y25: -18 | Z25: 110686.18 | AA25: 30.74616111 | AB25: 0
A26: 9 | E26: S | G26: W | U26: -19 | V26: 29.24774167 | W26: 0 | Y26: -19 | Z26: 110698.14 | AA26: 30.74948333 | AB26: 0
A27: 10 | E27: S | G27: W | Q27: Dif - Lat(Modular) | U27: -20 | V27: 29.06859167 | W27: 0 | Y27: -20 | Z27: 110710.61 | AA27: 30.75294722 | AB27: 0
A28: 11 | E28: S | G28: W | Q28: =ABS(Q33-Q17) -> 0.0454 | U28: -21 | V28: 28.88061944 | W28: 0 | Y28: -21 | Z28: 110723.61 | AA28: 30.75655833 | AB28: 0
A29: 12 | E29: S | G29: W | Q29: Dif - Long(Modular) | U29: -22 | V29: 28.68388056 | W29: 0 | Y29: -22 | Z29: 110737.1 | AA29: 30.76030556 | AB29: 0
A30: 13 | E30: S | G30: W | Q30: =ABS(Q25-Q22) -> 0.02623611111 | U30: -23 | V30: 28.47842778 | W30: 0 | Y30: -23 | Z30: 110751.08 | AA30: 30.76418889 | AB30: 0
A31: 14 | E31: S | G31: W | Q31: Lat Obst | U31: -24 | V31: 28.26432222 | W31: 0 | Y31: -24 | Z31: 110765.52 | AA31: 30.7682 | AB31: 0
A32: 15 | E32: S | G32: W | Q32: =FORMULÁRIO!R22 -> 10 | R32: =FORMULÁRIO!S22 -> 22 | S32: =FORMULÁRIO!T22 -> 52.22 | U32: -25 | V32: 28.04162778 | W32: 0 | Y32: -25 | Z32: 110780.4 | AA32: 30.77233333 | AB32: 0
A33: 16 | E33: S | G33: W | Q33: =IF(E7="n",(S32/60+R32)/60+Q32,((S32/60+R32)/60+Q32)*(-1)) -> -10.38117222 | U33: -26 | V33: 27.81040833 | W33: 0 | Y33: -26 | Z33: 110795.72 | AA33: 30.77658889 | AB33: 0
A34: 17 | E34: S | G34: W | U34: -27 | V34: 27.57073056 | W34: 0 | Y34: -27 | Z34: 110811.45 | AA34: 30.78095833 | AB34: 0
A35: 18 | E35: S | G35: W | Q35: Lat média | U35: -28 | V35: 27.32266389 | W35: 0 | Y35: -28 | Z35: 110827.58 | AA35: 30.78543889 | AB35: 0
A36: 19 | E36: S | G36: W | Q36: =(Q33+Q17)/2 -> -10.40387222 | U36: -29 | V36: 27.06628333 | W36: 0 | Y36: -29 | Z36: 110844.07 | AA36: 30.79001944 | AB36: 0
A37: 20 | E37: S | G37: W | U37: -30 | V37: 26.80165833 | W37: 0 | Y37: -30 | Z37: 110860.93 | AA37: 30.79470278 | AB37: 0
A38: 21 | E38: S | G38: W | U38: -31 | V38: 26.52887222 | W38: 0 | Y38: -31 | Z38: 110878.11 | AA38: 30.799475 | AB38: 0
A39: 22 | E39: S | G39: W | U39: -32 | V39: 26.24800278 | W39: 0 | Y39: -32 | Z39: 110895.61 | AA39: 30.80433611 | AB39: 0
A40: 23 | E40: S | G40: W | U40: -33 | V40: 25.95912778 | W40: 0 | Y40: -33 | Z40: 110913.4 | AA40: 30.80927778 | AB40: 0
A41: 24 | E41: S | G41: W | U41: -34 | V41: 25.66233889 | W41: 0 | Y41: -34 | Z41: 110931.46 | AA41: 30.81429444 | AB41: 0
A42: 25 | E42: S | G42: W | U42: -35 | V42: 25.35771944 | W42: 0 | Y42: -35 | Z42: 110949.77 | AA42: 30.81938056 | AB42: 0
A43: 26 | E43: S | G43: W | V43: Soma | W43: =SUM(W3:W42) -> 30.41589825 | AA43: Soma | AB43: =SUM(AB3:AB42) -> 30.72614503
A44: 27 | E44: S | G44: W
A45: 28 | E45: S | G45: W
A46: 29 | E46: S | G46: W
A47: 30 | E47: S | G47: W
A48: 31 | E48: S | G48: W
A49: 32 | E49: S | G49: W
A50: 33 | E50: S | G50: W
A51: 34 | E51: S | G51: W
A52: 35 | E52: S | G52: W
A53: 36 | E53: S | G53: W
A54: 37 | E54: S | G54: W
A55: 38 | E55: S | G55: W
A56: 39 | E56: S | G56: W
A57: 40 | E57: S | G57: W
A58: 41 | E58: S | G58: W
A59: 42 | E59: S | G59: W
A60: 43 | E60: S | G60: W
A61: 44 | E61: S | G61: W
A62: 45 | E62: S | G62: W
A63: 46 | E63: S | G63: W
A64: 47 | E64: S | G64: W
A65: 48 | E65: S | G65: W
A66: 49 | E66: S | G66: W
A67: 50 | E67: S | G67: W
A68: 51 | E68: S | G68: W
A69: 52 | E69: S | G69: W
A70: 53 | E70: S | G70: W
A71: 54 | E71: S | G71: W
A72: 55 | E72: S | G72: W
A73: 56 | E73: S | G73: W
A74: 57 | E74: S | G74: W
A75: 58 | E75: S | G75: W
A76: 59 | E76: S | G76: W
A77: 60 | E77: S | G77: W
A78: 61 | E78: S | G78: W
A79: 62 | E79: S | G79: W
A80: 63 | E80: S | G80: W
A81: 64 | E81: S | G81: W
A82: 65 | E82: S | G82: W
A83: 66 | E83: S | G83: W
A84: 67 | E84: S | G84: W
A85: 68 | E85: S | G85: W
A86: 69 | E86: S | G86: W
A87: 70 | E87: S | G87: W
A88: 71 | E88: S | G88: W
A89: 72 | E89: S | G89: W
A90: 73 | E90: S | G90: W
A91: 74 | E91: S | G91: W
A92: 75 | E92: S | G92: W
A93: 76 | E93: S | G93: W
A94: 77 | E94: S | G94: W
A95: 78 | E95: S | G95: W
A96: 79 | E96: S | G96: W
A97: 80 | E97: S | G97: W
A98: 81 | E98: S | G98: W
A99: 82 | E99: S | G99: W
A100: 83 | E100: S | G100: W
A101: 84 | E101: S | G101: W
A102: 85 | E102: S | G102: W
A103: 86 | E103: S | G103: W
A104: 87 | E104: S | G104: W
A105: 88 | E105: S | G105: W
A106: 89 | E106: S | G106: W
A107: 90 | E107: S | G107: W
A108: 91 | E108: S | G108: W
A109: 92 | E109: S | G109: W
A110: 93 | E110: S | G110: W
A111: 94 | E111: S | G111: W
A112: 95 | E112: S | G112: W
A113: 96 | E113: S | G113: W
A114: 97 | E114: S | G114: W
A115: 98 | E115: S | G115: W
A116: 99 | E116: S | G116: W
A117: 100 | E117: S | G117: W
A118: 101 | E118: S | G118: W
A119: 102 | E119: S | G119: W
A120: 103 | E120: S | G120: W
A121: 104 | E121: S | G121: W
A122: 105 | E122: S | G122: W
A123: 106 | E123: S | G123: W
A124: 107 | E124: S | G124: W
A125: 108 | E125: S | G125: W
A126: 109 | E126: S | G126: W
A127: 110 | E127: S | G127: W
A128: 111 | E128: S | G128: W
A129: 112 | E129: S | G129: W
A130: 113 | E130: S | G130: W
A131: 114 | E131: S | G131: W
A132: 115 | E132: S | G132: W
A133: 116 | E133: S | G133: W
A134: 117 | E134: S | G134: W
A135: 118 | E135: S | G135: W
A136: 119 | E136: S | G136: W
A137: 120 | E137: S | G137: W
A138: 121 | E138: S | G138: W
A139: 122 | E139: S | G139: W
A140: 123 | E140: S | G140: W
A141: 124 | E141: S | G141: W
A142: 125 | E142: S | G142: W
A143: 126 | E143: S | G143: W
A144: 127 | E144: S | G144: W
A145: 128 | E145: S | G145: W
A146: 129 | E146: S | G146: W
A147: 130 | E147: S | G147: W
A148: 131 | E148: S | G148: W
A149: 132 | E149: S | G149: W
A150: 133 | E150: S | G150: W
A151: 134 | E151: S | G151: W
A152: 135 | E152: S | G152: W
A153: 136 | E153: S | G153: W
A154: 137 | E154: S | G154: W
A155: 138 | E155: S | G155: W
A156: 139 | E156: S | G156: W
A157: 140 | E157: S | G157: W
A158: 141 | E158: S | G158: W
A159: 142 | E159: S | G159: W
A160: 143 | E160: S | G160: W
A161: 144 | E161: S | G161: W
A162: 145 | E162: S | G162: W
A163: 146 | E163: S | G163: W
A164: 147 | E164: S | G164: W
A165: 148 | E165: S | G165: W
A166: 149 | E166: S | G166: W
A167: 150 | E167: S | G167: W
A168: 151 | E168: S | G168: W
A169: 152 | E169: S | G169: W
A170: 153 | E170: S | G170: W
A171: 154 | E171: S | G171: W
A172: 155 | E172: S | G172: W
A173: 156 | E173: S | G173: W
A174: 157 | E174: S | G174: W
A175: 158 | E175: S | G175: W
A176: 159 | E176: S | G176: W
A177: 160 | E177: S | G177: W
A178: 161 | E178: S | G178: W
A179: 162 | E179: S | G179: W
A180: 163 | E180: S | G180: W
A181: 164 | E181: S | G181: W
A182: 165 | E182: S | G182: W
A183: 166 | E183: S | G183: W
A184: 167 | E184: S | G184: W
A185: 168 | E185: S | G185: W
A186: 169 | E186: S | G186: W
A187: 170 | E187: S | G187: W
A188: 171 | E188: S | G188: W
A189: 172 | E189: S | G189: W
A190: 173 | E190: S | G190: W
A191: 174 | E191: S | G191: W
A192: 175 | E192: S | G192: W
A193: 176 | E193: S | G193: W
A194: 177 | E194: S | G194: W
A195: 178 | E195: S | G195: W
A196: 179 | E196: S | G196: W
A197: 180 | E197: S | G197: W
A198: 181 | E198: S | G198: W
A199: 182 | E199: S | G199: W
A200: 183 | E200: S | G200: W
... 3817 more rows

Sheet calculo (hidden)
B1: Comprimento | C1: Rumo Verd | I1: Comprimento | J1: Rumo Verd
B2: =IF((B5^2+C5^2)^0.5=0,0.1,(B5^2+C5^2)^0.5) -> 3304.597196 | C2: =IF(B6>B7,IF(C6>C7,360-(90+D6),90+D6),IF(C6>C7,270+D6,90-D6)) -> 213.5039706 | I2: =IF((I5^2+J5^2)^0.5=0,0.1,(I5^2+J5^2)^0.5) -> 3304.597196 | J2: =IF(I6>I7,IF(J6>J7,360-(90+K6),90+K6),IF(J6>J7,270+K6,90-K6)) -> 33.50397062
B4: y (dist. latitude) | C4: x (dist. Long.) | D4: a | E4: Coordenadas | I4: y (dist. latitude) | J4: x (dist. Long.) | K4: a | L4: Coordenadas
B5: =IF(OR(SIGN(E6*3600+F6*60+G6)*SIGN(E7*3600+F7*60+G7)>0,SIGN(E6*3600+F6*60+G6)*SIGN(E7*3600+F7*60+G7)=0),(ABS((B6-B7)*1852/60)*B8),((ABS(B6)+ABS(B7))*1852/60)*B8) -> 2755.530343 | C5: =ABS((C6-C7)*1852/60)*C8 -> 1824.120378 | D5: =IF(B6>B7,(B6-ABS(B6-B7)/2)/3600,(B7-ABS(B6-B7)/2)/3600) -> 10.3542125 | E5: =FORMULÁRIO!$F$23 -> 45 | F5: =FORMULÁRIO!$G$23 -> 1 | G5: =FORMULÁRIO!$H$23 -> 0 | I5: =IF(OR(SIGN(L6*3600+M6*60+N6)*SIGN(L7*3600+M7*60+N7)>0,SIGN(L6*3600+M6*60+N6)*SIGN(L7*3600+M7*60+N7)=0),(ABS((I6-I7)*1852/60)*I8),((ABS(I6)+ABS(I7))*1852/60)*I8) -> 2755.530343 | J5: =ABS((J6-J7)*1852/60)*J8 -> 1824.120378 | K5: =IF(I6>I7,(I6-ABS(I6-I7)/2)/3600,(I7-ABS(I6-I7)/2)/3600) -> 10.3542125 | L5: =E8 -> 45 | M5: =F8 -> 0 | N5: 0
B6: =E6*60^2+F6*60+G6 -> 37320 | C6: =E5*60^2+F5*60+G5 -> 162060 | D6: =ACOS(C5/B2)*180/PI() -> 56.49602938 | E6: =FORMULÁRIO!$F$22 -> 10 | F6: =FORMULÁRIO!$G$22 -> 22 | G6: =FORMULÁRIO!$H$22 -> 0 | I6: =L6*60^2+M6*60+N6 -> 37230.33 | J6: =L5*60^2+M5*60+N5 -> 162000 | K6: =ACOS(J5/I2)*180/PI() -> 56.49602938 | L6: =E7 -> 10 | M6: =F7 -> 20 | N6: 30.33
B7: =E7*60^2+F7*60+G7 -> 37230.33 | C7: =E8*60^2+F8*60+G8 -> 162000 | E7: =FORMULÁRIO!$C$22 -> 10 | F7: =FORMULÁRIO!$D$22 -> 20 | G7: =FORMULÁRIO!$E$22 -> 30.33 | I7: =L7*60^2+M7*60+N7 -> 37320 | J7: =L8*60^2+M8*60+N8 -> 162060 | L7: =E6 -> 10 | M7: =F6 -> 22 | N7: 0
B8: =IF(D5<2,COS((5.676*PI())/180),IF(D5<4,COS((5.66*PI())/180),IF(D5<6,COS((5.634*PI())/180),IF(D5<8,COS((5.59*PI())/180),IF(D5<10,COS((5.54*PI())/180),B9))))) -> 0.9955619646 | C8: =IF(D5<2,1.00147,IF(D5<4,1.00012,IF(D5<6,COS(((D5-1.25)*PI())/180),IF(D5<10,COS(((D5-0.8)*PI())/180),IF(D5<19,COS(((D5-0.4)*PI())/180),COS(((D5-0.32)*PI())/180)))))) -> 0.9849462082 | E8: =FORMULÁRIO!$C$23 -> 45 | F8: =FORMULÁRIO!$D$23 -> 0 | G8: =FORMULÁRIO!$E$23 -> 0 | I8: =IF(K5<2,COS((5.676*PI())/180),IF(K5<4,COS((5.66*PI())/180),IF(K5<6,COS((5.634*PI())/180),IF(K5<8,COS((5.59*PI())/180),IF(K5<10,COS((5.54*PI())/180),I9))))) -> 0.9955619646 | J8: =IF(K5<2,1.00147,IF(K5<4,1.00012,IF(K5<6,COS(((K5-1.25)*PI())/180),IF(K5<10,COS(((K5-0.8)*PI())/180),IF(K5<19,COS(((K5-0.4)*PI())/180),COS(((K5-0.32)*PI())/180)))))) -> 0.9849462082 | L8: =E5 -> 45 | M8: =F5 -> 1 | N8: 0
B9: =IF(D5<13,COS((5.4*PI())/180),IF(D5<16,COS((5.3*PI())/180),IF(D5<19,COS((5.2*PI())/180),IF(D5<22,COS((4.82*PI())/180),B10)))) -> 0.9955619646 | D9: =IF(B6>B7,IF(C6>C7,360-(90+D6),90+D6),IF(C6>C7,360-(90-D6),90-D6)) -> 213.5039706 | I9: =IF(K5<13,COS((5.4*PI())/180),IF(K5<16,COS((5.3*PI())/180),IF(K5<19,COS((5.2*PI())/180),IF(K5<22,COS((4.82*PI())/180),I10)))) -> 0.9955619646 | K9: =IF(I6>I7,IF(J6>J7,360-(90+K6),90+K6),IF(J6>J7,360-(90-K6),90-K6)) -> 33.50397062
B10: =IF(D5<26,COS((4.78*PI())/180),IF(D5<28,COS((4.45*PI())/180),IF(D5<30,COS((4.2*PI())/180),COS((3.9*PI())/180)))) -> 0.9965220076 | I10: =IF(K5<26,COS((4.78*PI())/180),IF(K5<28,COS((4.45*PI())/180),IF(K5<30,COS((4.2*PI())/180),COS((3.9*PI())/180)))) -> 0.9965220076
B13: Comprimento | C13: Rumo Verd
B14: =IF((B17^2+C17^2)^0.5=0,0.1,(B17^2+C17^2)^0.5) -> 3227.967139 | C14: =IF(B18>B19,IF(C18>C19,360-(90+D18),90+D18),IF(C18>C19,270+D18,90-D18)) -> 214.4030773
B16: y (dist. latitude) | C16: x (dist. Long.) | D16: a | E16: Coordenadas
B17: =IF(OR(SIGN(E18*3600+F18*60+G18)*SIGN(E19*3600+F19*60+G19)>0,SIGN(E18*3600+F18*60+G18)*SIGN(E19*3600+F19*60+G19)=0),(ABS((B18-B19)*1852/60)*B20),((ABS(B18)+ABS(B19))*1852/60)*B20) -> 2663.341306 | C17: =ABS((C18-C19)*1852/60)*C20 -> 1823.837969 | D17: =IF(B18>B19,(B18-ABS(B18-B19)/2)/3600,(B19-ABS(B18-B19)/2)/3600) -> 10.40462917 | E17: =FORMULÁRIO!$L$23 -> 45 | F17: =FORMULÁRIO!$M$23 -> 3 | G17: =FORMULÁRIO!$N$23 -> 0 | H17: =E17+F17/60+G17/3600 -> 45.05 | I17: =B14 -> 3227.967139
B18: =E18*60^2+F18*60+G18 -> 37500 | C18: =E17*60^2+F17*60+G17 -> 162180 | D18: =ACOS(C17/B14)*180/PI() -> 55.5969227 | E18: =FORMULÁRIO!$L$22 -> 10 | F18: =FORMULÁRIO!$M$22 -> 25 | G18: =FORMULÁRIO!$N$22 -> 0 | H18: =E18+F18/60+G18/3600 -> 10.41666667 | I18: 6353000
B19: =E19*60^2+F19*60+G19 -> 37413.33 | C19: =E20*60^2+F20*60+G20 -> 162120 | E19: =FORMULÁRIO!$I$22 -> 10 | F19: =FORMULÁRIO!$J$22 -> 23 | G19: =FORMULÁRIO!$K$22 -> 33.33 | H19: =E19+F19/60+G19/3600 -> 10.39259167
B20: =IF(D17<2,COS((5.676*PI())/180),IF(D17<4,COS((5.66*PI())/180),IF(D17<6,COS((5.634*PI())/180),IF(D17<8,COS((5.59*PI())/180),IF(D17<10,COS((5.54*PI())/180),B21))))) -> 0.9955619646 | C20: =IF(D17<2,1.00147,IF(D17<4,1.00012,IF(D17<6,COS(((D17-1.25)*PI())/180),IF(D17<10,COS(((D17-0.8)*PI())/180),IF(D17<19,COS(((D17-0.4)*PI())/180),COS(((D17-0.32)*PI())/180)))))) -> 0.98479372 | E20: =FORMULÁRIO!$I$23 -> 45 | F20: =FORMULÁRIO!$J$23 -> 2 | G20: =FORMULÁRIO!$K$23 -> 0 | H20: =E20+F20/60+G20/3600 -> 45.03333333
B21: =IF(D17<13,COS((5.4*PI())/180),IF(D17<16,COS((5.3*PI())/180),IF(D17<19,COS((5.2*PI())/180),IF(D17<22,COS((4.82*PI())/180),B22)))) -> 0.9955619646 | D21: =IF(B18>B19,IF(C18>C19,360-(90+D18),90+D18),IF(C18>C19,360-(90-D18),90-D18)) -> 214.4030773
B22: =IF(D17<26,COS((4.78*PI())/180),IF(D17<28,COS((4.45*PI())/180),IF(D17<30,COS((4.2*PI())/180),COS((3.9*PI())/180)))) -> 0.9965220076
B25: Comprimento | C25: Rumo Verd
B26: =IF((B29^2+C29^2)^0.5=0,0.1,(B29^2+C29^2)^0.5) -> 5785.146054 | C26: =IF(B30>B31,IF(C30>C31,360-(90+D30),90+D30),IF(C30>C31,270+D30,90-D30)) -> 29.75395482
B28: y (dist. latitude) | C28: x (dist. Long.) | D28: a | E28: Coordenadas
B29: =IF(OR(SIGN(E30*3600+F30*60+G30)*SIGN(E31*3600+F31*60+G31)>0,SIGN(E30*3600+F30*60+G30)*SIGN(E31*3600+F31*60+G31)=0),(ABS((B30-B31)*1852/60)*B32),((ABS(B30)+ABS(B31))*1852/60)*B32) -> 5022.458786 | C29: =ABS((C30-C31)*1852/60)*C32 -> 2871.031628 | D29: =IF(B30>B31,(B30-ABS(B30-B31)/2)/3600,(B31-ABS(B30-B31)/2)/3600) -> 10.40387222 | E29: =FORMULÁRIO!$R$23 -> 45 | F29: =FORMULÁRIO!$S$23 -> 2 | G29: =FORMULÁRIO!$T$23 -> 25.55 | H29: =E29+F29/60+G29/3600 -> 45.04043056 | I29: =B26 -> 5785.146054
B30: =E30*60^2+F30*60+G30 -> 37372.22 | C30: =E29*60^2+F29*60+G29 -> 162145.55 | D30: =ACOS(C29/B26)*180/PI() -> 60.24604518 | E30: =FORMULÁRIO!$R$22 -> 10 | F30: =FORMULÁRIO!$S$22 -> 22 | G30: =FORMULÁRIO!$T$22 -> 52.22 | H30: =E30+F30/60+G30/3600 -> 10.38117222 | I30: 6353000
B31: =E31*60^2+F31*60+G31 -> 37535.66 | C31: =E32*60^2+F32*60+G32 -> 162240 | E31: =FORMULÁRIO!$O$22 -> 10 | F31: =FORMULÁRIO!$P$22 -> 25 | G31: =FORMULÁRIO!$Q$22 -> 35.66 | H31: =E31+F31/60+G31/3600 -> 10.42657222
B32: =IF(D29<2,COS((5.676*PI())/180),IF(D29<4,COS((5.66*PI())/180),IF(D29<6,COS((5.634*PI())/180),IF(D29<8,COS((5.59*PI())/180),IF(D29<10,COS((5.54*PI())/180),B33))))) -> 0.9955619646 | C32: =IF(D29<2,1.00147,IF(D29<4,1.00012,IF(D29<6,COS(((D29-1.25)*PI())/180),IF(D29<10,COS(((D29-0.8)*PI())/180),IF(D29<19,COS(((D29-0.4)*PI())/180),COS(((D29-0.32)*PI())/180)))))) -> 0.9847960151 | E32: =FORMULÁRIO!$O$23 -> 45 | F32: =FORMULÁRIO!$P$23 -> 4 | G32: =FORMULÁRIO!$Q$23 -> 0 | H32: =E32+F32/60+G32/3600 -> 45.06666667
B33: =IF(D29<13,COS((5.4*PI())/180),IF(D29<16,COS((5.3*PI())/180),IF(D29<19,COS((5.2*PI())/180),IF(D29<22,COS((4.82*PI())/180),B34)))) -> 0.9955619646 | D33: =IF(B30>B31,IF(C30>C31,360-(90+D30),90+D30),IF(C30>C31,360-(90-D30),90-D30)) -> 29.75395482
B34: =IF(D29<26,COS((4.78*PI())/180),IF(D29<28,COS((4.45*PI())/180),IF(D29<30,COS((4.2*PI())/180),COS((3.9*PI())/180)))) -> 0.9965220076

Sheet PISTA (hidden)
A1: CODIGO DE REFERÊNCIA | B1: =FORMULÁRIO!C12 -> 0 | C1: =FORMULÁRIO!I12 -> 0 | D1: =FORMULÁRIO!O12 -> 0
A2: TIPO DE OPERAÇÃO (VFR, IFR OU IFR-P) | B2: =IF(B16<10,"VFR",IF(B16<100,"IFR","IFR-P")) -> IFR-P | C2: =IF(C16<10,"VFR",IF(C16<100,"IFR","IFR-P")) -> IFR-P | D2: =IF(D16<10,"VFR",IF(D16<100,"IFR","IFR-P")) -> IFR-P
A6: COMPRIMENTO DA PISTA | B6: =FORMULÁRIO!C13 -> 3304.907 | C6: =FORMULÁRIO!I13 -> 3228.309 | D6: =FORMULÁRIO!O13 -> 5785.423
A7: LARGURA DA PISTA | B7: =FORMULÁRIO!C14 -> 0 | C7: =FORMULÁRIO!I14 -> 0 | D7: =FORMULÁRIO!O14 -> 0
A8: FAIXA DE PISTA LARGURA | B8: =IF(B2="VFR",IF(B1=1,60,IF(B1=2,80,150)),IF(B1<3,150,300)) -> 150 | C8: =IF(C2="VFR",IF(C1=1,60,IF(C1=2,80,150)),IF(C1<3,150,300)) -> 150 | D8: =IF(D2="VFR",IF(D1=1,60,IF(D1=2,80,150)),IF(D1<3,150,300)) -> 150
A9: FAIXA DE PISTA COMPRIMENTO | B9: =IF(AND(B1=1,B2="vfr"),30,60)*2+B6+FORMULÁRIO!C40+FORMULÁRIO!F40 -> 3424.907 | C9: =IF(AND(C1=1,C2="vfr"),30,60)*2+C6+FORMULÁRIO!I40+FORMULÁRIO!L40 -> 3348.309 | D9: =IF(AND(D1=1,D2="vfr"),30,60)*2+D6+FORMULÁRIO!O40+FORMULÁRIO!R40 -> 5905.423
B12: =IF(FORMULÁRIO!C27="vfr",1,IF(FORMULÁRIO!C27="ifr npa",10,IF(FORMULÁRIO!C27="NA",0,1000))) -> 1000 | C12: =IF(FORMULÁRIO!I27="vfr",1,IF(FORMULÁRIO!I27="ifr npa",10,IF(FORMULÁRIO!I27="NA",0,1000))) -> 1000 | D12: =IF(FORMULÁRIO!O27="vfr",1,IF(FORMULÁRIO!O27="ifr npa",10,IF(FORMULÁRIO!O27="NA",0,1000))) -> 1000
B13: =IF(FORMULÁRIO!C30="vfr",1,IF(FORMULÁRIO!C30="ifr npa",10,IF(FORMULÁRIO!C30="NA",0,1000))) -> 1000 | C13: =IF(FORMULÁRIO!I30="vfr",1,IF(FORMULÁRIO!I30="ifr npa",10,IF(FORMULÁRIO!I30="NA",0,1000))) -> 1000 | D13: =IF(FORMULÁRIO!O30="vfr",1,IF(FORMULÁRIO!O30="ifr npa",10,IF(FORMULÁRIO!O30="NA",0,1000))) -> 1000
B14: =IF(FORMULÁRIO!F27="vfr",1,IF(FORMULÁRIO!F27="ifr npa",10,IF(FORMULÁRIO!F27="NA",0,1000))) -> 1000 | C14: =IF(FORMULÁRIO!L27="vfr",1,IF(FORMULÁRIO!L27="ifr npa",10,IF(FORMULÁRIO!L27="NA",0,1000))) -> 1000 | D14: =IF(FORMULÁRIO!R27="vfr",1,IF(FORMULÁRIO!R27="ifr npa",10,IF(FORMULÁRIO!R27="NA",0,1000))) -> 1000
B15: =IF(FORMULÁRIO!F30="vfr",1,IF(FORMULÁRIO!F30="ifr npa",10,IF(FORMULÁRIO!F30="NA",0,1000))) -> 1000 | C15: =IF(FORMULÁRIO!L30="vfr",1,IF(FORMULÁRIO!L30="ifr npa",10,IF(FORMULÁRIO!L30="NA",0,1000))) -> 1000 | D15: =IF(FORMULÁRIO!R30="vfr",1,IF(FORMULÁRIO!R30="ifr npa",10,IF(FORMULÁRIO!R30="NA",0,1000))) -> 1000
B16: =SUM(B12:B15) -> 4000 | C16: =SUM(C12:C15) -> 4000 | D16: =SUM(D12:D15) -> 4000

Sheet DEC (hidden)
A1: CABECEIRA | B1: =FORMULÁRIO!C20 -> 24.68563478 | E1: =FORMULÁRIO!F20 -> 6.685634784 | H1: =FORMULÁRIO!I20 -> 24.77554235 | K1: =FORMULÁRIO!L20 -> 6.775542351 | N1: =FORMULÁRIO!O20 -> 6.310483947 | Q1: =FORMULÁRIO!R20 -> 24.31048395
A2: ELEVAÇÃO CONSIDERADA | B2: =IF(B3>0,B3,APROX!E2) -> 2 | E2: =IF(E3>0,E3,APROX!B2) -> 2 | H2: =IF(H3>0,H3,APROX!K2) -> 33 | K2: =IF(K3>0,K3,APROX!H2) -> 33 | N2: =IF(N3>0,N3,APROX!K2) -> 33 | Q2: =IF(Q3>0,Q3,APROX!N2) -> 3
A3: MAIOR ELEVAÇÃO DA CLEARWAY OU FAIXA DE PISTA | B3: =FORMULÁRIO!C45 -> 0 | E3: =FORMULÁRIO!F45 -> 0 | H3: =FORMULÁRIO!I45 -> 0 | K3: =FORMULÁRIO!L45 -> 0 | N3: =FORMULÁRIO!O45 -> 0 | Q3: =FORMULÁRIO!R45 -> 0
A4: CODIGO REFERENCIA DECOLAGEM | B4: =FORMULÁRIO!C29 -> 0 | E4: =FORMULÁRIO!F29 -> 0 | H4: =FORMULÁRIO!I29 -> 0 | K4: =FORMULÁRIO!L29 -> 0 | N4: =FORMULÁRIO!O29 -> 0 | Q4: =FORMULÁRIO!R29 -> 0
A5: TIPO DE OPERAÇÃO (VFR OU IFR) | B5: =FORMULÁRIO!C30 -> 0 | E5: =FORMULÁRIO!F30 -> 0 | H5: =FORMULÁRIO!I30 -> 0 | K5: =FORMULÁRIO!L30 -> 0 | N5: =FORMULÁRIO!O30 -> 0 | Q5: =FORMULÁRIO!R30 -> 0
A6: SID EM CURVA? S ou N | B6: =FORMULÁRIO!C31 -> 0 | E6: =FORMULÁRIO!F31 -> 0 | H6: =FORMULÁRIO!I31 -> 0 | K6: =FORMULÁRIO!L31 -> 0 | N6: =FORMULÁRIO!O31 -> 0 | Q6: =FORMULÁRIO!R31 -> 0
A7: Largura da borda interna (m): | B7: =IF(OR(B5="NA",B4="NA"),"NA",IF(B4=1,60,IF(B4=2,80,180))) -> 180 | E7: =IF(OR(E5="NA",E4="NA"),"NA",IF(E4=1,60,IF(E4=2,80,180))) -> 180 | H7: =IF(OR(H5="NA",H4="NA"),"NA",IF(H4=1,60,IF(H4=2,80,180))) -> 180 | K7: =IF(OR(K5="NA",K4="NA"),"NA",IF(K4=1,60,IF(K4=2,80,180))) -> 180 | N7: =IF(OR(N5="NA",N4="NA"),"NA",IF(N4=1,60,IF(N4=2,80,180))) -> 180 | Q7: =IF(OR(Q5="NA",Q4="NA"),"NA",IF(Q4=1,60,IF(Q4=2,80,180))) -> 180
A8: Elevação da borda interna (m): | B8: =IF(OR(B5="NA",B4="NA"),"NA",B2) -> 2 | E8: =IF(OR(E5="NA",E4="NA"),"NA",E2) -> 2 | H8: =IF(OR(H5="NA",H4="NA"),"NA",H2) -> 33 | K8: =IF(OR(K5="NA",K4="NA"),"NA",K2) -> 33 | N8: =IF(OR(N5="NA",N4="NA"),"NA",N2) -> 33 | Q8: =IF(OR(Q5="NA",Q4="NA"),"NA",Q2) -> 3
A9: Distância do final da pista (m): | B9: =IF(OR(B5="NA",B4="NA"),"NA",IF(FORMULÁRIO!C43>0,FORMULÁRIO!C43,IF(B5="vfr",IF(B4=1,30,60),60))) -> 60 | E9: =IF(OR(E5="NA",E4="NA"),"NA",IF(FORMULÁRIO!F43>0,FORMULÁRIO!F43,IF(E5="vfr",IF(E4=1,30,60),60))) -> 60 | H9: =IF(OR(H5="NA",H4="NA"),"NA",IF(FORMULÁRIO!I43>0,FORMULÁRIO!I43,IF(H5="vfr",IF(H4=1,30,60),60))) -> 60 | K9: =IF(OR(K5="NA",K4="NA"),"NA",IF(FORMULÁRIO!L43>0,FORMULÁRIO!L43,IF(K5="vfr",IF(K4=1,30,60),60))) -> 60 | N9: =IF(OR(N5="NA",N4="NA"),"NA",IF(FORMULÁRIO!O43>0,FORMULÁRIO!O43,IF(N5="vfr",IF(N4=1,30,60),60))) -> 60 | Q9: =IF(OR(Q5="NA",Q4="NA"),"NA",IF(FORMULÁRIO!R43>0,FORMULÁRIO!R43,IF(Q5="vfr",IF(Q4=1,30,60),60))) -> 60
A10: Abertura para cada lado (%): | B10: =IF(OR(B5="NA",B4="NA"),"NA",IF(B4>2,0.125,0.1)) -> 0.1 | E10: =IF(OR(E5="NA",E4="NA"),"NA",IF(E4>2,0.125,0.1)) -> 0.1 | H10: =IF(OR(H5="NA",H4="NA"),"NA",IF(H4>2,0.125,0.1)) -> 0.1 | K10: =IF(OR(K5="NA",K4="NA"),"NA",IF(K4>2,0.125,0.1)) -> 0.1 | N10: =IF(OR(N5="NA",N4="NA"),"NA",IF(N4>2,0.125,0.1)) -> 0.1 | Q10: =IF(OR(Q5="NA",Q4="NA"),"NA",IF(Q4>2,0.125,0.1)) -> 0.1
A11: Largura final (m): | B11: =IF(OR(B5="NA",B4="NA"),"NA",IF(B4=1,380,IF(B4=2,580,IF(B6="Sim",1800,1200)))) -> 1200 | E11: =IF(OR(E5="NA",E4="NA"),"NA",IF(E4=1,380,IF(E4=2,580,IF(E6="Sim",1800,1200)))) -> 1200 | H11: =IF(OR(H5="NA",H4="NA"),"NA",IF(H4=1,380,IF(H4=2,580,IF(H6="Sim",1800,1200)))) -> 1200 | K11: =IF(OR(K5="NA",K4="NA"),"NA",IF(K4=1,380,IF(K4=2,580,IF(K6="Sim",1800,1200)))) -> 1200 | N11: =IF(OR(N5="NA",N4="NA"),"NA",IF(N4=1,380,IF(N4=2,580,IF(N6="Sim",1800,1200)))) -> 1200 | Q11: =IF(OR(Q5="NA",Q4="NA"),"NA",IF(Q4=1,380,IF(Q4=2,580,IF(Q6="Sim",1800,1200)))) -> 1200
A12: Comprimento (m): | B12: =IF(OR(B5="NA",B4="NA"),"NA",IF(B4=1,1600,IF(B4=2,2500,15000))) -> 15000 | E12: =IF(OR(E5="NA",E4="NA"),"NA",IF(E4=1,1600,IF(E4=2,2500,15000))) -> 15000 | H12: =IF(OR(H5="NA",H4="NA"),"NA",IF(H4=1,1600,IF(H4=2,2500,15000))) -> 15000 | K12: =IF(OR(K5="NA",K4="NA"),"NA",IF(K4=1,1600,IF(K4=2,2500,15000))) -> 15000 | N12: =IF(OR(N5="NA",N4="NA"),"NA",IF(N4=1,1600,IF(N4=2,2500,15000))) -> 15000 | Q12: =IF(OR(Q5="NA",Q4="NA"),"NA",IF(Q4=1,1600,IF(Q4=2,2500,15000))) -> 15000
A13: Gradiente (%): | B13: =IF(OR(B5="NA",B4="NA"),"NA",IF(B4>2,0.02,IF(B4=1,0.05,0.04))) -> 0.04 | E13: =IF(OR(E5="NA",E4="NA"),"NA",IF(E4>2,0.02,IF(E4=1,0.05,0.04))) -> 0.04 | H13: =IF(OR(H5="NA",H4="NA"),"NA",IF(H4>2,0.02,IF(H4=1,0.05,0.04))) -> 0.04 | K13: =IF(OR(K5="NA",K4="NA"),"NA",IF(K4>2,0.02,IF(K4=1,0.05,0.04))) -> 0.04 | N13: =IF(OR(N5="NA",N4="NA"),"NA",IF(N4>2,0.02,IF(N4=1,0.05,0.04))) -> 0.04 | Q13: =IF(OR(Q5="NA",Q4="NA"),"NA",IF(Q4>2,0.02,IF(Q4=1,0.05,0.04))) -> 0.04
A14: Elevação da borda externa (m): | B14: =IF(OR(B5="NA",B4="NA"),"NA",B2+B12*B13) -> 602 | E14: =IF(OR(E5="NA",E4="NA"),"NA",E2+E12*E13) -> 602 | H14: =IF(OR(H5="NA",H4="NA"),"NA",H2+H12*H13) -> 633 | K14: =IF(OR(K5="NA",K4="NA"),"NA",K2+K12*K13) -> 633 | N14: =IF(OR(N5="NA",N4="NA"),"NA",N2+N12*N13) -> 633 | Q14: =IF(OR(Q5="NA",Q4="NA"),"NA",Q2+Q12*Q13) -> 603

Sheet APROX (hidden)
A1: CABECEIRA | B1: =FORMULÁRIO!C10 -> 25 | E1: =FORMULÁRIO!C11 -> 7 | H1: =FORMULÁRIO!F11 -> 0 | K1: =FORMULÁRIO!I11 -> 7 | N1: =FORMULÁRIO!L11 -> 0 | Q1: =FORMULÁRIO!O11 -> 24
A2: ELEVAÇÃO DA CABECEIRA | B2: =FORMULÁRIO!C24 -> 2 | E2: =FORMULÁRIO!F24 -> 2 | H2: =FORMULÁRIO!I24 -> 33 | K2: =FORMULÁRIO!L24 -> 33 | N2: =FORMULÁRIO!O24 -> 3 | Q2: =FORMULÁRIO!R24 -> 3
A3: REFERENCIA | B3: =FORMULÁRIO!AA5-FORMULÁRIO!$C$8 -> 246.8563478 | E3: =FORMULÁRIO!AA4-FORMULÁRIO!C8 -> 66.85634784 | H3: =FORMULÁRIO!AB5-FORMULÁRIO!C8 -> 247.7554235 | K3: =FORMULÁRIO!AB4-FORMULÁRIO!C8 -> 67.75542351 | N3: =FORMULÁRIO!AC5-FORMULÁRIO!C8 -> 63.10483947 | Q3: =FORMULÁRIO!AC4-FORMULÁRIO!C8 -> 243.1048395
A4: ESQUERDA | B4: =MAX(B41:D42) -> 0 | E4: =MAX(E41:G42) -> 0 | H4: 0 | K4: 0 | N4: =MAX(N41:P42) -> 0 | Q4: =MAX(Q41:S42) -> 0
A5: DIREITA | B5: =MAX(B43:D43) -> 0 | E5: =MAX(E43:G43) -> 0 | H5: =MAX(H43:J43) -> 0 | K5: =MAX(K43:M43) -> 0 | N5: =MAX(N43:P43) -> 0 | Q5: =MAX(Q43:S43) -> 0
A6: DIVERGENCIA LADO ESQUERDO % | B6: =C6/100 -> 0 | E6: =F6/100 -> 0 | H6: =I6/100 -> 0 | K6: =L6/100 -> 0 | N6: =O6/100 -> 0 | Q6: =R6/100 -> 0
A7: DIVERGENCIA LADO DIREITO % | B7: =C7/100 -> 0 | E7: =F7/100 -> 0 | H7: =I7/100 -> 0 | K7: =L7/100 -> 0 | N7: =O7/100 -> 0 | Q7: =R7/100 -> 0
A8: ABERTURA ESQUERDA | B8: =B6+(IF(B11="VFR",0.1,0.15)) -> 0.15 | E8: =E6+(IF(E11="VFR",0.1,0.15)) -> 0.15 | H8: 0.15 | K8: 0.15 | N8: =N6+(IF(N11="VFR",0.1,0.15)) -> 0.15 | Q8: =Q6+(IF(Q11="VFR",0.1,0.15)) -> 0.15
A9: ABERTURA DIREITA | B9: =B7+(IF(B11="VFR",0.1,0.15)) -> 0.15 | E9: =E7+(IF(E11="VFR",0.1,0.15)) -> 0.15 | H9: 0.15 | K9: 0.15 | N9: =N7+(IF(N11="VFR",0.1,0.15)) -> 0.15 | Q9: =Q7+(IF(Q11="VFR",0.1,0.15)) -> 0.15
A10: CODIGO REFERENCIA APROXIMAÇÃO | B10: =FORMULÁRIO!C26 -> 0 | E10: =FORMULÁRIO!F26 -> 0 | H10: =FORMULÁRIO!I26 -> 0 | K10: =FORMULÁRIO!L26 -> 0 | N10: =FORMULÁRIO!O26 -> 0 | Q10: =FORMULÁRIO!R26 -> 0
A11: TIPO DE OPERAÇÃO (VFR, IFR OU IFR-P) | B11: =IF(FORMULÁRIO!C27="VFR",FORMULÁRIO!C27,IF(FORMULÁRIO!C27="IFR NPA","IFR",IF(FORMULÁRIO!C27="NA",FORMULÁRIO!C27,"IFR-P"))) -> IFR-P | E11: =IF(FORMULÁRIO!F27="VFR",FORMULÁRIO!F27,IF(FORMULÁRIO!F27="IFR NPA","IFR",IF(FORMULÁRIO!F27="NA",FORMULÁRIO!F27,"IFR-P"))) -> IFR-P | H11: =IF(FORMULÁRIO!I27="VFR",FORMULÁRIO!I27,IF(FORMULÁRIO!I27="IFR NPA","IFR",IF(FORMULÁRIO!I27="NA",FORMULÁRIO!I27,"IFR-P"))) -> IFR-P | K11: =IF(FORMULÁRIO!L27="VFR",FORMULÁRIO!L27,IF(FORMULÁRIO!L27="IFR NPA","IFR",IF(FORMULÁRIO!L27="NA",FORMULÁRIO!L27,"IFR-P"))) -> IFR-P | N11: =IF(FORMULÁRIO!O27="VFR",FORMULÁRIO!O27,IF(FORMULÁRIO!O27="IFR NPA","IFR",IF(FORMULÁRIO!O27="NA",FORMULÁRIO!O27,"IFR-P"))) -> IFR-P | Q11: =IF(FORMULÁRIO!R27="VFR",FORMULÁRIO!R27,IF(FORMULÁRIO!R27="IFR NPA","IFR",IF(FORMULÁRIO!R27="NA",FORMULÁRIO!R27,"IFR-P"))) -> IFR-P
A12: Divergência lado direito (%): | B12: =IF(OR(B11="NA",B10="NA"),"NA",B7) -> 0 | E12: =IF(OR(E11="NA",E10="NA"),"NA",E7) -> 0 | H12: =IF(OR(H11="NA",H10="NA"),"NA",H7) -> 0 | K12: =IF(OR(K11="NA",K10="NA"),"NA",K7) -> 0 | N12: =IF(OR(N11="NA",N10="NA"),"NA",N7) -> 0 | Q12: =IF(OR(Q11="NA",Q10="NA"),"NA",Q7) -> 0
A13: Divergência lado esquerdo (%): | B13: =IF(OR(B11="NA",B10="NA"),"NA",B6) -> 0 | E13: =IF(OR(E11="NA",E10="NA"),"NA",E6) -> 0 | H13: =IF(OR(H11="NA",H10="NA"),"NA",H6) -> 0 | K13: =IF(OR(K11="NA",K10="NA"),"NA",K6) -> 0 | N13: =IF(OR(N11="NA",N10="NA"),"NA",N6) -> 0 | Q13: =IF(OR(Q11="NA",Q10="NA"),"NA",Q6) -> 0
A14: Comprimento total (m): | B14: =IF(OR(B11="NA",B10="NA"),"NA",IF(B11="ifr-p",15000,IF(B11="ifr",IF(B10>2,15000,2500),IF(B10>2,3000,IF(B10=1,1600,2500))))) -> 15000 | E14: =IF(OR(E11="NA",E10="NA"),"NA",IF(E11="ifr-p",15000,IF(E11="ifr",IF(E10>2,15000,2500),IF(E10>2,3000,IF(E10=1,1600,2500))))) -> 15000 | H14: =IF(OR(H11="NA",H10="NA"),"NA",IF(H11="ifr-p",15000,IF(H11="ifr",IF(H10>2,15000,2500),IF(H10>2,3000,IF(H10=1,1600,2500))))) -> 15000 | K14: =IF(OR(K11="NA",K10="NA"),"NA",IF(K11="ifr-p",15000,IF(K11="ifr",IF(K10>2,15000,2500),IF(K10>2,3000,IF(K10=1,1600,2500))))) -> 15000 | N14: =IF(OR(N11="NA",N10="NA"),"NA",IF(N11="ifr-p",15000,IF(N11="ifr",IF(N10>2,15000,2500),IF(N10>2,3000,IF(N10=1,1600,2500))))) -> 15000 | Q14: =IF(OR(Q11="NA",Q10="NA"),"NA",IF(Q11="ifr-p",15000,IF(Q11="ifr",IF(Q10>2,15000,2500),IF(Q10>2,3000,IF(Q10=1,1600,2500))))) -> 15000
A15: Primeira Seção
A16: Largura da borda interna (m): | B16: =IF(OR(B11="NA",B10="NA"),"NA",IF(B11="VFR",IF(B10=1,60,IF(B10=2,80,150)),IF(B10<3,150,300))) -> 150 | E16: =IF(OR(E11="NA",E10="NA"),"NA",IF(E11="VFR",IF(E10=1,60,IF(E10=2,80,150)),IF(E10<3,150,300))) -> 150 | H16: =IF(OR(H11="NA",H10="NA"),"NA",IF(H11="VFR",IF(H10=1,60,IF(H10=2,80,150)),IF(H10<3,150,300))) -> 150 | K16: =IF(OR(K11="NA",K10="NA"),"NA",IF(K11="VFR",IF(K10=1,60,IF(K10=2,80,150)),IF(K10<3,150,300))) -> 150 | N16: =IF(OR(N11="NA",N10="NA"),"NA",IF(N11="VFR",IF(N10=1,60,IF(N10=2,80,150)),IF(N10<3,150,300))) -> 150 | Q16: =IF(OR(Q11="NA",Q10="NA"),"NA",IF(Q11="VFR",IF(Q10=1,60,IF(Q10=2,80,150)),IF(Q10<3,150,300))) -> 150
A17: Elevação da borda interna (m): | B17: =IF(OR(B11="NA",B10="NA"),"NA",B2) -> 2 | E17: =IF(OR(E11="NA",E10="NA"),"NA",E2) -> 2 | H17: =IF(OR(H11="NA",H10="NA"),"NA",H2) -> 33 | K17: =IF(OR(K11="NA",K10="NA"),"NA",K2) -> 33 | N17: =IF(OR(N11="NA",N10="NA"),"NA",N2) -> 3 | Q17: =IF(OR(Q11="NA",Q10="NA"),"NA",Q2) -> 3
A18: Distância da cabeceira (m): | B18: =IF(OR(B11="NA",B10="NA"),"NA",IF(B11="VFR",IF(B10=1,30,60),60)) -> 60 | E18: =IF(OR(E11="NA",E10="NA"),"NA",IF(E11="VFR",IF(E10=1,30,60),60)) -> 60 | H18: =IF(OR(H11="NA",H10="NA"),"NA",IF(H11="VFR",IF(H10=1,30,60),60)) -> 60 | K18: =IF(OR(K11="NA",K10="NA"),"NA",IF(K11="VFR",IF(K10=1,30,60),60)) -> 60 | N18: =IF(OR(N11="NA",N10="NA"),"NA",IF(N11="VFR",IF(N10=1,30,60),60)) -> 60 | Q18: =IF(OR(Q11="NA",Q10="NA"),"NA",IF(Q11="VFR",IF(Q10=1,30,60),60)) -> 60
A19: Abertura total lado direito (%): | B19: =IF(OR(B11="NA",B10="NA"),"NA",B9) -> 0.15 | E19: =IF(OR(E11="NA",E10="NA"),"NA",E9) -> 0.15 | H19: =IF(OR(H11="NA",H10="NA"),"NA",H9) -> 0.15 | K19: =IF(OR(K11="NA",K10="NA"),"NA",K9) -> 0.15 | N19: =IF(OR(N11="NA",N10="NA"),"NA",N9) -> 0.15 | Q19: =IF(OR(Q11="NA",Q10="NA"),"NA",Q9) -> 0.15
A20: Abertura total lado esquerdo (%): | B20: =IF(OR(B11="NA",B10="NA"),"NA",B8) -> 0.15 | E20: =IF(OR(E11="NA",E10="NA"),"NA",E8) -> 0.15 | H20: =IF(OR(H11="NA",H10="NA"),"NA",H8) -> 0.15 | K20: =IF(OR(K11="NA",K10="NA"),"NA",K8) -> 0.15 | N20: =IF(OR(N11="NA",N10="NA"),"NA",N8) -> 0.15 | Q20: =IF(OR(Q11="NA",Q10="NA"),"NA",Q8) -> 0.15
A21: Comprimento (m): | B21: =IF(OR(B11="NA",B10="NA"),"NA",IF(B10<3,IF(AND(B10=1,B11="VFR"),1600,IF(B11="IFR-P",3000,2500)),3000)) -> 3000 | E21: =IF(OR(E11="NA",E10="NA"),"NA",IF(E10<3,IF(AND(E10=1,E11="VFR"),1600,IF(E11="IFR-P",3000,2500)),3000)) -> 3000 | H21: =IF(OR(H11="NA",H10="NA"),"NA",IF(H10<3,IF(AND(H10=1,H11="VFR"),1600,IF(H11="IFR-P",3000,2500)),3000)) -> 3000 | K21: =IF(OR(K11="NA",K10="NA"),"NA",IF(K10<3,IF(AND(K10=1,K11="VFR"),1600,IF(K11="IFR-P",3000,2500)),3000)) -> 3000 | N21: =IF(OR(N11="NA",N10="NA"),"NA",IF(N10<3,IF(AND(N10=1,N11="VFR"),1600,IF(N11="IFR-P",3000,2500)),3000)) -> 3000 | Q21: =IF(OR(Q11="NA",Q10="NA"),"NA",IF(Q10<3,IF(AND(Q10=1,Q11="VFR"),1600,IF(Q11="IFR-P",3000,2500)),3000)) -> 3000
A22: Gradiente (%): | B22: =IF(OR(B11="NA",B10="NA"),"NA",IF(B11="VFR",IF(B10=1,0.05,IF(B10=2,0.04,IF(B10=3,0.0333,0.025))),IF(AND(B11="IFR",B10<3),0.0333,IF(AND(B11="IFR-P",B10<3),0.025,0.02)))) -> 0.025 | E22: =IF(OR(E11="NA",E10="NA"),"NA",IF(E11="VFR",IF(E10=1,0.05,IF(E10=2,0.04,IF(E10=3,0.0333,0.025))),IF(AND(E11="IFR",E10<3),0.0333,IF(AND(E11="IFR-P",E10<3),0.025,0.02)))) -> 0.025 | H22: =IF(OR(H11="NA",H10="NA"),"NA",IF(H11="VFR",IF(H10=1,0.05,IF(H10=2,0.04,IF(H10=3,0.0333,0.025))),IF(AND(H11="IFR",H10<3),0.0333,IF(AND(H11="IFR-P",H10<3),0.025,0.02)))) -> 0.025 | K22: =IF(OR(K11="NA",K10="NA"),"NA",IF(K11="VFR",IF(K10=1,0.05,IF(K10=2,0.04,IF(K10=3,0.0333,0.025))),IF(AND(K11="IFR",K10<3),0.0333,IF(AND(K11="IFR-P",K10<3),0.025,0.02)))) -> 0.025 | N22: =IF(OR(N11="NA",N10="NA"),"NA",IF(N11="VFR",IF(N10=1,0.05,IF(N10=2,0.04,IF(N10=3,0.0333,0.025))),IF(AND(N11="IFR",N10<3),0.0333,IF(AND(N11="IFR-P",N10<3),0.025,0.02)))) -> 0.025 | Q22: =IF(OR(Q11="NA",Q10="NA"),"NA",IF(Q11="VFR",IF(Q10=1,0.05,IF(Q10=2,0.04,IF(Q10=3,0.0333,0.025))),IF(AND(Q11="IFR",Q10<3),0.0333,IF(AND(Q11="IFR-P",Q10<3),0.025,0.02)))) -> 0.025
A23: Elevação da borda externa (m): | B23: =IF(OR(B11="NA",B10="NA"),"NA",B21*B22+B2) -> 77 | E23: =IF(OR(E11="NA",E10="NA"),"NA",E21*E22+E2) -> 77 | H23: =IF(OR(H11="NA",H10="NA"),"NA",H21*H22+H2) -> 108 | K23: =IF(OR(K11="NA",K10="NA"),"NA",K21*K22+K2) -> 108 | N23: =IF(OR(N11="NA",N10="NA"),"NA",N21*N22+N2) -> 78 | Q23: =IF(OR(Q11="NA",Q10="NA"),"NA",Q21*Q22+Q2) -> 78
A24: Segunda Seção | B24: =IF(OR(B11="NA",B10="NA"),"NA",IF(B11="ifr-p",IF(B10<3,12000,3600),IF(B11="vfr",0,IF(B10>2,3600,0)))) -> 12000 | E24: =IF(OR(E11="NA",E10="NA"),"NA",IF(E11="ifr-p",IF(E10<3,12000,3600),IF(E11="vfr",0,IF(E10>2,3600,0)))) -> 12000 | H24: =IF(OR(H11="NA",H10="NA"),"NA",IF(H11="ifr-p",IF(H10<3,12000,3600),IF(H11="vfr",0,IF(H10>2,3600,0)))) -> 12000 | K24: =IF(OR(K11="NA",K10="NA"),"NA",IF(K11="ifr-p",IF(K10<3,12000,3600),IF(K11="vfr",0,IF(K10>2,3600,0)))) -> 12000 | N24: =IF(OR(N11="NA",N10="NA"),"NA",IF(N11="ifr-p",IF(N10<3,12000,3600),IF(N11="vfr",0,IF(N10>2,3600,0)))) -> 12000 | Q24: =IF(OR(Q11="NA",Q10="NA"),"NA",IF(Q11="ifr-p",IF(Q10<3,12000,3600),IF(Q11="vfr",0,IF(Q10>2,3600,0)))) -> 12000
A25: Largura da borda interna (m): | B25: =IF(OR(B11="NA",B10="NA"),"NA",IF(B24>0,(B16+B21*(B8+B9)),"NA")) -> 1050 | E25: =IF(OR(E11="NA",E10="NA"),"NA",IF(E24>0,(E16+E21*(E8+E9)),"NA")) -> 1050 | H25: =IF(OR(H11="NA",H10="NA"),"NA",IF(H24>0,(H16+H21*(H8+H9)),"NA")) -> 1050 | K25: =IF(OR(K11="NA",K10="NA"),"NA",IF(K24>0,(K16+K21*(K8+K9)),"NA")) -> 1050 | N25: =IF(OR(N11="NA",N10="NA"),"NA",IF(N24>0,(N16+N21*(N8+N9)),"NA")) -> 1050 | Q25: =IF(OR(Q11="NA",Q10="NA"),"NA",IF(Q24>0,(Q16+Q21*(Q8+Q9)),"NA")) -> 1050
A26: Elevação da borda interna (m): | B26: =IF(B24=0,"NA",B23) -> 77 | E26: =IF(E24=0,"NA",E23) -> 77 | H26: 108 | K26: 108 | N26: =IF(N24=0,"NA",N23) -> 78 | Q26: =IF(Q24=0,"NA",Q23) -> 78
A27: Abertura total lado direito (%): | B27: =IF(OR(B11="NA",B10="NA"),"NA",IF(B24=0,"NA",B9)) -> 0.15 | E27: =IF(OR(E11="NA",E10="NA"),"NA",IF(E24=0,"NA",E9)) -> 0.15 | H27: =IF(OR(H11="NA",H10="NA"),"NA",IF(H24=0,"NA",H9)) -> 0.15 | K27: =IF(OR(K11="NA",K10="NA"),"NA",IF(K24=0,"NA",K9)) -> 0.15 | N27: =IF(OR(N11="NA",N10="NA"),"NA",IF(N24=0,"NA",N9)) -> 0.15 | Q27: =IF(OR(Q11="NA",Q10="NA"),"NA",IF(Q24=0,"NA",Q9)) -> 0.15
A28: Abertura total lado esquerdo (%): | B28: =IF(OR(B11="NA",B10="NA"),"NA",IF(B24=0,"NA",B8)) -> 0.15 | E28: =IF(OR(E11="NA",E10="NA"),"NA",IF(E24=0,"NA",E8)) -> 0.15 | H28: =IF(OR(H11="NA",H10="NA"),"NA",IF(H24=0,"NA",H8)) -> 0.15 | K28: =IF(OR(K11="NA",K10="NA"),"NA",IF(K24=0,"NA",K8)) -> 0.15 | N28: =IF(OR(N11="NA",N10="NA"),"NA",IF(N24=0,"NA",N8)) -> 0.15 | Q28: =IF(OR(Q11="NA",Q10="NA"),"NA",IF(Q24=0,"NA",Q8)) -> 0.15
A29: Comprimento (m): | B29: =IF(OR(B11="NA",B10="NA",B25="na"),"NA",IF(B24=12000,12000,IF(B49<=150,3600,(B49-60)/B30))) -> 12000 | E29: =IF(OR(E11="NA",E10="NA",E25="na"),"NA",IF(E24=12000,12000,IF(E49<=150,3600,(E49-60)/E30))) -> 12000 | H29: 12000 | K29: 12000 | N29: 12000 | Q29: 12000
A30: Gradiente (%): | B30: =IF(OR(B11="NA",B10="NA"),"NA",IF(B24>0,IF(B10>2,0.025,0.03),"NA")) -> 0.03 | E30: =IF(OR(E11="NA",E10="NA"),"NA",IF(E24>0,IF(E10>2,0.025,0.03),"NA")) -> 0.03 | H30: =IF(OR(H11="NA",H10="NA"),"NA",IF(H24>0,IF(H10>2,0.025,0.03),"NA")) -> 0.03 | K30: =IF(OR(K11="NA",K10="NA"),"NA",IF(K24>0,IF(K10>2,0.025,0.03),"NA")) -> 0.03 | N30: =IF(OR(N11="NA",N10="NA"),"NA",IF(N24>0,IF(N10>2,0.025,0.03),"NA")) -> 0.03 | Q30: =IF(OR(Q11="NA",Q10="NA"),"NA",IF(Q24>0,IF(Q10>2,0.025,0.03),"NA")) -> 0.03
A31: Elevação da borda externa (m): | B31: =IF(OR(B11="NA",B10="NA"),"NA",IF(B24>0,B23+B29*B30,"NA")) -> 437 | E31: =IF(OR(E11="NA",E10="NA"),"NA",IF(E24>0,E23+E29*E30,"NA")) -> 437 | H31: =IF(OR(H11="NA",H10="NA"),"NA",IF(H24>0,H23+H29*H30,"NA")) -> 468 | K31: =IF(OR(K11="NA",K10="NA"),"NA",IF(K24>0,K23+K29*K30,"NA")) -> 468 | N31: =IF(OR(N11="NA",N10="NA"),"NA",IF(N24>0,N23+N29*N30,"NA")) -> 438 | Q31: =IF(OR(Q11="NA",Q10="NA"),"NA",IF(Q24>0,Q23+Q29*Q30,"NA")) -> 438
A32: Seção Horizontal
A33: Largura da borda interna (m): | B33: =IF(OR(B11="NA",B10="NA"),"NA",IF(B24>0,B16/2+(B21+B29)*B8+B16/2+(B21+B29)*B9,"NA")) -> 4650 | E33: =IF(OR(E11="NA",E10="NA"),"NA",IF(E24>0,E16/2+(E21+E29)*E8+E16/2+(E21+E29)*E9,"NA")) -> 4650 | H33: =IF(OR(H11="NA",H10="NA"),"NA",IF(H24>0,H16/2+(H21+H29)*H8+H16/2+(H21+H29)*H9,"NA")) -> 4650 | K33: =IF(OR(K11="NA",K10="NA"),"NA",IF(K24>0,K16/2+(K21+K29)*K8+K16/2+(K21+K29)*K9,"NA")) -> 4650 | N33: =IF(OR(N11="NA",N10="NA"),"NA",IF(N24>0,N16/2+(N21+N29)*N8+N16/2+(N21+N29)*N9,"NA")) -> 4650 | Q33: =IF(OR(Q11="NA",Q10="NA"),"NA",IF(Q24>0,Q16/2+(Q21+Q29)*Q8+Q16/2+(Q21+Q29)*Q9,"NA")) -> 4650
A34: Abertura total lado direito (%): | B34: =IF(OR(B11="NA",B10="NA"),"NA",IF(B24=0,"NA",B9)) -> 0.15 | E34: =IF(OR(E11="NA",E10="NA"),"NA",IF(E24=0,"NA",E9)) -> 0.15 | H34: =IF(OR(H11="NA",H10="NA"),"NA",IF(H24=0,"NA",H9)) -> 0.15 | K34: =IF(OR(K11="NA",K10="NA"),"NA",IF(K24=0,"NA",K9)) -> 0.15 | N34: =IF(OR(N11="NA",N10="NA"),"NA",IF(N24=0,"NA",N9)) -> 0.15 | Q34: =IF(OR(Q11="NA",Q10="NA"),"NA",IF(Q24=0,"NA",Q9)) -> 0.15
A35: Abertura total lado esquerdo (%): | B35: =IF(OR(B11="NA",B10="NA"),"NA",IF(B24=0,"NA",B8)) -> 0.15 | E35: =IF(OR(E11="NA",E10="NA"),"NA",IF(E24=0,"NA",E8)) -> 0.15 | H35: =IF(OR(H11="NA",H10="NA"),"NA",IF(H24=0,"NA",H8)) -> 0.15 | K35: =IF(OR(K11="NA",K10="NA"),"NA",IF(K24=0,"NA",K8)) -> 0.15 | N35: =IF(OR(N11="NA",N10="NA"),"NA",IF(N24=0,"NA",N8)) -> 0.15 | Q35: =IF(OR(Q11="NA",Q10="NA"),"NA",IF(Q24=0,"NA",Q8)) -> 0.15
A36: Comprimento (m): | B36: =IF(OR(B11="NA",B10="NA"),"NA",IF(B24>0,IF(B10>2,15000-B29-B21,"NA"),"NA")) -> NA | E36: =IF(OR(E11="NA",E10="NA"),"NA",IF(E24>0,IF(E10>2,15000-E29-E21,"NA"),"NA")) -> NA | H36: =IF(OR(H11="NA",H10="NA"),"NA",IF(H24>0,IF(H10>2,15000-H29-H21,"NA"),"NA")) -> NA | K36: =IF(OR(K11="NA",K10="NA"),"NA",IF(K24>0,IF(K10>2,15000-K29-K21,"NA"),"NA")) -> NA | N36: =IF(OR(N11="NA",N10="NA"),"NA",IF(N24>0,IF(N10>2,15000-N29-N21,"NA"),"NA")) -> NA | Q36: =IF(OR(Q11="NA",Q10="NA"),"NA",IF(Q24>0,IF(Q10>2,15000-Q29-Q21,"NA"),"NA")) -> NA
A37: Desnível (m): | B37: =B31 -> 437 | E37: =E31 -> 437 | H37: 468 | K37: 468 | N37: =N31 -> 438 | Q37: =Q31 -> 438
B39: =IF(FORMULÁRIO!C33=0,0,FORMULÁRIO!C33/3.2808-FORMULÁRIO!C34) -> 0 | C39: =IF(FORMULÁRIO!D33=0,0,FORMULÁRIO!D33/3.2808-FORMULÁRIO!D34) -> 0 | D39: =IF(FORMULÁRIO!E33=0,0,FORMULÁRIO!E33/3.2808-FORMULÁRIO!E34) -> 0 | E39: =IF(FORMULÁRIO!F33=0,0,FORMULÁRIO!F33/3.2808-FORMULÁRIO!F34) -> 0 | F39: =IF(FORMULÁRIO!G33=0,0,FORMULÁRIO!G33/3.2808-FORMULÁRIO!G34) -> 0 | G39: =IF(FORMULÁRIO!H33=0,0,FORMULÁRIO!H33/3.2808-FORMULÁRIO!H34) -> 0 | H39: =IF(FORMULÁRIO!I33=0,0,FORMULÁRIO!I33/3.2808-FORMULÁRIO!I34) -> 0 | I39: =IF(FORMULÁRIO!J33=0,0,FORMULÁRIO!J33/3.2808-FORMULÁRIO!J34) -> 0 | J39: =IF(FORMULÁRIO!K33=0,0,FORMULÁRIO!K33/3.2808-FORMULÁRIO!K34) -> 0 | K39: =IF(FORMULÁRIO!L33=0,0,FORMULÁRIO!L33/3.2808-FORMULÁRIO!L34) -> 0 | L39: =IF(FORMULÁRIO!M33=0,0,FORMULÁRIO!M33/3.2808-FORMULÁRIO!M34) -> 0 | M39: =IF(FORMULÁRIO!N33=0,0,FORMULÁRIO!N33/3.2808-FORMULÁRIO!N34) -> 0 | N39: =IF(FORMULÁRIO!O33=0,0,FORMULÁRIO!O33/3.2808-FORMULÁRIO!O34) -> 0 | O39: =IF(FORMULÁRIO!P33=0,0,FORMULÁRIO!P33/3.2808-FORMULÁRIO!P34) -> 0 | P39: =IF(FORMULÁRIO!Q33=0,0,FORMULÁRIO!Q33/3.2808-FORMULÁRIO!Q34) -> 0 | Q39: =IF(FORMULÁRIO!R33=0,0,FORMULÁRIO!R33/3.2808-FORMULÁRIO!R34) -> 0 | R39: =IF(FORMULÁRIO!S33=0,0,FORMULÁRIO!S33/3.2808-FORMULÁRIO!S34) -> 0 | S39: =IF(FORMULÁRIO!T33=0,0,FORMULÁRIO!T33/3.2808-FORMULÁRIO!T34) -> 0
B40: =IF(FORMULÁRIO!C36=0,0,FORMULÁRIO!C36/3.2808-FORMULÁRIO!C37) -> 0 | C40: =IF(FORMULÁRIO!D36=0,0,FORMULÁRIO!D36/3.2808-FORMULÁRIO!D37) -> 0 | D40: =IF(FORMULÁRIO!E36=0,0,FORMULÁRIO!E36/3.2808-FORMULÁRIO!E37) -> 0 | E40: =IF(FORMULÁRIO!F36=0,0,FORMULÁRIO!F36/3.2808-FORMULÁRIO!F37) -> 0 | F40: =IF(FORMULÁRIO!G36=0,0,FORMULÁRIO!G36/3.2808-FORMULÁRIO!G37) -> 0 | G40: =IF(FORMULÁRIO!H36=0,0,FORMULÁRIO!H36/3.2808-FORMULÁRIO!H37) -> 0 | H40: =IF(FORMULÁRIO!I36=0,0,FORMULÁRIO!I36/3.2808-FORMULÁRIO!I37) -> 0 | I40: =IF(FORMULÁRIO!J36=0,0,FORMULÁRIO!J36/3.2808-FORMULÁRIO!J37) -> 0 | J40: =IF(FORMULÁRIO!K36=0,0,FORMULÁRIO!K36/3.2808-FORMULÁRIO!K37) -> 0 | K40: =IF(FORMULÁRIO!L36=0,0,FORMULÁRIO!L36/3.2808-FORMULÁRIO!L37) -> 0 | L40: =IF(FORMULÁRIO!M36=0,0,FORMULÁRIO!M36/3.2808-FORMULÁRIO!M37) -> 0 | M40: =IF(FORMULÁRIO!N36=0,0,FORMULÁRIO!N36/3.2808-FORMULÁRIO!N37) -> 0 | N40: =IF(FORMULÁRIO!O36=0,0,FORMULÁRIO!O36/3.2808-FORMULÁRIO!O37) -> 0 | O40: =IF(FORMULÁRIO!P36=0,0,FORMULÁRIO!P36/3.2808-FORMULÁRIO!P37) -> 0 | P40: =IF(FORMULÁRIO!Q36=0,0,FORMULÁRIO!Q36/3.2808-FORMULÁRIO!Q37) -> 0 | Q40: =IF(FORMULÁRIO!R36=0,0,FORMULÁRIO!R36/3.2808-FORMULÁRIO!R37) -> 0 | R40: =IF(FORMULÁRIO!S36=0,0,FORMULÁRIO!S36/3.2808-FORMULÁRIO!S37) -> 0 | S40: =IF(FORMULÁRIO!T36=0,0,FORMULÁRIO!T36/3.2808-FORMULÁRIO!T37) -> 0
A41: esquerda | B41: =IF(FORMULÁRIO!C35=0,"na",IF(FORMULÁRIO!C35>APROX!$B$3,FORMULÁRIO!C35-APROX!$B$3,IF(APROX!$B$3-FORMULÁRIO!C35>90,FORMULÁRIO!C35-APROX!$B$3+360,0))) -> na | C41: =IF(FORMULÁRIO!D35=0,"na",IF(FORMULÁRIO!D35>APROX!$B$3,FORMULÁRIO!D35-APROX!$B$3,IF(APROX!$B$3-FORMULÁRIO!D35>90,FORMULÁRIO!D35-APROX!$B$3+360,0))) -> na | D41: =IF(FORMULÁRIO!E35=0,"na",IF(FORMULÁRIO!E35>APROX!$B$3,FORMULÁRIO!E35-APROX!$B$3,IF(APROX!$B$3-FORMULÁRIO!E35>90,FORMULÁRIO!E35-APROX!$B$3+360,0))) -> na | E41: =IF(FORMULÁRIO!F35=0,"na",IF(FORMULÁRIO!F35>APROX!$E$3,FORMULÁRIO!F35-APROX!$E$3,IF(APROX!$E$3-FORMULÁRIO!F35>90,FORMULÁRIO!F35-APROX!$E$3+360,0))) -> na | F41: =IF(FORMULÁRIO!G35=0,"na",IF(FORMULÁRIO!G35>APROX!$E$3,FORMULÁRIO!G35-APROX!$E$3,IF(APROX!$E$3-FORMULÁRIO!G35>90,FORMULÁRIO!G35-APROX!$E$3+360,0))) -> na | G41: =IF(FORMULÁRIO!H35=0,"na",IF(FORMULÁRIO!H35>APROX!$E$3,FORMULÁRIO!H35-APROX!$E$3,IF(APROX!$E$3-FORMULÁRIO!H35>90,FORMULÁRIO!H35-APROX!$E$3+360,0))) -> na | H41: =IF(FORMULÁRIO!I35=0,"na",IF(FORMULÁRIO!I35>APROX!$H$3,FORMULÁRIO!I35-APROX!$H$3,IF(APROX!$H$3-FORMULÁRIO!I35>90,FORMULÁRIO!I35-APROX!$H$3+360,0))) -> na | I41: =IF(FORMULÁRIO!J35=0,"na",IF(FORMULÁRIO!J35>APROX!$H$3,FORMULÁRIO!J35-APROX!$H$3,IF(APROX!$H$3-FORMULÁRIO!J35>90,FORMULÁRIO!J35-APROX!$H$3+360,0))) -> na | J41: =IF(FORMULÁRIO!K35=0,"na",IF(FORMULÁRIO!K35>APROX!$H$3,FORMULÁRIO!K35-APROX!$H$3,IF(APROX!$H$3-FORMULÁRIO!K35>90,FORMULÁRIO!K35-APROX!$H$3+360,0))) -> na | K41: =IF(FORMULÁRIO!L35=0,"na",IF(FORMULÁRIO!L35>APROX!$K$3,FORMULÁRIO!L35-APROX!$K$3,IF(APROX!$K$3-FORMULÁRIO!L35>90,FORMULÁRIO!L35-APROX!$K$3+360,0))) -> na | L41: =IF(FORMULÁRIO!M35=0,"na",IF(FORMULÁRIO!M35>APROX!$K$3,FORMULÁRIO!M35-APROX!$K$3,IF(APROX!$K$3-FORMULÁRIO!M35>90,FORMULÁRIO!M35-APROX!$K$3+360,0))) -> na | M41: =IF(FORMULÁRIO!N35=0,"na",IF(FORMULÁRIO!N35>APROX!$K$3,FORMULÁRIO!N35-APROX!$K$3,IF(APROX!$K$3-FORMULÁRIO!N35>90,FORMULÁRIO!N35-APROX!$K$3+360,0))) -> na | N41: =IF(FORMULÁRIO!O35=0,"na",IF(FORMULÁRIO!O35>APROX!$N$3,FORMULÁRIO!O35-APROX!$N$3,IF(APROX!$N$3-FORMULÁRIO!O35>90,FORMULÁRIO!O35-APROX!$N$3+360,0))) -> na | O41: =IF(FORMULÁRIO!P35=0,"na",IF(FORMULÁRIO!P35>APROX!$N$3,FORMULÁRIO!P35-APROX!$N$3,IF(APROX!$N$3-FORMULÁRIO!P35>90,FORMULÁRIO!P35-APROX!$N$3+360,0))) -> na | P41: =IF(FORMULÁRIO!Q35=0,"na",IF(FORMULÁRIO!Q35>APROX!$N$3,FORMULÁRIO!Q35-APROX!$N$3,IF(APROX!$N$3-FORMULÁRIO!Q35>90,FORMULÁRIO!Q35-APROX!$N$3+360,0))) -> na | Q41: =IF(FORMULÁRIO!R35=0,"na",IF(FORMULÁRIO!R35>APROX!$Q$3,FORMULÁRIO!R35-APROX!$Q$3,IF(APROX!$Q$3-FORMULÁRIO!R35>90,FORMULÁRIO!R35-APROX!$Q$3+360,0))) -> na | R41: =IF(FORMULÁRIO!S35=0,"na",IF(FORMULÁRIO!S35>APROX!$Q$3,FORMULÁRIO!S35-APROX!$Q$3,IF(APROX!$Q$3-FORMULÁRIO!S35>90,FORMULÁRIO!S35-APROX!$Q$3+360,0))) -> na | S41: =IF(FORMULÁRIO!T35=0,"na",IF(FORMULÁRIO!T35>APROX!$Q$3,FORMULÁRIO!T35-APROX!$Q$3,IF(APROX!$Q$3-FORMULÁRIO!T35>90,FORMULÁRIO!T35-APROX!$Q$3+360,0))) -> na
A42: esquerda | B42: =IF(FORMULÁRIO!C38=0,"na",IF(FORMULÁRIO!C38>APROX!$B$3,FORMULÁRIO!C38-APROX!$B$3,IF(APROX!$B$3-FORMULÁRIO!C38>90,FORMULÁRIO!C38-APROX!$B$3+360,0))) -> na | C42: =IF(FORMULÁRIO!D38=0,"na",IF(FORMULÁRIO!D38>APROX!$B$3,FORMULÁRIO!D38-APROX!$B$3,IF(APROX!$B$3-FORMULÁRIO!D38>90,FORMULÁRIO!D38-APROX!$B$3+360,0))) -> na | D42: =IF(FORMULÁRIO!E38=0,"na",IF(FORMULÁRIO!E38>APROX!$B$3,FORMULÁRIO!E38-APROX!$B$3,IF(APROX!$B$3-FORMULÁRIO!E38>90,FORMULÁRIO!E38-APROX!$B$3+360,0))) -> na | E42: =IF(FORMULÁRIO!F38=0,"na",IF(FORMULÁRIO!F38>APROX!$E$3,FORMULÁRIO!F38-APROX!$E$3,IF(APROX!$E$3-FORMULÁRIO!F38>90,FORMULÁRIO!F38-APROX!$E$3+360,0))) -> na | F42: =IF(FORMULÁRIO!G38=0,"na",IF(FORMULÁRIO!G38>APROX!$E$3,FORMULÁRIO!G38-APROX!$E$3,IF(APROX!$E$3-FORMULÁRIO!G38>90,FORMULÁRIO!G38-APROX!$E$3+360,0))) -> na | G42: =IF(FORMULÁRIO!H38=0,"na",IF(FORMULÁRIO!H38>APROX!$E$3,FORMULÁRIO!H38-APROX!$E$3,IF(APROX!$E$3-FORMULÁRIO!H38>90,FORMULÁRIO!H38-APROX!$E$3+360,0))) -> na | H42: =IF(FORMULÁRIO!I38=0,"na",IF(FORMULÁRIO!I38>APROX!$H$3,FORMULÁRIO!I38-APROX!$H$3,IF(APROX!$H$3-FORMULÁRIO!I38>90,FORMULÁRIO!I38-APROX!$H$3+360,0))) -> na | I42: =IF(FORMULÁRIO!J38=0,"na",IF(FORMULÁRIO!J38>APROX!$H$3,FORMULÁRIO!J38-APROX!$H$3,IF(APROX!$H$3-FORMULÁRIO!J38>90,FORMULÁRIO!J38-APROX!$H$3+360,0))) -> na | J42: =IF(FORMULÁRIO!K38=0,"na",IF(FORMULÁRIO!K38>APROX!$H$3,FORMULÁRIO!K38-APROX!$H$3,IF(APROX!$H$3-FORMULÁRIO!K38>90,FORMULÁRIO!K38-APROX!$H$3+360,0))) -> na | K42: =IF(FORMULÁRIO!L38=0,"na",IF(FORMULÁRIO!L38>APROX!$K$3,FORMULÁRIO!L38-APROX!$K$3,IF(APROX!$K$3-FORMULÁRIO!L38>90,FORMULÁRIO!L38-APROX!$K$3+360,0))) -> na | L42: =IF(FORMULÁRIO!M38=0,"na",IF(FORMULÁRIO!M38>APROX!$K$3,FORMULÁRIO!M38-APROX!$K$3,IF(APROX!$K$3-FORMULÁRIO!M38>90,FORMULÁRIO!M38-APROX!$K$3+360,0))) -> na | M42: =IF(FORMULÁRIO!N38=0,"na",IF(FORMULÁRIO!N38>APROX!$K$3,FORMULÁRIO!N38-APROX!$K$3,IF(APROX!$K$3-FORMULÁRIO!N38>90,FORMULÁRIO!N38-APROX!$K$3+360,0))) -> na | N42: =IF(FORMULÁRIO!O38=0,"na",IF(FORMULÁRIO!O38>APROX!$N$3,FORMULÁRIO!O38-APROX!$N$3,IF(APROX!$N$3-FORMULÁRIO!O38>90,FORMULÁRIO!O38-APROX!$N$3+360,0))) -> na | O42: =IF(FORMULÁRIO!P38=0,"na",IF(FORMULÁRIO!P38>APROX!$N$3,FORMULÁRIO!P38-APROX!$N$3,IF(APROX!$N$3-FORMULÁRIO!P38>90,FORMULÁRIO!P38-APROX!$N$3+360,0))) -> na | P42: =IF(FORMULÁRIO!Q38=0,"na",IF(FORMULÁRIO!Q38>APROX!$N$3,FORMULÁRIO!Q38-APROX!$N$3,IF(APROX!$N$3-FORMULÁRIO!Q38>90,FORMULÁRIO!Q38-APROX!$N$3+360,0))) -> na | Q42: =IF(FORMULÁRIO!R38=0,"na",IF(FORMULÁRIO!R38>APROX!$Q$3,FORMULÁRIO!R38-APROX!$Q$3,IF(APROX!$Q$3-FORMULÁRIO!R38>90,FORMULÁRIO!R38-APROX!$Q$3+360,0))) -> na | R42: =IF(FORMULÁRIO!S38=0,"na",IF(FORMULÁRIO!S38>APROX!$Q$3,FORMULÁRIO!S38-APROX!$Q$3,IF(APROX!$Q$3-FORMULÁRIO!S38>90,FORMULÁRIO!S38-APROX!$Q$3+360,0))) -> na | S42: =IF(FORMULÁRIO!T38=0,"na",IF(FORMULÁRIO!T38>APROX!$Q$3,FORMULÁRIO!T38-APROX!$Q$3,IF(APROX!$Q$3-FORMULÁRIO!T38>90,FORMULÁRIO!T38-APROX!$Q$3+360,0))) -> na
A43: direita | B43: =IF(FORMULÁRIO!C35=0,"na",IF(FORMULÁRIO!C35<APROX!$B$3,IF(APROX!$B$3-FORMULÁRIO!C35>90,FORMULÁRIO!C35+360-APROX!$B$3,APROX!$B$3-FORMULÁRIO!C35),0)) -> na | C43: =IF(FORMULÁRIO!D35=0,"na",IF(FORMULÁRIO!D35<APROX!$B$3,IF(APROX!$B$3-FORMULÁRIO!D35>90,FORMULÁRIO!D35+360-APROX!$B$3,APROX!$B$3-FORMULÁRIO!D35),0)) -> na | D43: =IF(FORMULÁRIO!E35=0,"na",IF(FORMULÁRIO!E35<APROX!$B$3,IF(APROX!$B$3-FORMULÁRIO!E35>90,FORMULÁRIO!E35+360-APROX!$B$3,APROX!$B$3-FORMULÁRIO!E35),0)) -> na | E43: =IF(FORMULÁRIO!F35=0,"na",IF(FORMULÁRIO!F35<APROX!$E$3,IF(APROX!$E$3-FORMULÁRIO!F35>90,FORMULÁRIO!F35+360-APROX!$E$3,APROX!$E$3-FORMULÁRIO!F35),0)) -> na | F43: =IF(FORMULÁRIO!G35=0,"na",IF(FORMULÁRIO!G35<APROX!$E$3,IF(APROX!$E$3-FORMULÁRIO!G35>90,FORMULÁRIO!G35+360-APROX!$E$3,APROX!$E$3-FORMULÁRIO!G35),0)) -> na | G43: =IF(FORMULÁRIO!H35=0,"na",IF(FORMULÁRIO!H35<APROX!$E$3,IF(APROX!$E$3-FORMULÁRIO!H35>90,FORMULÁRIO!H35+360-APROX!$E$3,APROX!$E$3-FORMULÁRIO!H35),0)) -> na | H43: =IF(FORMULÁRIO!I35=0,"na",IF(FORMULÁRIO!I35<APROX!$H$3,IF(APROX!$H$3-FORMULÁRIO!I35>90,FORMULÁRIO!I35+360-APROX!$H$3,APROX!$H$3-FORMULÁRIO!I35),0)) -> na | I43: =IF(FORMULÁRIO!J35=0,"na",IF(FORMULÁRIO!J35<APROX!$H$3,IF(APROX!$H$3-FORMULÁRIO!J35>90,FORMULÁRIO!J35+360-APROX!$H$3,APROX!$H$3-FORMULÁRIO!J35),0)) -> na | J43: =IF(FORMULÁRIO!K35=0,"na",IF(FORMULÁRIO!K35<APROX!$H$3,IF(APROX!$H$3-FORMULÁRIO!K35>90,FORMULÁRIO!K35+360-APROX!$H$3,APROX!$H$3-FORMULÁRIO!K35),0)) -> na | K43: =IF(FORMULÁRIO!L35=0,"na",IF(FORMULÁRIO!L35<APROX!$K$3,IF(APROX!$K$3-FORMULÁRIO!L35>90,FORMULÁRIO!L35+360-APROX!$K$3,APROX!$K$3-FORMULÁRIO!L35),0)) -> na | L43: =IF(FORMULÁRIO!M35=0,"na",IF(FORMULÁRIO!M35<APROX!$K$3,IF(APROX!$K$3-FORMULÁRIO!M35>90,FORMULÁRIO!M35+360-APROX!$K$3,APROX!$K$3-FORMULÁRIO!M35),0)) -> na | M43: =IF(FORMULÁRIO!N35=0,"na",IF(FORMULÁRIO!N35<APROX!$K$3,IF(APROX!$K$3-FORMULÁRIO!N35>90,FORMULÁRIO!N35+360-APROX!$K$3,APROX!$K$3-FORMULÁRIO!N35),0)) -> na | N43: =IF(FORMULÁRIO!O35=0,"na",IF(FORMULÁRIO!O35<APROX!$N$3,IF(APROX!$N$3-FORMULÁRIO!O35>90,FORMULÁRIO!O35+360-APROX!$N$3,APROX!$N$3-FORMULÁRIO!O35),0)) -> na | O43: =IF(FORMULÁRIO!P35=0,"na",IF(FORMULÁRIO!P35<APROX!$N$3,IF(APROX!$N$3-FORMULÁRIO!P35>90,FORMULÁRIO!P35+360-APROX!$N$3,APROX!$N$3-FORMULÁRIO!P35),0)) -> na | P43: =IF(FORMULÁRIO!Q35=0,"na",IF(FORMULÁRIO!Q35<APROX!$N$3,IF(APROX!$N$3-FORMULÁRIO!Q35>90,FORMULÁRIO!Q35+360-APROX!$N$3,APROX!$N$3-FORMULÁRIO!Q35),0)) -> na | Q43: =IF(FORMULÁRIO!R35=0,"na",IF(FORMULÁRIO!R35<APROX!$Q$3,IF(APROX!$Q$3-FORMULÁRIO!R35>90,FORMULÁRIO!R35+360-APROX!$Q$3,APROX!$Q$3-FORMULÁRIO!R35),0)) -> na | R43: =IF(FORMULÁRIO!S35=0,"na",IF(FORMULÁRIO!S35<APROX!$Q$3,IF(APROX!$Q$3-FORMULÁRIO!S35>90,FORMULÁRIO!S35+360-APROX!$Q$3,APROX!$Q$3-FORMULÁRIO!S35),0)) -> na | S43: =IF(FORMULÁRIO!T35=0,"na",IF(FORMULÁRIO!T35<APROX!$Q$3,IF(APROX!$Q$3-FORMULÁRIO!T35>90,FORMULÁRIO!T35+360-APROX!$Q$3,APROX!$Q$3-FORMULÁRIO!T35),0)) -> na
A44: direita | B44: =IF(FORMULÁRIO!C38=0,"na",IF(FORMULÁRIO!C38<APROX!$B$3,IF(APROX!$B$3-FORMULÁRIO!C38>90,FORMULÁRIO!C38+360-APROX!$B$3,APROX!$B$3-FORMULÁRIO!C38),0)) -> na | C44: =IF(FORMULÁRIO!D38=0,"na",IF(FORMULÁRIO!D38<APROX!$B$3,IF(APROX!$B$3-FORMULÁRIO!D38>90,FORMULÁRIO!D38+360-APROX!$B$3,APROX!$B$3-FORMULÁRIO!D38),0)) -> na | D44: =IF(FORMULÁRIO!E38=0,"na",IF(FORMULÁRIO!E38<APROX!$B$3,IF(APROX!$B$3-FORMULÁRIO!E38>90,FORMULÁRIO!E38+360-APROX!$B$3,APROX!$B$3-FORMULÁRIO!E38),0)) -> na | E44: =IF(FORMULÁRIO!F38=0,"na",IF(FORMULÁRIO!F38<APROX!$E$3,IF(APROX!$E$3-FORMULÁRIO!F38>90,FORMULÁRIO!F38+360-APROX!$E$3,APROX!$E$3-FORMULÁRIO!F38),0)) -> na | F44: =IF(FORMULÁRIO!G38=0,"na",IF(FORMULÁRIO!G38<APROX!$E$3,IF(APROX!$E$3-FORMULÁRIO!G38>90,FORMULÁRIO!G38+360-APROX!$E$3,APROX!$E$3-FORMULÁRIO!G38),0)) -> na | G44: =IF(FORMULÁRIO!H38=0,"na",IF(FORMULÁRIO!H38<APROX!$E$3,IF(APROX!$E$3-FORMULÁRIO!H38>90,FORMULÁRIO!H38+360-APROX!$E$3,APROX!$E$3-FORMULÁRIO!H38),0)) -> na | H44: =IF(FORMULÁRIO!I38=0,"na",IF(FORMULÁRIO!I38<APROX!$H$3,IF(APROX!$H$3-FORMULÁRIO!I38>90,FORMULÁRIO!I38+360-APROX!$H$3,APROX!$H$3-FORMULÁRIO!I38),0)) -> na | I44: =IF(FORMULÁRIO!J38=0,"na",IF(FORMULÁRIO!J38<APROX!$H$3,IF(APROX!$H$3-FORMULÁRIO!J38>90,FORMULÁRIO!J38+360-APROX!$H$3,APROX!$H$3-FORMULÁRIO!J38),0)) -> na | J44: =IF(FORMULÁRIO!K38=0,"na",IF(FORMULÁRIO!K38<APROX!$H$3,IF(APROX!$H$3-FORMULÁRIO!K38>90,FORMULÁRIO!K38+360-APROX!$H$3,APROX!$H$3-FORMULÁRIO!K38),0)) -> na | K44: =IF(FORMULÁRIO!L38=0,"na",IF(FORMULÁRIO!L38<APROX!$K$3,IF(APROX!$K$3-FORMULÁRIO!L38>90,FORMULÁRIO!L38+360-APROX!$K$3,APROX!$K$3-FORMULÁRIO!L38),0)) -> na | L44: =IF(FORMULÁRIO!M38=0,"na",IF(FORMULÁRIO!M38<APROX!$K$3,IF(APROX!$K$3-FORMULÁRIO!M38>90,FORMULÁRIO!M38+360-APROX!$K$3,APROX!$K$3-FORMULÁRIO!M38),0)) -> na | M44: =IF(FORMULÁRIO!N38=0,"na",IF(FORMULÁRIO!N38<APROX!$K$3,IF(APROX!$K$3-FORMULÁRIO!N38>90,FORMULÁRIO!N38+360-APROX!$K$3,APROX!$K$3-FORMULÁRIO!N38),0)) -> na | N44: =IF(FORMULÁRIO!O38=0,"na",IF(FORMULÁRIO!O38<APROX!$N$3,IF(APROX!$N$3-FORMULÁRIO!O38>90,FORMULÁRIO!O38+360-APROX!$N$3,APROX!$N$3-FORMULÁRIO!O38),0)) -> na | O44: =IF(FORMULÁRIO!P38=0,"na",IF(FORMULÁRIO!P38<APROX!$N$3,IF(APROX!$N$3-FORMULÁRIO!P38>90,FORMULÁRIO!P38+360-APROX!$N$3,APROX!$N$3-FORMULÁRIO!P38),0)) -> na | P44: =IF(FORMULÁRIO!Q38=0,"na",IF(FORMULÁRIO!Q38<APROX!$N$3,IF(APROX!$N$3-FORMULÁRIO!Q38>90,FORMULÁRIO!Q38+360-APROX!$N$3,APROX!$N$3-FORMULÁRIO!Q38),0)) -> na | Q44: =IF(FORMULÁRIO!R38=0,"na",IF(FORMULÁRIO!R38<APROX!$Q$3,IF(APROX!$Q$3-FORMULÁRIO!R38>90,FORMULÁRIO!R38+360-APROX!$Q$3,APROX!$Q$3-FORMULÁRIO!R38),0)) -> na | R44: =IF(FORMULÁRIO!S38=0,"na",IF(FORMULÁRIO!S38<APROX!$Q$3,IF(APROX!$Q$3-FORMULÁRIO!S38>90,FORMULÁRIO!S38+360-APROX!$Q$3,APROX!$Q$3-FORMULÁRIO!S38),0)) -> na | S44: =IF(FORMULÁRIO!T38=0,"na",IF(FORMULÁRIO!T38<APROX!$Q$3,IF(APROX!$Q$3-FORMULÁRIO!T38>90,FORMULÁRIO!T38+360-APROX!$Q$3,APROX!$Q$3-FORMULÁRIO!T38),0)) -> na
B46: =IF(B39<150,150,B39-150) -> 150 | C46: =IF(C39<150,150,C39-150) -> 150 | D46: 150 | E46: 150 | F46: 150 | G46: 150 | H46: 150 | I46: 150 | J46: 150 | K46: 150 | L46: 150 | M46: 150 | N46: 150 | O46: 150 | P46: 150 | Q46: 150 | R46: 150 | S46: 150
B47: =IF(B40<150,150,B40-150) -> 150 | C47: =IF(C40<150,150,C40-150) -> 150 | D47: 150 | E47: 150 | F47: 150 | G47: 150 | H47: 150 | I47: 150 | J47: 150 | K47: 150 | L47: 150 | M47: 150 | N47: 150 | O47: 150 | P47: 150 | Q47: 150 | R47: 150 | S47: 150

Sheet APROX INTERNA (hidden)
A1: LETRA DO CODIGO REF DO AD É F? (S ou N) | B1: =FORMULÁRIO!$F$12 -> 0 | E1: =FORMULÁRIO!$F$12 -> 0 | H1: =FORMULÁRIO!$L$12 -> 0 | K1: =FORMULÁRIO!$L$12 -> 0 | N1: =FORMULÁRIO!$L$12 -> 0 | Q1: =FORMULÁRIO!$L$12 -> 0
A2: CABECEIRA | B2: =APROX!B1 -> 25 | E2: =APROX!E1 -> 7 | H2: =APROX!H1 -> 0 | K2: =APROX!K1 -> 7 | N2: =APROX!N1 -> 0 | Q2: =APROX!Q1 -> 24
A3: ELEVAÇÃO DA CABECEIRA | B3: =APROX!B2 -> 2 | E3: =APROX!E2 -> 2 | H3: =APROX!H2 -> 33 | K3: =APROX!K2 -> 33 | N3: =APROX!N2 -> 3 | Q3: =APROX!Q2 -> 3
A4: CODIGO REFERENCIA APROXIMAÇÃO | B4: =APROX!B10 -> 0 | E4: =APROX!E10 -> 0 | H4: =APROX!H10 -> 0 | K4: =APROX!K10 -> 0 | N4: =APROX!N10 -> 0 | Q4: =APROX!Q10 -> 0
A5: TIPO DE OPERAÇÃO (VFR, IFR OU IFR-P) | B5: =APROX!B11 -> IFR-P | E5: =APROX!E11 -> IFR-P | H5: =APROX!H11 -> IFR-P | K5: =APROX!K11 -> IFR-P | N5: =APROX!N11 -> IFR-P | Q5: =APROX!Q11 -> IFR-P
A6: Largura da borda interna (m): | B6: =IF(B5="IFR-P",IF(B4<3,90,IF(B1="F",155,120)),"NA") -> 90 | E6: =IF(E5="IFR-P",IF(E4<3,90,IF(E1="F",155,120)),"NA") -> 90 | H6: 90 | K6: 90 | N6: =IF(N5="IFR-P",IF(N4<3,90,IF(N1="F",155,120)),"NA") -> 90 | Q6: =IF(Q5="IFR-P",IF(Q4<3,90,IF(Q1="F",155,120)),"NA") -> 90
A7: Elevação da borda interna (m): | B7: =IF(B5="IFR-P",B3,"NA") -> 2 | E7: =IF(E5="IFR-P",E3,"NA") -> 2 | H7: 33 | K7: 33 | N7: =IF(N5="IFR-P",N3,"NA") -> 3 | Q7: =IF(Q5="IFR-P",Q3,"NA") -> 3
A8: Distância da cabeceira (m): | B8: =IF(B5="IFR-P",60,"NA") -> 60 | E8: =IF(E5="IFR-P",60,"NA") -> 60 | H8: 60 | K8: 60 | N8: =IF(N5="IFR-P",60,"NA") -> 60 | Q8: =IF(Q5="IFR-P",60,"NA") -> 60
A9: Abertura para cada lado (%): | B9: =IF(B5="IFR-P","PARALELA","NA") -> PARALELA | E9: =IF(E5="IFR-P","PARALELA","NA") -> PARALELA | H9: PARALELA | K9: PARALELA | N9: =IF(N5="IFR-P","PARALELA","NA") -> PARALELA | Q9: =IF(Q5="IFR-P","PARALELA","NA") -> PARALELA
A10: Comprimento (m): | B10: =IF(B5="IFR-P",900,"NA") -> 900 | E10: =IF(E5="IFR-P",900,"NA") -> 900 | H10: 900 | K10: 900 | N10: =IF(N5="IFR-P",900,"NA") -> 900 | Q10: =IF(Q5="IFR-P",900,"NA") -> 900
A11: Gradiente (%): | B11: =IF(B5="IFR-P",IF(B4<3,0.025,0.02),"NA") -> 0.025 | E11: =IF(E5="IFR-P",IF(E4<3,0.025,0.02),"NA") -> 0.025 | H11: 0.025 | K11: 0.025 | N11: =IF(N5="IFR-P",IF(N4<3,0.025,0.02),"NA") -> 0.025 | Q11: =IF(Q5="IFR-P",IF(Q4<3,0.025,0.02),"NA") -> 0.025
A12: Elevação da borda externa (m): | B12: =IF(B5="IFR-P",B3+B10*B11,"NA") -> 24.5 | E12: =IF(E5="IFR-P",E3+E10*E11,"NA") -> 24.5 | H12: 55.5 | K12: 55.5 | N12: =IF(N5="IFR-P",N3+N10*N11,"NA") -> 25.5 | Q12: =IF(Q5="IFR-P",Q3+Q10*Q11,"NA") -> 25.5

Sheet TRANSIÇÃO INTERNA (hidden)
A1: LETRA DO CODIGO REF DO AD É F? (S ou N) | B1: ='APROX INTERNA'!B1 -> 0 | E1: ='APROX INTERNA'!E1 -> 0 | H1: ='APROX INTERNA'!H1 -> 0 | K1: ='APROX INTERNA'!K1 -> 0 | N1: ='APROX INTERNA'!N1 -> 0 | Q1: ='APROX INTERNA'!Q1 -> 0
A2: CABECEIRA | B2: ='APROX INTERNA'!B2 -> 25 | E2: ='APROX INTERNA'!E2 -> 7 | H2: ='APROX INTERNA'!H2 -> 0 | K2: ='APROX INTERNA'!K2 -> 7 | N2: ='APROX INTERNA'!N2 -> 0 | Q2: ='APROX INTERNA'!Q2 -> 24
A3: ELEVAÇÃO DA CABECEIRA | B3: ='APROX INTERNA'!B3 -> 2 | E3: ='APROX INTERNA'!E3 -> 2 | H3: ='APROX INTERNA'!H3 -> 33 | K3: ='APROX INTERNA'!K3 -> 33 | N3: ='APROX INTERNA'!N3 -> 3 | Q3: ='APROX INTERNA'!Q3 -> 3
A4: CODIGO REFERENCIA APROXIMAÇÃO | B4: ='APROX INTERNA'!B4 -> 0 | E4: ='APROX INTERNA'!E4 -> 0 | H4: ='APROX INTERNA'!H4 -> 0 | K4: ='APROX INTERNA'!K4 -> 0 | N4: ='APROX INTERNA'!N4 -> 0 | Q4: ='APROX INTERNA'!Q4 -> 0
A5: TIPO DE OPERAÇÃO (VFR, IFR OU IFR-P) | B5: ='APROX INTERNA'!B5 -> IFR-P | E5: ='APROX INTERNA'!E5 -> IFR-P | H5: ='APROX INTERNA'!H5 -> IFR-P | K5: ='APROX INTERNA'!K5 -> IFR-P | N5: ='APROX INTERNA'!N5 -> IFR-P | Q5: ='APROX INTERNA'!Q5 -> IFR-P
A6: Gradiente (%): | B6: =IF(B5="IFR-P",IF(B4<3,0.4,0.333),"NA") -> 0.4 | E6: =IF(E5="IFR-P",IF(E4<3,0.4,0.333),"NA") -> 0.4 | H6: =IF(H5="IFR-P",IF(H4<3,0.4,0.333),"NA") -> 0.4 | K6: =IF(K5="IFR-P",IF(K4<3,0.4,0.333),"NA") -> 0.4 | N6: =IF(N5="IFR-P",IF(N4<3,0.4,0.333),"NA") -> 0.4 | Q6: =IF(Q5="IFR-P",IF(Q4<3,0.4,0.333),"NA") -> 0.4
A7: Elevação da borda superior (m): | B7: =IF(B5="IFR-P",'HORIZONTAL INTERNA'!$B$4,"NA") -> 45 | E7: =IF(E5="IFR-P",'HORIZONTAL INTERNA'!$B$4,"NA") -> 45 | H7: =IF(H5="IFR-P",'HORIZONTAL INTERNA'!$C$4,"NA") -> 45 | K7: =IF(K5="IFR-P",'HORIZONTAL INTERNA'!$C$4,"NA") -> 45 | N7: =IF(N5="IFR-P",'HORIZONTAL INTERNA'!$D$4,"NA") -> 45 | Q7: =IF(Q5="IFR-P",'HORIZONTAL INTERNA'!$D$4,"NA") -> 45

Sheet POUSO INTERROMPIDO (hidden)
A1: LETRA DO CODIGO REF | B1: ='APROX INTERNA'!B1 -> 0 | E1: ='APROX INTERNA'!E1 -> 0 | H1: ='APROX INTERNA'!H1 -> 0 | K1: ='APROX INTERNA'!K1 -> 0 | N1: ='APROX INTERNA'!N1 -> 0 | Q1: ='APROX INTERNA'!Q1 -> 0
A2: CABECEIRA | B2: ='APROX INTERNA'!B2 -> 25 | E2: ='APROX INTERNA'!E2 -> 7 | H2: ='APROX INTERNA'!H2 -> 0 | K2: ='APROX INTERNA'!K2 -> 7 | N2: ='APROX INTERNA'!N2 -> 0 | Q2: ='APROX INTERNA'!Q2 -> 24
A3: ELEVAÇÃO DA CABECEIRA | B3: ='APROX INTERNA'!B3 -> 2 | E3: ='APROX INTERNA'!E3 -> 2 | H3: ='APROX INTERNA'!H3 -> 33 | K3: ='APROX INTERNA'!K3 -> 33 | N3: ='APROX INTERNA'!N3 -> 3 | Q3: ='APROX INTERNA'!Q3 -> 3
A4: CODIGO REFERENCIA APROXIMAÇÃO | B4: =FORMULÁRIO!C26 -> 0 | E4: =FORMULÁRIO!F26 -> 0 | H4: =FORMULÁRIO!I26 -> 0 | K4: =FORMULÁRIO!L26 -> 0 | N4: =FORMULÁRIO!O26 -> 0 | Q4: =FORMULÁRIO!R26 -> 0
A5: TIPO DE OPERAÇÃO (VFR, IFR OU IFR-P) | B5: ='APROX INTERNA'!B5 -> IFR-P | E5: ='APROX INTERNA'!E5 -> IFR-P | H5: ='APROX INTERNA'!H5 -> IFR-P | K5: ='APROX INTERNA'!K5 -> IFR-P | N5: ='APROX INTERNA'!N5 -> IFR-P | Q5: ='APROX INTERNA'!Q5 -> IFR-P
A6: Elevação da borda interna (m): | B6: =FORMULÁRIO!E28 -> 0 | E6: =FORMULÁRIO!H28 -> 0 | H6: =FORMULÁRIO!K28 -> 0 | K6: =FORMULÁRIO!N28 -> 0 | N6: =FORMULÁRIO!Q28 -> 0 | Q6: =FORMULÁRIO!T28 -> 0
A7: Largura da borda interna (m): | B7: =IF(B5="IFR-P",IF(B4<3,90,IF(B2="S",155,120)),"NA") -> 90 | E7: =IF(E5="IFR-P",IF(E4<3,90,IF(E2="S",155,120)),"NA") -> 90 | H7: =IF(H5="IFR-P",IF(H4<3,90,IF(H2="S",155,120)),"NA") -> 90 | K7: =IF(K5="IFR-P",IF(K4<3,90,IF(K2="S",155,120)),"NA") -> 90 | N7: =IF(N5="IFR-P",IF(N4<3,90,IF(N2="S",155,120)),"NA") -> 90 | Q7: =IF(Q5="IFR-P",IF(Q4<3,90,IF(Q2="S",155,120)),"NA") -> 90
A8: Elevação da borda interna (m): | B8: =IF(B5="IFR-P",B6,"NA") -> 0 | E8: =IF(E5="IFR-P",E6,"NA") -> 0 | H8: 0 | K8: 0 | N8: =IF(N5="IFR-P",N6,"NA") -> 0 | Q8: =IF(Q5="IFR-P",Q6,"NA") -> 0
A9: Distância da cabeceira (m): | B9: =IF(B5="IFR-P",IF(B4<3,FORMULÁRIO!$C$17+APROX!B18,IF(FORMULÁRIO!$C$13<1800,FORMULÁRIO!$C$13,1800)),"NA") -> 3484.907 | C9: =IF(C5="IFR-P",IF(C4<3,FORMULÁRIO!$C$17+APROX!C18,IF(FORMULÁRIO!$C$13<1800,FORMULÁRIO!$C$13,1800)),"NA") -> NA | D9: =IF(D5="IFR-P",IF(D4<3,FORMULÁRIO!$C$17+APROX!D18,IF(FORMULÁRIO!$C$13<1800,FORMULÁRIO!$C$13,1800)),"NA") -> NA | E9: =IF(E5="IFR-P",IF(E4<3,FORMULÁRIO!$C$17+APROX!E18,IF(FORMULÁRIO!$C$13<1800,FORMULÁRIO!$C$13,1800)),"NA") -> 3484.907 | H9: =IF(H5="IFR-P",IF(H4<3,FORMULÁRIO!$I$17+APROX!H18,IF(FORMULÁRIO!$I$13<1800,FORMULÁRIO!$I$13,1800)),"NA") -> 3408.309 | K9: =IF(K5="IFR-P",IF(K4<3,FORMULÁRIO!$I$17+APROX!K18,IF(FORMULÁRIO!$I$13<1800,FORMULÁRIO!$I$13,1800)),"NA") -> 3408.309 | N9: =IF(N5="IFR-P",IF(N4<3,FORMULÁRIO!$O$17+APROX!N18,IF(FORMULÁRIO!$O$13<1800,FORMULÁRIO!$O$13,1800)),"NA") -> 5965.423 | Q9: =IF(Q5="IFR-P",IF(Q4<3,FORMULÁRIO!$O$17+APROX!Q18,IF(FORMULÁRIO!$O$13<1800,FORMULÁRIO!$O$13,1800)),"NA") -> 5965.423
A10: Abertura para cada lado (%): | B10: =IF(B5="IFR-P",0.1,"NA") -> 0.1 | E10: =IF(E5="IFR-P",0.1,"NA") -> 0.1 | H10: =IF(H5="IFR-P",0.1,"NA") -> 0.1 | K10: =IF(K5="IFR-P",0.1,"NA") -> 0.1 | N10: =IF(N5="IFR-P",0.1,"NA") -> 0.1 | Q10: =IF(Q5="IFR-P",0.1,"NA") -> 0.1
A11: Gradiente (%): | B11: =IF(B5="IFR-P",IF(B4<3,0.04,0.0333),"NA") -> 0.04 | E11: =IF(E5="IFR-P",IF(E4<3,0.04,0.0333),"NA") -> 0.04 | H11: =IF(H5="IFR-P",IF(H4<3,0.04,0.0333),"NA") -> 0.04 | K11: =IF(K5="IFR-P",IF(K4<3,0.04,0.0333),"NA") -> 0.04 | N11: =IF(N5="IFR-P",IF(N4<3,0.04,0.0333),"NA") -> 0.04 | Q11: =IF(Q5="IFR-P",IF(Q4<3,0.04,0.0333),"NA") -> 0.04
A12: Elevação da borda externa (m): | B12: =IF(B5="IFR-P",'HORIZONTAL INTERNA'!$B$4,"NA") -> 45 | E12: =IF(E5="IFR-P",'HORIZONTAL INTERNA'!$B$4,"NA") -> 45 | H12: =IF(H5="IFR-P",'HORIZONTAL INTERNA'!$C$4,"NA") -> 45 | K12: =IF(K5="IFR-P",'HORIZONTAL INTERNA'!$C$4,"NA") -> 45 | N12: =IF(N5="IFR-P",'HORIZONTAL INTERNA'!$D$4,"NA") -> 45 | Q12: =IF(Q5="IFR-P",'HORIZONTAL INTERNA'!$D$4,"NA") -> 45

Sheet TRANSIÇÃO (hidden)
A1: CODIGO DE REFERÊNCIA | B1: =MAX(FORMULÁRIO!C26:H26) -> 0 | C1: =MAX(FORMULÁRIO!I26:N26) -> 0 | D1: =MAX(FORMULÁRIO!O26:T26) -> 0
A2: TIPO DE OPERAÇÃO (VFR, IFR OU IFR-P) | B2: =IF(B10<10,"VFR",IF(B16<100,"IFR","IFR-P")) -> IFR | C2: =IF(C10<10,"VFR",IF(C16<100,"IFR","IFR-P")) -> IFR | D2: =IF(D10<10,"VFR",IF(D16<100,"IFR","IFR-P")) -> IFR
A5: Gradiente (%): | B5: =IF(B2="IFR-P",0.143,IF(B1>2,0.143,0.2)) -> 0.2 | C5: =IF(C2="IFR-P",0.143,IF(C1>2,0.143,0.2)) -> 0.2 | D5: =IF(D2="IFR-P",0.143,IF(D1>2,0.143,0.2)) -> 0.2
B8: =IF(FORMULÁRIO!C27="vfr",1,IF(FORMULÁRIO!C27="ifr npa",10,IF(FORMULÁRIO!C27="não aplicável",0,1000))) -> 1000 | C8: =IF(FORMULÁRIO!I27="vfr",1,IF(FORMULÁRIO!I27="ifr npa",10,IF(FORMULÁRIO!I27="não aplicável",0,1000))) -> 1000 | D8: =IF(FORMULÁRIO!O27="vfr",1,IF(FORMULÁRIO!O27="ifr npa",10,IF(FORMULÁRIO!O27="não aplicável",0,1000))) -> 1000
B9: =IF(FORMULÁRIO!F27="vfr",1,IF(FORMULÁRIO!F27="ifr npa",10,IF(FORMULÁRIO!F27="não aplicável",0,1000))) -> 1000 | C9: =IF(FORMULÁRIO!L27="vfr",1,IF(FORMULÁRIO!L27="ifr npa",10,IF(FORMULÁRIO!L27="não aplicável",0,1000))) -> 1000 | D9: =IF(FORMULÁRIO!R27="vfr",1,IF(FORMULÁRIO!R27="ifr npa",10,IF(FORMULÁRIO!R27="não aplicável",0,1000))) -> 1000
B10: =SUM(B8:B9) -> 2000 | C10: =SUM(C8:C9) -> 2000 | D10: =SUM(D8:D9) -> 2000

Sheet HORIZONTAL INTERNA (hidden)
A1: CODIGO DE REFERÊNCIA | B1: =PISTA!B1 -> 0 | C1: =PISTA!C1 -> 0 | D1: =PISTA!D1 -> 0
A2: TIPO DE OPERAÇÃO (VFR, IFR OU IFR-P) | B2: =PISTA!B2 -> IFR-P | C2: =PISTA!C2 -> IFR-P | D2: =PISTA!D2 -> IFR-P
A4: Altitude (m): | B4: =B7+45 -> 45 | C4: =C7+45 -> 45 | D4: =D7+45 -> 45
A5: Raio (m) | B5: =IF(B1>2,4000,IF(B2="VFR",IF(B1=1,2000,2500),3500)) -> 3500 | C5: =IF(C1>2,4000,IF(C2="VFR",IF(C1=1,2000,2500),3500)) -> 3500 | D5: =IF(D1>2,4000,IF(D2="VFR",IF(D1=1,2000,2500),3500)) -> 3500
A7: altitude | B7: =IF(FORMULÁRIO!C7-FORMULÁRIO!C15>5.99,FORMULÁRIO!C15,FORMULÁRIO!C7) -> 0 | C7: =IF(AND(FORMULÁRIO!C7-FORMULÁRIO!I15>5.99,FORMULÁRIO!I15>0),FORMULÁRIO!I15,FORMULÁRIO!C7) -> 0 | D7: =IF(AND(FORMULÁRIO!C7-FORMULÁRIO!O15>5.99,FORMULÁRIO!O15>0),FORMULÁRIO!O15,FORMULÁRIO!C7) -> 0

Sheet CÔNICA (hidden)
A1: CODIGO DE REFERÊNCIA | B1: ='HORIZONTAL INTERNA'!B1 -> 0 | C1: ='HORIZONTAL INTERNA'!C1 -> 0 | D1: ='HORIZONTAL INTERNA'!D1 -> 0
A2: TIPO DE OPERAÇÃO (VFR, IFR OU IFR-P) | B2: ='HORIZONTAL INTERNA'!B2 -> IFR-P | C2: ='HORIZONTAL INTERNA'!C2 -> IFR-P | D2: ='HORIZONTAL INTERNA'!D2 -> IFR-P
A4: Altitude (m): | B4: =IF(B1=4,100,IF(B1=3,IF(B2="IFR-P",100,75),IF(B1=2,IF(B2="VFR",55,60),IF(B1=1,IF(B2="VFR",35,60)))))+'HORIZONTAL INTERNA'!B4 -> 45 | C4: =IF(C1=4,100,IF(C1=3,IF(C2="IFR-P",100,75),IF(C1=2,IF(C2="VFR",55,60),IF(C1=1,IF(C2="VFR",35,60)))))+'HORIZONTAL INTERNA'!C4 -> 45 | D4: =IF(D1=4,100,IF(D1=3,IF(D2="IFR-P",100,75),IF(D1=2,IF(D2="VFR",55,60),IF(D1=1,IF(D2="VFR",35,60)))))+'HORIZONTAL INTERNA'!D4 -> 45
A5: Raio (m) | B5: 0.05 | C5: 0.05 | D5: 0.05

Sheet SPVV (hidden)
A1: Largura (m): | B1: =IF(FORMULÁRIO!C$113="aplicável",2350,"NA") -> 2350 | C1: =IF(FORMULÁRIO!D$113="aplicável",2350,"NA") -> NA | D1: =IF(FORMULÁRIO!E$113="aplicável",2350,"NA") -> NA | E1: =IF(FORMULÁRIO!F$113="aplicável",2350,"NA") -> NA | F1: =IF(FORMULÁRIO!G$113="aplicável",2350,"NA") -> NA | G1: =IF(FORMULÁRIO!H$113="aplicável",2350,"NA") -> NA | H1: =IF(FORMULÁRIO!I$113="aplicável",2350,"NA") -> NA | I1: =IF(FORMULÁRIO!J$113="aplicável",2350,"NA") -> NA | J1: =IF(FORMULÁRIO!K$113="aplicável",2350,"NA") -> NA | K1: =IF(FORMULÁRIO!L$113="aplicável",2350,"NA") -> NA | L1: =IF(FORMULÁRIO!M$113="aplicável",2350,"NA") -> NA | M1: =IF(FORMULÁRIO!N$113="aplicável",2350,"NA") -> NA | N1: =IF(FORMULÁRIO!O$113="aplicável",2350,"NA") -> NA | O1: =IF(FORMULÁRIO!P$113="aplicável",2350,"NA") -> NA | P1: =IF(FORMULÁRIO!Q$113="aplicável",2350,"NA") -> NA | Q1: =IF(FORMULÁRIO!R$113="aplicável",2350,"NA") -> NA | R1: =IF(FORMULÁRIO!S$113="aplicável",2350,"NA") -> NA | S1: =IF(FORMULÁRIO!T$113="aplicável",2350,"NA") -> NA | T1: =IF(FORMULÁRIO!U$113="aplicável",2350,"NA") -> NA | U1: =IF(FORMULÁRIO!V$113="aplicável",2350,"NA") -> NA
A2: Buffer (m): | B2: =IF(FORMULÁRIO!C$113="aplicável",470,"NA") -> 470 | C2: =IF(FORMULÁRIO!D$113="aplicável",470,"NA") -> NA | D2: =IF(FORMULÁRIO!E$113="aplicável",470,"NA") -> NA | E2: =IF(FORMULÁRIO!F$113="aplicável",470,"NA") -> NA | F2: =IF(FORMULÁRIO!G$113="aplicável",470,"NA") -> NA | G2: =IF(FORMULÁRIO!H$113="aplicável",470,"NA") -> NA | H2: =IF(FORMULÁRIO!I$113="aplicável",470,"NA") -> NA | I2: =IF(FORMULÁRIO!J$113="aplicável",470,"NA") -> NA | J2: =IF(FORMULÁRIO!K$113="aplicável",470,"NA") -> NA | K2: =IF(FORMULÁRIO!L$113="aplicável",470,"NA") -> NA | L2: =IF(FORMULÁRIO!M$113="aplicável",470,"NA") -> NA | M2: =IF(FORMULÁRIO!N$113="aplicável",470,"NA") -> NA | N2: =IF(FORMULÁRIO!O$113="aplicável",470,"NA") -> NA | O2: =IF(FORMULÁRIO!P$113="aplicável",470,"NA") -> NA | P2: =IF(FORMULÁRIO!Q$113="aplicável",470,"NA") -> NA | Q2: =IF(FORMULÁRIO!R$113="aplicável",470,"NA") -> NA | R2: =IF(FORMULÁRIO!S$113="aplicável",470,"NA") -> NA | S2: =IF(FORMULÁRIO!T$113="aplicável",470,"NA") -> NA | T2: =IF(FORMULÁRIO!U$113="aplicável",470,"NA") -> NA | U2: =IF(FORMULÁRIO!V$113="aplicável",470,"NA") -> NA
A3: Comprimento (m): | B3: =IF(FORMULÁRIO!C$113="aplicável",2350,"NA") -> 2350 | C3: =IF(FORMULÁRIO!D$113="aplicável",2350,"NA") -> NA | D3: =IF(FORMULÁRIO!E$113="aplicável",2350,"NA") -> NA | E3: =IF(FORMULÁRIO!F$113="aplicável",2350,"NA") -> NA | F3: =IF(FORMULÁRIO!G$113="aplicável",2350,"NA") -> NA | G3: =IF(FORMULÁRIO!H$113="aplicável",2350,"NA") -> NA | H3: =IF(FORMULÁRIO!I$113="aplicável",2350,"NA") -> NA | I3: =IF(FORMULÁRIO!J$113="aplicável",2350,"NA") -> NA | J3: =IF(FORMULÁRIO!K$113="aplicável",2350,"NA") -> NA | K3: =IF(FORMULÁRIO!L$113="aplicável",2350,"NA") -> NA | L3: =IF(FORMULÁRIO!M$113="aplicável",2350,"NA") -> NA | M3: =IF(FORMULÁRIO!N$113="aplicável",2350,"NA") -> NA | N3: =IF(FORMULÁRIO!O$113="aplicável",2350,"NA") -> NA | O3: =IF(FORMULÁRIO!P$113="aplicável",2350,"NA") -> NA | P3: =IF(FORMULÁRIO!Q$113="aplicável",2350,"NA") -> NA | Q3: =IF(FORMULÁRIO!R$113="aplicável",2350,"NA") -> NA | R3: =IF(FORMULÁRIO!S$113="aplicável",2350,"NA") -> NA | S3: =IF(FORMULÁRIO!T$113="aplicável",2350,"NA") -> NA | T3: =IF(FORMULÁRIO!U$113="aplicável",2350,"NA") -> NA | U3: =IF(FORMULÁRIO!V$113="aplicável",2350,"NA") -> NA
A5: Altitude seção de través (m): | B5: =IF(FORMULÁRIO!$C$113="aplicável",IF(FORMULÁRIO!C121="na","NA",FORMULÁRIO!C122+FORMULÁRIO!$C$7-(250/3.2808)),"NA") -> -76.2009266 | E5: =IF(FORMULÁRIO!$C$113="aplicável",IF(FORMULÁRIO!F121="na","NA",FORMULÁRIO!F122+FORMULÁRIO!$C$7-(250/3.2808)),"NA") -> -76.2009266 | H5: =IF(FORMULÁRIO!$I$113="aplicável",IF(FORMULÁRIO!I121="na","NA",FORMULÁRIO!I122+FORMULÁRIO!$C$7-(250/3.2808)),"NA") -> NA | K5: =IF(FORMULÁRIO!$I$113="aplicável",IF(FORMULÁRIO!L121="na","NA",FORMULÁRIO!L122+FORMULÁRIO!$C$7-(250/3.2808)),"NA") -> NA | N5: =IF(FORMULÁRIO!$O$113="aplicável",IF(FORMULÁRIO!O121="na","NA",FORMULÁRIO!O122+FORMULÁRIO!$C$7-(250/3.2808)),"NA") -> NA | Q5: =IF(FORMULÁRIO!$O$113="aplicável",IF(FORMULÁRIO!R121="na","NA",FORMULÁRIO!R122+FORMULÁRIO!$C$7-(250/3.2808)),"NA") -> NA
A6: Altitude seção de aprox/dep (m): | B6: =IF(FORMULÁRIO!$C$113="aplicável",IF(FORMULÁRIO!C121="na","NA",FORMULÁRIO!C122+FORMULÁRIO!$C$7-(325/3.2808)),"NA") -> -99.06120458 | E6: =IF(FORMULÁRIO!$C$113="aplicável",IF(FORMULÁRIO!F121="na","NA",FORMULÁRIO!F122+FORMULÁRIO!$C$7-(325/3.2808)),"NA") -> -99.06120458 | H6: =IF(FORMULÁRIO!$I$113="aplicável",IF(FORMULÁRIO!I121="na","NA",FORMULÁRIO!I122+FORMULÁRIO!$C$7-(325/3.2808)),"NA") -> NA | K6: =IF(FORMULÁRIO!$I$113="aplicável",IF(FORMULÁRIO!L121="na","NA",FORMULÁRIO!L122+FORMULÁRIO!$C$7-(325/3.2808)),"NA") -> NA | N6: =IF(FORMULÁRIO!$O$113="aplicável",IF(FORMULÁRIO!O121="na","NA",FORMULÁRIO!O122+FORMULÁRIO!$C$7-(325/3.2808)),"NA") -> NA | Q6: =IF(FORMULÁRIO!$O$113="aplicável",IF(FORMULÁRIO!R121="na","NA",FORMULÁRIO!R122+FORMULÁRIO!$C$7-(325/3.2808)),"NA") -> NA
A7: MARCAÇÃO
A10: Largura (m): | B10: =IF(FORMULÁRIO!$C$124="aplicável",IF(FORMULÁRIO!$C$125="A",2350,(IF(FORMULÁRIO!$C$125="B",2780,4170))),"NA") -> 4170 | H10: =IF(FORMULÁRIO!$I$124="aplicável",IF(FORMULÁRIO!$I$125="A",2350,(IF(FORMULÁRIO!$I$125="B",2780,4170))),"NA") -> NA | N10: =IF(FORMULÁRIO!$O$124="aplicável",IF(FORMULÁRIO!$O$125="A",2350,(IF(FORMULÁRIO!$O$125="B",2780,4170))),"NA") -> NA
A11: Buffer (m): | B11: =IF(FORMULÁRIO!$C$124="aplicável",IF(FORMULÁRIO!$C$125="A",470,(IF(FORMULÁRIO!$C$125="B",470,930))),"NA") -> 930 | H11: =IF(FORMULÁRIO!$I$124="aplicável",IF(FORMULÁRIO!$I$125="A",470,(IF(FORMULÁRIO!$I$125="B",470,930))),"NA") -> NA | N11: =IF(FORMULÁRIO!$O$124="aplicável",IF(FORMULÁRIO!$O$125="A",470,(IF(FORMULÁRIO!$O$125="B",470,930))),"NA") -> NA
A12: Comprimento (m): | B12: =IF(FORMULÁRIO!$C$124="aplicável",IF(FORMULÁRIO!$C$125="A",2350,(IF(FORMULÁRIO!$C$125="B",2780,4170))),"NA") -> 4170 | H12: =IF(FORMULÁRIO!$I$124="aplicável",IF(FORMULÁRIO!$I$125="A",2350,(IF(FORMULÁRIO!$I$125="B",2780,4170))),"NA") -> NA | N12: =IF(FORMULÁRIO!$O$124="aplicável",IF(FORMULÁRIO!$O$125="A",2350,(IF(FORMULÁRIO!$O$125="B",2780,4170))),"NA") -> NA
A14: Altitude seção de través (m): | B14: =IF(FORMULÁRIO!$C$124="aplicável",IF(FORMULÁRIO!$C$134="NA","NA",FORMULÁRIO!C134+FORMULÁRIO!$C$7-(500/3.2808)),"NA") -> -152.4018532 | E14: =IF(FORMULÁRIO!$C$124="aplicável",IF(FORMULÁRIO!$F$134="NA","NA",FORMULÁRIO!F134+FORMULÁRIO!$C$7-(500/3.2808)),"NA") -> -152.4018532 | H14: =IF(FORMULÁRIO!$I$124="aplicável",IF(FORMULÁRIO!$I$134="NA","NA",FORMULÁRIO!I134+FORMULÁRIO!$C$7-(500/3.2808)),"NA") -> NA | K14: =IF(FORMULÁRIO!$I$124="aplicável",IF(FORMULÁRIO!$L$134="NA","NA",FORMULÁRIO!L134+FORMULÁRIO!$C$7-(500/3.2808)),"NA") -> NA | N14: =IF(FORMULÁRIO!$O$124="aplicável",IF(FORMULÁRIO!$O$134="NA","NA",FORMULÁRIO!O134+FORMULÁRIO!$C$7-(500/3.2808)),"NA") -> NA | Q14: =IF(FORMULÁRIO!$O$124="aplicável",IF(FORMULÁRIO!$R$134="NA","NA",FORMULÁRIO!R134+FORMULÁRIO!$C$7-(500/3.2808)),"NA") -> NA
A15: Altitude seção de aprox/dep (m): | B15: =IF(FORMULÁRIO!$C$124="aplicável",IF(FORMULÁRIO!$C$134="NA","NA",FORMULÁRIO!C134+FORMULÁRIO!$C$7-(650/3.2808)),"NA") -> -198.1224092 | E15: =IF(FORMULÁRIO!$C$124="aplicável",IF(FORMULÁRIO!$F$134="NA","NA",FORMULÁRIO!F134+FORMULÁRIO!$C$7-(650/3.2808)),"NA") -> -198.1224092 | H15: =IF(FORMULÁRIO!$I$124="aplicável",IF(FORMULÁRIO!$I$134="NA","NA",FORMULÁRIO!I134+FORMULÁRIO!$C$7-(650/3.2808)),"NA") -> NA | K15: =IF(FORMULÁRIO!$I$124="aplicável",IF(FORMULÁRIO!$L$134="NA","NA",FORMULÁRIO!L134+FORMULÁRIO!$C$7-(650/3.2808)),"NA") -> NA | N15: =IF(FORMULÁRIO!$O$124="aplicável",IF(FORMULÁRIO!$O$134="NA","NA",FORMULÁRIO!O134+FORMULÁRIO!$C$7-(650/3.2808)),"NA") -> NA | Q15: =IF(FORMULÁRIO!$O$124="aplicável",IF(FORMULÁRIO!$R$134="NA","NA",FORMULÁRIO!R134+FORMULÁRIO!$C$7-(650/3.2808)),"NA") -> NA
A16: Largura (m): | B16: =IF(FORMULÁRIO!C136="aplicável",7410,"NA") -> 7410 | H16: =IF(FORMULÁRIO!I136="aplicável",7410,"NA") -> NA | N16: =IF(FORMULÁRIO!O136="aplicável",7410,"NA") -> NA
A17: Buffer (m): | B17: =IF(FORMULÁRIO!C136="aplicável",930,"NA") -> 930 | H17: =IF(FORMULÁRIO!I136="aplicável",930,"NA") -> NA | N17: =IF(FORMULÁRIO!O136="aplicável",930,"NA") -> NA
A18: Comprimento (m): | B18: =IF(FORMULÁRIO!C136="aplicável",5560,"NA") -> 5560 | H18: =IF(FORMULÁRIO!I136="aplicável",5560,"NA") -> NA | N18: =IF(FORMULÁRIO!O136="aplicável",5560,"NA") -> NA
A19: Altitude seção través (m): | B19: =IF(FORMULÁRIO!C136="aplicável",FORMULÁRIO!$C$7+(1000/3.2808),"NA") -> 304.8037064 | H19: =IF(FORMULÁRIO!I136="aplicável",FORMULÁRIO!$C$7+(1000/3.2808),"NA") -> NA | N19: =IF(FORMULÁRIO!O136="aplicável",FORMULÁRIO!$C$7+(1000/3.2808),"NA") -> NA
A20: Altitude seção aprox/dep (m): | B20: =IF(FORMULÁRIO!C136="aplicável",FORMULÁRIO!$C$7+(850/3.2808),"NA") -> 259.0831505 | H20: =IF(FORMULÁRIO!I136="aplicável",FORMULÁRIO!$C$7+(850/3.2808),"NA") -> NA | N20: =IF(FORMULÁRIO!O136="aplicável",FORMULÁRIO!$C$7+(850/3.2808),"NA") -> NA
